{"text_format":"1","workbook":"xlsx","n_sheets":16,"sheets":["NAVODILA","VNOS PODATKOV","9A MNENJA VLOGA","19A LEG ZAHTEVA","19B IZJAVA DL","1A NASLOVNA","19C LEG SPLOŠNI PODATKI","19D ODO ZAHTEVA BREZ GD","19E ODO ZAHTEVA Z GD","19F UD IZJAVA ODO Z GD","19G UD ZAHTEVA ENO-ST","19H IZJAVA OBST ENO","19I GD+UD ZAHTEVA","16A DOPOL VLOGE","16B DOPOL PODALJ","BAZA PODATKOV"],"not_rendered":{"charts":0,"images":42,"macros":1,"external_links":2,"defined_names":57,"comments":0,"pivot_tables":0},"unopened":[],"bounds":{"document_bytes":16777216,"sheet_cells":100000,"rows_first":2000,"rows_last":500,"rows_between":2000,"halvings":0,"cell_chars":16384,"cell_head_chars":4096},"cells_cut":0,"cells_raw":0,"read":"whole","date_system":"1900"}

{"sheet":"NAVODILA","index":0,"n_rows":54,"n_cols":1,"rows_kept":54,"cut":false,"hidden":false,"merged":[]}
[]
["NAVODILA"]
[]
["Aplikacija za pripravo obrazcev v zvezi z graditvijo objektov je pripomoček za pripravo dokumentacije in zahtevkov, izdelan v skladu s Pravilnikom o projektni in drugi dokumentaciji ter obrazcih pri graditvi objektov (Uradni list RS, št. 30/23). Nova verzija obrazcev glede na prejšnjo uvaja nekaj sprememb, opisanih v nadaljevanju. "]
[]
["Za pravilno delovanje navigacijskih in drugih ukaznih gumbov je potrebno ob odpiranju dokumenta omogočiti uporabo makrov. Uporaba makrov je vezana izključno na delovanje navigacijskih gumbov. Vse osnovne funkcionalnosti, torej vnos in izpis podatkov, delujejo tudi brez delovanja makrov. Namesto z uporabo navigacijskih gumbov lahko posamezne liste izbirate v spodnji vrstici aplikacije, za tiskanje in pripravo pdf dokumentov pa uporabite ustrezne ukaze iz menija."]
[]
["DATOTEKE"]
[]
["Priloge so razdeljene v več datotek. Vsaka izmed datotek je pripravljena za posamezno skupino uporabnikov (projektanti, izvajalci, mnenjedajalci, upravni organ) tako, da vključuje vse faze posameznega postopka. Sklop za projektante je dodatno razdeljen glede na zahtevnost nameravane gradnje. \nSeznam datotek:\n- projektanti - obrazci za zahtevne in manj zahtevne objekte\n- projektanti - obrazci za nezahtevne objekte\n- projektanti - obrazci za spremembo namembnosti\n- projektanti - manjša rekonstrukcija\n- projektanti - legalizacije\n- projektanti - začasni objekti\n- izvajalci - DZO\n- mnenjedajalci - projektni pogoji in mnenja\n- upravni organ - odločbe\n\nV nadaljevanju so opisana navodila za uporabo obrazcev projektanti - legalizacije."]
[]
["ZAŠČITA PODATKOV"]
[]
["Vsi listi v datoteki so odklenjeni. Kljub temu priporočamo, da liste zaklenete tako, da na zavihku Pregled na traku v skupini Spremembe izberete Zaščiti list. Namen te osnovne zaščite je preprečiti nenamerno spreminjanje že izpolnjenih polj. \n\nOPOZORILO:\nPodatke lahko vnašate le v rumeno obarvana okenca, vrstice pa lahko dodajate le tam, kjer je to izrecno navedeno, sicer se podatki morda ne bodo prenesli pravilno!"]
[]
["KAZALO VSEBINE"]
[]
["List za vnos podatkov ima v zgornjem delu kazalo celotne vsebine. Vsebina je razporejena v tabelo, ki je razporejena tako kot je sestavljena vloga v posamezni fazi upravnega postopka. Naslovi delujejo kot povezave na posamezne liste."]
[]
["VNAŠANJE PODATKOV"]
[]
["Nekatere vsebine vnašamo s pomočjo spustnih menijev, pri nekaterih vsebinah pa je potrebno označiti izbiro. Pod posameznimi naslovi so opombe z dodatnimi navodili za izpolnjevanje, stolpec A na listu vnos podatkov pa je odklenjen in je namenjen internim opombam uporabnika."]
[]
["OBRAZCI ZA ZAHTEVKE"]
[]
["Obrazci z vlogami oziroma zahtevki imajo poleg vsebin, ki se prenašajo avtomatično, tudi vsebine, ki so specifične za posamezen zahtevek. Te vsebine je potrebno izpolniti na vsaki posamezni vlogi."]
[]
["DODATNE ZAHTEVE MNENJEDAJALCEV"]
[]
["Če mnenjedajalci zahtevajo dodatne podatke za izdajo projektnih pogojev, smernic, mnenj ali soglasij, in teh podatkov ni mogoče vpisati v obrazce, se zahtevani podatki pripravijo na ločenem listu, ki se priloži vlogi kot priloga, pri čemer se prilogo navede pod rubriko \"druge priloge\"."]
[]
["PRILAGAJANJE VIŠINE VRSTIC"]
[]
["Različne verzije programa na različne načine prikazujejo višino in širino celic, zato se lahko zgodi, da vsebina posameznih polj ni v celoti vidna. V tem primeru lahko višino celice spremenite tako, da v meniju Osnovno v skupini Poravnava izberete Prelomi besedilo, oziroma ročno spremenite višino vrstice tako, da najprej izberite celotno vrstico v stolpcu z oznakami vrstic (sivi stolpec s številkami vrstic na skrajni levi strani), na listu Osnovno v skupini Celice kliknite Oblika, nato pa v razdelku Velikost celice kliknite Samodejno prilagodi višino vrstice oziroma vpišete željeno višino vrstice. Enako velja za prilagajanje širine stolpcev."]
[]
["TISKANJE IN SHRANJEVANJE"]
[]
["Po končanem vnosu podatkov, potrebnih za izpolnjevanje določenega obrazca, lahko obrazec natisnete ali pa shranite kot .pdf dokument. Za tiskanje in pripravo .pdf dokumentov lahko uporabite ukazne gumbe ali pa izberete ustrezen ukaz v meniju. V skladu s pravilnikom mora biti vloga zapisana v formatu PDF/A-2b."]
[]
["PODPISOVANJE VLOG"]
[]
["Vloga se lahko v skladu z ZUP (63. člen) vloži v pisni obliki. Pisna vloga je vloga, ki je napisana ali natisnjena in lastnoročno podpisana (vloga v fizični obliki), ali vloga, ki je v elektronski obliki in je podpisana z varnim elektronskim podpisom s kvalificiranim potrdilom. Pisna vloga se praviloma izroči neposredno organu, pošlje po pošti, po elektronski poti ali preko osebe, ki opravlja posredovanje vlog kot svojo dejavnost (poslovni ponudnik). Vloga v elektronski obliki se vloži tako, da se pošlje po elektronski poti informacijskemu sistemu organa ali enotnemu informacijskemu sistemu za sprejem vlog.\n\nVlogo digitalno podpišete tako, da zahtevek shranite v obliki pdf, nato pa v pregledovalniku pdf datotek izberete ukaz vstavi digitalni podpis, za kar potrebujete kvalificirano potrdilo (npr. SIGEN-CA, ACNLB). Več o podpisovanju pdf datotek s certifikatom najdete na spodnji povezavi."]
["https://helpx.adobe.com/acrobat/using/certificate-based-signatures.html"]
[]
["POPRAVKI V VERZIJI 3.1"]
[]
["- dodan gumb za prenos podatkov iz datoteke za zahtevne in manj zahtevne objekta,\n- odklenjeni vsi obrazci,\n- popravljena letnica v Prilogi 19A,\n- poravljen format telefonskih številk."]
[]
["POPRAVKI V VERZIJI 3.2"]
[]
["- dodana gumba za avtomatično generiranje vlog za mnenja,\n- popravljena sklica na obrazcu 9A, polji C81 in C82,lk."]
[]
[]
["NADALJUJ NA VNOS PODATKOV"]

{"sheet":"VNOS PODATKOV","index":1,"n_rows":280,"n_cols":16,"rows_kept":280,"cut":false,"hidden":false,"merged":[[11,2,11,3],[170,2,170,4]]}
[null,null,"VSEBINA:"]
[null,null,"LEGALIZACIJE"]
[null,null,"obarvana polja delujejo kot povezave na ustrezne liste"]
[null,null,"PRIDOBIVANJE MNENJ","LEGALIZACIJA","OBJEKTI DALJŠEGA OBSTOJA",null,"UPORABNO DOVOLJENJE",null,"DOPOLNITEV VLOGE","PODALJŠANJE ROKA ZA DOPOLNITEV"]
[null,null,"ZAHTEVKI"]
[null,null,"9 - MNENJA","19A - ZAHTEVA ZA LEGALIZACIJO","19D - DOVOLJENJE ZA ODO BREZ GD","19E - DOVOLJENJE ZA ODO Z GD","19G - UPORABNO DOVOLJENJE ENOSTAN. STAVBE","19I - GRADBENO IN UPORABNO DOVOLJENJE","16A - DOPOLNITEV VLOGE","16B - ZAHTEVA ZA PODALJŠANJE ROKA ZA DOPOLNITEV"]
[null,null,"DOKUMENTACIJA ZA LEGALIZACIJO"]
[null,null,null,"1A - NASLOVNA STRAN PROJEKTNE DOKUMENTACIJE"]
[null,null,null,"19B - IZJAVA PROJEKTANTA IN POOBLAŠČENEGA STROKOVNJAKA V DOKUMENTACIJI ZA LEGALIZACIJO",null,"19F - IZJAVA ODO Z GD","19H - IZJAVA OBSTOJEČE ENOSTANOVANJSKE STAVBE"]
[null,null,null,"19C - SPLOŠNI PODATKI O OBJEKTU LEGALIZACIJE"]
[]
["PROSTOR ZA OPOMBE UPORABNIKA",null,"VNOS PODATKOV"]
[]
[null,"A","UDELEŽENCI PRI GRADITVI"]
[null,"A1","INVESTITOR"]
[null,"A1.1","INVESTITOR"]
[null,null,"INVESTITOR 1"]
[null,null,"ime in priimek ali naziv družbe",null,"Pred prenosom morata biti izvorna in ciljna datoteka odprti in shranjeni. Ob javljanju podvojenih imen kliknite Da oziroma Da za vse. Pri vpisu imen datotek ne pozabite na kratico .xlsm"]
[null,null,"naslov ali poslovni naslov družbe"]
[null,null,"davčna številka"]
[null,null,"INVESTITOR 2"]
[null,null,"ime in priimek ali naziv družbe"]
[null,null,"naslov ali poslovni naslov družbe"]
[null,null,"davčna številka"]
[null,null,"INVESTITOR 3"]
[null,null,"ime in priimek ali naziv družbe"]
[null,null,"naslov ali poslovni naslov družbe"]
[null,null,"davčna številka"]
[null,"A1.2","KONTAKTNA OSEBA"]
[null,null,"ime in priimek"]
[null,null,"telefonska številka"]
[null,null,"elektronski naslov"]
[null,"A1.3","POOBLAŠČENEC"]
[null,null,"podatki se vpišejo, če je imenovan pooblaščenec"]
[null,null,"Investitor imenuje pooblaščenca",false]
[null,null,"ime in priimek ali naziv družbe"]
[null,null,"naslov ali poslovni naslov družbe"]
[null,null,"kontaktna oseba"]
[null,null,"telefonska številka"]
[null,null,"elektronski naslov"]
[null,"A2","PROJEKTANT"]
[null,"A2.6","POOBLAŠČENI STROKOVNJAKI PRI LEGALIZACIJI"]
[null,null,"PODATKI O DRUŽBI"]
[null,null,"družba"]
[null,null,"naslov"]
[null,null,"odgovorna oseba družbe"]
[null,null,"POOBLAŠČENI STROKOVNJAK V DOKUMENTACIJI ZA LEGALIZACIJO"]
[null,null,"ime in priimek"]
[null,null,"strokovna izobrazba"]
[null,null,"identifikacijska številka"]
[null,"A3","NADZORNIK"]
[null,"A3.1","NADZORNIK"]
[null,null,"izpolniti v primeru pridobivanja UD za obstoječe enostanovanjske stavbe"]
[null,null,"PODATKI O DRUŽBI"]
[null,null,"naziv družbe"]
[null,null,"poslovni naslov družbe"]
[null,null,"davčna številka za pravne subjekte"]
[null,null,"odgovorna oseba nadzornika"]
[null,null,"VODJA NADZORA"]
[null,null,"vodja nadzora"]
[null,null,"strokovna izobrazba"]
[null,null,"identifikacijska številka"]
[null,"A4","IZVAJALEC"]
[null,"A4.1","IZVAJALEC"]
[null,null,"izpolniti v primeru pridobivanja UD za obstoječe enostanovanjske stavbe"]
[null,null,"naziv družbe"]
[null,null,"poslovni naslov družbe"]
[null,null,"odgovorna oseba izvajalca"]
[null,null,"vodja gradnje"]
[null,null,"strokovna izobrazba"]
[null,null,"identifikacijska številka"]
[null,"B","PODATKI O DOKUMENTACIJI"]
[null,null,"podatki se vpišejo kadar dokumentacijo izdela projektant"]
[null,"B1","DOKUMENTACIJA"]
[null,null,"vrsta dokumentacije","DL (dokumentacija za legalizacijo)"]
[null,null,"številka projekta"]
[null,null,"datum izdelave"]
[null,null,"datum spremembe"]
[null,"C","PODATKI O GRADNJI"]
[null,"C1","OSNOVNI PODATKI"]
[null,"C1.6","PODATKI O OBJEKTU, KI SE LEGALIZIRA"]
[null,null,"naziv objekta ali dela objekta"]
[null,null,"kratek opis"]
[null,null,"naslov stavbe, če je določen"]
[null,null,"vrsta objekta"]
[null,null,"zahtevnost objekta"]
[null,null,"zahteva se nanaša na del objekta",false]
[null,null,"objekt, zgrajen do 3. gradbene faze pred 17. 11. 2017",false]
[null,null,"objekt, zgrajen pred 30. 4. 2004",false]
[null,null,"v objektu se izvaja dejavnost gasilske službe v skladu z zakonom, ki ureja gasilstvo",false]
[null,null,"objekt je objekt gospodarske javne infrastrukture",false]
[null,null,"ZEMLJIŠČA, NA KATERIH SE NAHAJA OBJEKT"]
[null,null,"številka katastrske občine"]
[null,null,"katastrska občina"]
[null,null,"parc. št."]
[null,null,"velikost gradbene parcele"]
[null,null,"KLASIFIKACIJA PO CC-SI"]
[null,null,"stavba"]
[null,null,"gradbeno inženirski objekt"]
[null,null,"EVIDENTIRANOST"]
[null,null,"objekt je vpisan v kataster nepremičnin",false]
[null,null,"številka stavbe"]
[null,null,"številka posameznega dela stavbe"]
[null,null,"objekt gospodarske javne infrastrukture je evidentiran v katastru gospodarske javne infrastrukture ",false]
[null,null,"VRSTA NEDOVOLJENE GRADNJE"]
[null,null,"gradnja, izvedena brez gradbenega dovoljenja",false]
[null,null,"gradnja, izvedena v nasprotju s pogoji, določenimi z gradbenim dovoljenjem",false]
[null,null,"VELIKOST OBJEKTA"]
[null,null,"višina"]
[null,null,"dolžina"]
[null,null,"bruto etažna površina stavbe ali dela stavbe, ki se legalizira"]
[null,null,"bruto tlorisna površina gradbeno inženirskega objekta ali dela objekta, ki se legalizira"]
[null,null,"dolžina oziroma višina objekta, če gre za gradbenoinženirski objekt, ograjo ali podporni zid"]
[null,"C3","POSEBNI PRIMERI"]
[null,"C3.1","OBJEKT DRŽAVNEGA POMENA"]
[null,null,"objekt državnega pomena",false]
[null,"C3.2","POROČILO O VPLIVIH NA OKOLJE (PVO)"]
[null,null,"Podatki se vpišejo če gre za objekt z vplivi na okolje."]
[null,null,"objekt z vplivi na okolje",false]
[null,null,"številka poročila"]
[null,null,"datum izdelave poročila"]
[null,null,"izdelovalec poročila"]
[null,"C3.3","PREDHODNA PRESOJA VPLIVOV NA OKOLJE"]
[null,null,"podatki se vpišejo če gre za objekt z vplivi na okolje in če je bil izveden predhodni postopek v skladu z zakonom, ki ureja varstvo okolja"]
[null,null,"predhodna presoja vplivov na okolje",false]
[null,null,"številka sklepa"]
[null,null,"datum sklepa"]
[null,"C3.4","PODATKI O VODNI PRAVICI"]
[null,null,"navedejo se podatki o vodni pravici, če je bila pridobljena"]
[null,null,"številka "]
[null,null,"datum izdaje"]
[null,"C3.5","PODATKI O DOVOLJENJU ZA RAZISKAVO PODZEMNIH VODA"]
[null,null,"navedejo se podatki o dovoljenju za raziskavo podzemnih voda, če je bilo pridobljeno"]
[null,null,"številka "]
[null,null,"datum izdaje"]
[null,"C3.6","PODATKI O VODNIH ZEMLJIŠČIH ZARADI USTANOVITEV STVARNE SLUŽNOSTI"]
[null,null,"podatki se navedejo, če se poseg načrtuje na vodnih ali priobalnih zemljiščih v lasti države"]
[null,null,"katastrska občina"]
[null,null,"številka katastrske občine"]
[null,null,"parc. št."]
[null,null,"služnostni upravičenec"]
[null,null,"matična številka"]
[null,null,"davčna številka"]
[null,null,"zakoniti zastopnik"]
[null,"D","LOKACIJSKI PODATKI"]
[null,null,"podatki se vpisujejo, če investitor ne razpolaga z lokacijskim dovoljenjem"]
[null,"D1","PROSTORSKI AKT"]
[null,"D1.1","PROSTORSKI AKT"]
[null,null,"prostorski akt","OPN MOL"]
[null,null," navesti podatke  o prostorskem aktu, ki so veljali kadar koli v času od začetka gradnje objekta do začetka izdelave dokumentacije za legalizacijo"]
[null,"D3","KOMUNALNA OSKRBA"]
[null,"D3.1","OBJEKT JE PRIKLJUČEN NA KOMUNALNO INFRASTRUKTURO (NAVEDI, KATERO):"]
[null,null,"v stolpcu A odkljukajte ustrezne priključke, nato pa iz seznamov v stolpcih C in D izberite predvideno oskrbo in lokacijo ter vpišite katastrsko občino in parcelno številko."]
[null,null,null,"predvidena komunalna oskrba","predvidena kapaciteta oziroma moč","način priključitve","k. o.","parcelna št."]
[null,false,"OSKRBA S PITNO VODO",null,null,null,null,null,null,null,null,null,null,{"$f":"IF($B155=FALSE,\"\",MAX(N154:N$154)+1)","v":""}]
[null,false,"ELEKTRIKA",null,null,null,null,null,null,null,null,null,null,{"$f":"IF($B156=FALSE,\"\",MAX(N$154:N155)+1)","v":""}]
[null,false,"PLIN",null,null,null,null,null,null,null,null,null,null,{"$f":"IF($B157=FALSE,\"\",MAX(N$154:N156)+1)","v":""}]
[null,false,"TOPLOVOD",null,null,null,null,null,null,null,null,null,null,{"$f":"IF($B158=FALSE,\"\",MAX(N$154:N157)+1)","v":""}]
[null,false,"DRUGA OSKRBA Z ENERGIJO",null,null,null,null,null,null,null,null,null,null,{"$f":"IF($B159=FALSE,\"\",MAX(N$154:N158)+1)","v":""}]
[null,false,"ODVAJANJE FEKALNIH VODA",null,null,null,null,null,null,null,null,null,null,{"$f":"IF($B160=FALSE,\"\",MAX(N$154:N159)+1)","v":""}]
[null,false,"ODVAJANJE METEORNIH VODA",null,null,null,null,null,null,null,null,null,null,{"$f":"IF($B161=FALSE,\"\",MAX(N$154:N160)+1)","v":""}]
[null,false,"DOSTOP DO JAVNE POTI ALI CESTE",null,null,null,null,null,null,null,null,null,null,{"$f":"IF($B162=FALSE,\"\",MAX(N$154:N161)+1)","v":""}]
[null,false,"ZBIRANJE KOM. ODPADKOV",null,null,null,null,null,null,null,null,null,null,{"$f":"IF($B163=FALSE,\"\",MAX(N$154:N162)+1)","v":""}]
[null,false,"TELEFONIJA",null,null,null,null,null,null,null,null,null,null,{"$f":"IF($B164=FALSE,\"\",MAX(N$154:N163)+1)","v":""}]
[null,false,"KABELSKA TV",null,null,null,null,null,null,null,null,null,null,{"$f":"IF($B165=FALSE,\"\",MAX(N$154:N164)+1)","v":""}]
[null,false,"DRUGO (NAVEDI)",null,null,null,null,null,null,null,null,null,null,{"$f":"IF($B166=FALSE,\"\",MAX(N$154:N165)+1)","v":""}]
[null,false,null,null,null,null,null,null,null,null,null,null,null,{"$f":"IF($B167=FALSE,\"\",MAX(N$154:N166)+1)","v":""}]
[null,false,null,null,null,null,null,null,null,null,null,null,null,{"$f":"IF($B168=FALSE,\"\",MAX(N$154:N167)+1)","v":""}]
[null,false,null,null,null,null,null,null,null,null,null,null,null,{"$f":"IF($B169=FALSE,\"\",MAX(N$154:N168)+1)","v":""}]
[null,"E","POGOJI IN MNENJA"]
[null,null,"Izpolniti v IZP in DGD, če je za poseg relevantno. V stolpcu B odkljukajte pridobljene pogoje oziroma mnenja, nato pa v stolpec E vpišite oziroma izberite mnenjedajalca. V nekaterih primerih se bo stolpec F z naslovom mnenjedajalca izpolnil avtomatično, sicer pa ga navedite sami. V stolpec G in H navedite podatke o pridobljenih pogojih, v stolpec I in J pa o pridobljenih mnenjih."]
[null,"E1.1","SKLADNOST S PROSTORSKIMI AKTI"]
[null,null,null,null,"MNENJEDAJALEC",null,"PROJEKTNI POGOJI",null,"MNENJE"]
[null,null,"področje","naziv mnenja","navedba mnenjedajalca","naslov mnenjedajalca","številka projektnih pogojev","datum projektnih pogojev","datum podaje zahtevka za mnenje","številka mnenja","datum mnenja"]
[null,true,"OBČINA","SKLADNOST S PROSTORSKIMI AKTI"]
[null,"E1.2","VAROVANA OBMOČJA"]
[null,null,null,null,"MNENJEDAJALEC",null,"PROJEKTNI POGOJI",null,"MNENJE"]
[null,null,"področje","naziv mnenja","navedba mnenjedajalca","naslov mnenjedajalca","številka projektnih pogojev","datum projektnih pogojev","datum podaje zahtevka za mnenje","številka mnenja","datum mnenja"]
[null,true,"VARSTVO KULTURNE DEDIŠČINE - POSEG","KULTUROVARSTVENO MNENJE ZA POSEG",null,{"$f":"IFERROR(INDEX('BAZA PODATKOV'!$B$228:$B$235,MATCH(E179,'BAZA PODATKOV'!$A$228:$A$235,0),1),\"\")","v":""},null,null,null,null,null,{"$f":"IF($B179=FALSE,\"\",MAX(L$178:L178)+1)","v":1},null,null,null,{"$f":"IFERROR(INDEX($C$179:$K$188,MATCH(ROW()-ROW($P$178),$O$179:$O$188,0),1),\"\")","v":""}]
[null,false,"VARSTVO KULTURNE DEDIŠČINE - RAZISKAVA IN ODSTRANITEV","KULTURNOVARSTVENO MNENJE ZA RAZISKAVO IN ODSTRANITEV",null,{"$f":"IFERROR(INDEX('BAZA PODATKOV'!$B$228:$B$235,MATCH(E180,'BAZA PODATKOV'!$A$228:$A$235,0),1),\"\")","v":""},null,null,null,null,null,{"$f":"IF($B180=FALSE,\"\",MAX(L$178:L179)+1)","v":""},null,null,null,""]
[null,true,"VARSTVO NARAVE","NARAVOVARSTVENO MNENJE",null,{"$f":"IFERROR(INDEX('BAZA PODATKOV'!$B$228:$B$318,MATCH(E181,'BAZA PODATKOV'!$A$228:$A$318,0),1),\"\")","v":""},null,null,null,null,null,{"$f":"IF($B181=FALSE,\"\",MAX(L$178:L180)+1)","v":2},null,null,null,""]
[null,false,"VARSTVO PODZEMNIH JAM","MNENJE ZA POSEG V JAME",null,{"$f":"IFERROR(INDEX('BAZA PODATKOV'!$B$228:$B$318,MATCH(E182,'BAZA PODATKOV'!$A$228:$A$318,0),1),\"\")","v":""},null,null,null,null,null,{"$f":"IF($B182=FALSE,\"\",MAX(L$178:L181)+1)","v":""},null,null,null,""]
[null,false,"VARSTVO VODA","VODNO MNENJE",null,{"$f":"IFERROR(INDEX('BAZA PODATKOV'!$B$228:$B$318,MATCH(E183,'BAZA PODATKOV'!$A$228:$A$318,0),1),\"\")","v":""},null,null,null,null,null,{"$f":"IF($B183=FALSE,\"\",MAX(L$178:L182)+1)","v":""},null,null,null,""]
[null,true,"VARSTVO GOZDOV","MNENJE ZA GRADNJO V GOZDNEM PROSTORU",null,{"$f":"IFERROR(INDEX('BAZA PODATKOV'!$B$228:$B$318,MATCH(E184,'BAZA PODATKOV'!$A$228:$A$318,0),1),\"\")","v":""},null,null,null,null,null,{"$f":"IF($B184=FALSE,\"\",MAX(L$178:L183)+1)","v":3},null,null,null,""]
[null,false,"RIBIŠKI OKOLIŠ","MNENJE ZA GRADNJO IN DRUGE POSEGE NA OBMOČJU RIBIŠKEGA OKOLIŠA","Zavod za ribištvo Slovenije","Spodnje Gameljne 61a\n1000 Ljubljana",null,null,null,null,null,{"$f":"IF($B185=FALSE,\"\",MAX(L$178:L184)+1)","v":""},null,null,null,""]
[null,false,"OKOLJE DIVJADI","MNENJE ZA POSEGE V OKOLJE DIVJADI",null,{"$f":"IFERROR(INDEX('BAZA PODATKOV'!$B$228:$B$318,MATCH(E186,'BAZA PODATKOV'!$A$228:$A$318,0),1),\"\")","v":""},null,null,null,null,null,{"$f":"IF($B186=FALSE,\"\",MAX(L$178:L185)+1)","v":""}]
[null,false,"OBMOČJE MEJNEGA PREHODA","MNENJE ZA GRADNJO NA OBMOČJU MEJNEGA PREHODA",null,{"$f":"IFERROR(INDEX('BAZA PODATKOV'!$B$293:$B$301,MATCH(E187,'BAZA PODATKOV'!$A$293:$A$301,0),1),\"\")","v":""},null,null,null,null,null,{"$f":"IF($B187=FALSE,\"\",MAX(L$178:L186)+1)","v":""}]
[null,false,"CARINA","MNENJE ZA GRADNJO OBJEKTOV V PROSTI CONI CARINSKEGA OBMOČJA UNIJE","Finančna uprava Republike Slovenije","Šmartinska cesta 55, 1000 Ljubljana",null,null,null,null,null,{"$f":"IF($B188=FALSE,\"\",MAX(L$178:L187)+1)","v":""}]
[null,false,"LETALIŠČA","MNENJE ZA GRADNJO V OBMOČJU IZKLJUČNE, OMEJENE IN NADZOROVANE RABE","Javna agencija za civilno letalstvo","Kotnikova 19a, 1000 Ljubljana",null,null,null,null,null,{"$f":"IF($B189=FALSE,\"\",MAX(L$178:L188)+1)","v":""}]
[null,false,"OVIRE ZA ZRAČNI PROMET","MNENJE ZA POSTAVLJANJE OVIR ZA ZRAČNI PROMET",null,null,null,null,null,null,null,{"$f":"IF($B190=FALSE,\"\",MAX(L$178:L189)+1)","v":""}]
[null,false,"VARNOST PLOVBE","MNENJE ZA GRADNJO ALI OBNOVO OBJEKTOV PRISTANIŠKE INFRASTRUKTURE ALI OBJEKTOV, KI LAHKO VPLIVAJO NA VARNOST PLOVBE NA OBALI ALI V MORJU","Uprava RS za pomorstvo","Ukmarjev trg 2, 6000 Koper",null,null,null,null,null,{"$f":"IF($B191=FALSE,\"\",MAX(L$178:L190)+1)","v":""}]
[null,false,"OBJEKT V MEJAH RUDNIŠKEGA PROSTORA","MNENJE ZA GRADNJO V MEJAH RUDNIŠKEGA PROSTORA","Ministrstvo za infrastrukturo","Langusova ulica 4, 1535 Ljubljana",null,null,null,null,null,{"$f":"IF($B192=FALSE,\"\",MAX(L$178:L191)+1)","v":""}]
[null,false,"OBJEKT V VAROVALNEM PASU ŽIČNIŠKE NAPRAVE","MNENJE ZA GRADNJO Z VIDIKA VAROVANJA ŽIČNIC",null,null,null,null,null,null,null,{"$f":"IF($B193=FALSE,\"\",MAX(L$178:L192)+1)","v":""}]
[null,false,"DRUGO (NAVEDI)","MNENJE",null,null,null,null,null,null,null,{"$f":"IF($B194=FALSE,\"\",MAX(L$178:L193)+1)","v":""}]
[null,false,"DRUGO (NAVEDI)","MNENJE",null,null,null,null,null,null,null,{"$f":"IF($B195=FALSE,\"\",MAX(L$178:L194)+1)","v":""}]
[null,false,"DRUGO (NAVEDI)","MNENJE","Zavod","Naslov",null,null,null,null,null,{"$f":"IF($B196=FALSE,\"\",MAX(L$178:L195)+1)","v":""}]
[null,"E1.3","VAROVALNI PASOVI INFRASTRUKTURE"]
[null,null,null,null,"MNENJEDAJALEC",null,"PROJEKTNI POGOJI",null,"MNENJE"]
[null,null,"področje","naziv mnenja","navedba mnenjedajalca","naslov mnenjedajalca","številka projektnih pogojev","datum projektnih pogojev","datum podaje zahtevka za mnenje","številka mnenja","datum mnenja"]
[null,true,"VODOVOD","MNENJE",null,null,null,null,null,null,null,{"$f":"IF($B200=FALSE,\"\",MAX(L$199:L199)+1)","v":1}]
[null,false,"ELEKTRIKA","MNENJE Z VIDIKA VAROVANJA ENERGETSKIH SISTEMOV",null,{"$f":"IFERROR(INDEX('BAZA PODATKOV'!$B$213:$B$303,MATCH(E201,'BAZA PODATKOV'!$A$213:$A$303,0),1),\"\")","v":""},null,null,null,null,null,{"$f":"IF($B201=FALSE,\"\",MAX(L$199:L200)+1)","v":""}]
[null,true,"PLIN","MNENJE Z VIDIKA VAROVANJA ENERGETSKIH SISTEMOV",null,null,null,null,null,null,null,{"$f":"IF($B202=FALSE,\"\",MAX(L$199:L201)+1)","v":2}]
[null,false,"TOPLOVOD","MNENJE",null,null,null,null,null,null,null,{"$f":"IF($B203=FALSE,\"\",MAX(L$199:L202)+1)","v":""}]
[null,false,"FEKALNE VODE","MNENJE",null,null,null,null,null,null,null,{"$f":"IF($B204=FALSE,\"\",MAX(L$199:L203)+1)","v":""}]
[null,false,"METEORNE VODE","MNENJE",null,null,null,null,null,null,null,{"$f":"IF($B205=FALSE,\"\",MAX(L$199:L204)+1)","v":""}]
[null,false,"KOMUNIKACIJSKI VODI","MNENJE",null,null,null,null,null,null,null,{"$f":"IF($B206=FALSE,\"\",MAX(L$199:L205)+1)","v":""}]
[null,false,"JAVNE CESTE","MNENJE ZA GRADNJO Z VIDIKA VAROVANJA JAVNIH CEST",null,null,null,null,null,null,null,{"$f":"IF($B207=FALSE,\"\",MAX(L$199:L206)+1)","v":""}]
[null,false,"ŽELEZNICE - GRADNJA","MNENJE ZA GRADNJO V PRAGOVNEM PASU ŽELEZNICE",null,null,null,null,null,null,null,{"$f":"IF($B208=FALSE,\"\",MAX(L$199:L207)+1)","v":""}]
[null,false,"ŽELEZNICE","MNENJE ZA ZAGOTAVLJANJE INTEROPERABILNOSTI IN VARNOSTI",null,null,null,null,null,null,null,{"$f":"IF($B209=FALSE,\"\",MAX(L$199:L208)+1)","v":""}]
[null,false,"DRUGO (NAVEDI)","MNENJE",null,null,null,null,null,null,null,{"$f":"IF($B210=FALSE,\"\",MAX(L$199:L209)+1)","v":""}]
[null,false,"DRUGO (NAVEDI)","MNENJE",null,null,null,null,null,null,null,{"$f":"IF($B211=FALSE,\"\",MAX(L$199:L210)+1)","v":""}]
[null,false,"DRUGO (NAVEDI)","MNENJE",null,null,null,null,null,null,null,{"$f":"IF($B212=FALSE,\"\",MAX(L$199:L211)+1)","v":""}]
[null,"E1.4","PRIKLJUČEVANJE NA INFRASTRUKTURO"]
[null,null,null,null,"MNENJEDAJALEC",null,"PROJEKTNI POGOJI",null,"MNENJE"]
[null,null,"področje","naziv mnenja","navedba mnenjedajalca","naslov mnenjedajalca","številka projektnih pogojev","datum projektnih pogojev","datum podaje zahtevka za mnenje","številka mnenja","datum mnenja"]
[null,true,"VODOVOD","MNENJE ALI SOGLASJE ZA PRIKLJUČITEV",null,null,null,null,null,null,null,{"$f":"IF($B216=FALSE,\"\",MAX(L$215:L215)+1)","v":1}]
[null,false,"ELEKTRIKA","MNENJE ALI SOGLASJE ZA PRIKLJUČITEV",null,{"$f":"IFERROR(INDEX('BAZA PODATKOV'!$B$213:$B$303,MATCH(E217,'BAZA PODATKOV'!$A$213:$A$303,0),1),\"\")","v":""},null,null,null,null,null,{"$f":"IF($B217=FALSE,\"\",MAX(L$215:L216)+1)","v":""}]
[null,false,"PLIN","MNENJE ALI SOGLASJE ZA PRIKLJUČITEV",null,null,null,null,null,null,null,{"$f":"IF($B218=FALSE,\"\",MAX(L$215:L217)+1)","v":""}]
[null,true,"TOPLOVOD","MNENJE ALI SOGLASJE ZA PRIKLJUČITEV",null,null,null,null,null,null,null,{"$f":"IF($B219=FALSE,\"\",MAX(L$215:L218)+1)","v":2}]
[null,false,"FEKALNE VODE","MNENJE ALI SOGLASJE ZA PRIKLJUČITEV",null,null,null,null,null,null,null,{"$f":"IF($B220=FALSE,\"\",MAX(L$215:L219)+1)","v":""}]
[null,false,"METEORNE VODE","MNENJE ALI SOGLASJE ZA PRIKLJUČITEV",null,null,null,null,null,null,null,{"$f":"IF($B221=FALSE,\"\",MAX(L$215:L220)+1)","v":""}]
[null,false,"DOSTOP","MNENJE ALI SOGLASJE ZA PRIKLJUČITEV",null,null,null,null,null,null,null,{"$f":"IF($B222=FALSE,\"\",MAX(L$215:L221)+1)","v":""}]
[null,false,"KOMUNIKACIJE","MNENJE ALI SOGLASJE ZA PRIKLJUČITEV",null,null,null,null,null,null,null,{"$f":"IF($B223=FALSE,\"\",MAX(L$215:L222)+1)","v":""}]
[null,false,"DRUGO (NAVEDI)","MNENJE",null,null,null,null,null,null,null,{"$f":"IF($B224=FALSE,\"\",MAX(L$215:L223)+1)","v":""}]
[null,false,"DRUGO (NAVEDI)","MNENJE",null,null,null,null,null,null,null,{"$f":"IF($B225=FALSE,\"\",MAX(L$215:L224)+1)","v":""}]
[null,false,"DRUGO (NAVEDI)","MNENJE",null,null,null,null,null,null,null,{"$f":"IF($B226=FALSE,\"\",MAX(L$215:L225)+1)","v":""}]
[null,"E1.5","DRUGA MNENJA"]
[null,null,null,null,"MNENJEDAJALEC",null,"PROJEKTNI POGOJI",null,"MNENJE"]
[null,null,"področje","naziv mnenja","navedba mnenjedajalca","naslov mnenjedajalca","številka projektnih pogojev","datum projektnih pogojev","datum podaje zahtevka za mnenje","številka mnenja","datum mnenja"]
[null,false,"JEDRSKA VARNOST ","MNENJE H GRADNJAM, KI VPLIVAJO NA JEDRSKO VARNOST","Uprava RS za jedrsko varnost","Litostrojska cesta 54, 1000 Ljubljana",null,null,null,null,null,{"$f":"IF($B230=FALSE,\"\",MAX(L$229:L229)+1)","v":""}]
[null,true,"SEVALNA VARNOST ","MNENJE H GRADNJAM, KI VPLIVAJO NA SEVALNO VARNOST","Uprava RS za jedrsko varnost","Litostrojska cesta 54, 1000 Ljubljana",null,null,null,null,null,{"$f":"IF($B231=FALSE,\"\",MAX(L$229:L230)+1)","v":1}]
[null,false,"KMETIJSKO GOSPODARSTVO","MNENJE ZA GRADNJO ALI REKONSTRUKCIJO VELIKEGA OBRATA KMETIJSKEGA GOSPODARSTVA","Ministrstvo za kmetijstvo, gozdarstvo in prehrano","Dunajska 22, 1000 Ljubljana",null,null,null,null,null,{"$f":"IF($B232=FALSE,\"\",MAX(L$229:L231)+1)","v":""}]
[null,false,"VETERINA","MNENJE ZA GRADNJO OBJEKTA POD VETERINARSKIM NADZOROM","Uprava RS za varno hrano, veterinarstvo in varstvo rastlin","Dunajska 22, 1000 Ljubljana",null,null,null,null,null,{"$f":"IF($B233=FALSE,\"\",MAX(L$229:L232)+1)","v":""}]
[null,false,"OBRAMBA","MNENJE ZA GRADNJO NEKATERIH OBJEKTOV Z VIDIKA UPOŠTEVANJA OBRAMBNIH POTREB","Ministrstvo za obrambo","Vojkova cesta 55, 1000 Ljubljana",null,null,null,null,null,{"$f":"IF($B234=FALSE,\"\",MAX(L$229:L233)+1)","v":""}]
[null,false,"DRUGO (NAVEDI)","MNENJE",null,null,null,null,null,null,null,{"$f":"IF($B235=FALSE,\"\",MAX(L$229:L234)+1)","v":""}]
[null,false,"DRUGO (NAVEDI)","MNENJE",null,null,null,null,null,null,null,{"$f":"IF($B236=FALSE,\"\",MAX(L$229:L235)+1)","v":""}]
[null,true,"DRUGO (NAVEDI)","MNENJE",null,null,null,null,null,null,null,{"$f":"IF($B237=FALSE,\"\",MAX(L$229:L236)+1)","v":2}]
[null,"F","UPRAVNI POSTOPKI"]
[null,"F1","UPRAVNI ORGAN"]
[null,"F1.1","NAVEDBA ORGANA, PRI KATEREM SE VLAGA ZAHTEVA"]
[null,null,"Pri avtomatičnem generiranju PDF datotek z zahtevki za pogoje in mnenja se podatki vpišejo avtomatično."]
[null,null,"naziv"]
[null,null,"naslov"]
[null,"F1.2","IZDANE ODLOČBE V ZVEZI Z OBJEKTOM KI SE LEGALIZIRA"]
[null,null,"LOKACIJSKO DOVOLJENJE"]
[null,null,"navedba organa, ki je izdal lokacijsko dovoljenje"]
[null,null,"št. lokacijskega dovoljenja"]
[null,null,"datum lokacijskega dovoljenja"]
[null,null,"datum pravnomočnosti"]
[null,null,"GRADBENO DOVOLJENJE"]
[null,null,"navedba organa, ki je izdal odločbo"]
[null,null,"št. gradbenega dovoljenja za objekt ki se legalizira"]
[null,null,"datum izdaje"]
[null,null,"datum pravnomočnosti"]
[null,null,"SPREMEMBA GRADBENEGA DOVOLJENJA"]
[null,null,"navedba organa, ki je izdal odločbo"]
[null,null,"št. gradbenega dovoljenja za objekt ki se legalizira"]
[null,null,"datum izdaje"]
[null,null,"datum pravnomočnosti"]
[null,null,"INŠPEKCIJSKI UKREP V ZVEZI Z NEVARNO GRADNJO"]
[null,null,"navedba organa, ki je izdal odločbo"]
[null,null,"številka odločbe"]
[null,null,"datum izdaje"]
[null,null,"datum pravnomočnosti"]
[null,null,"OKOLJEVARSTVENO SOGLASJE"]
[null,null,"navedba organa, ki je izdal odločbo"]
[null,null,"številka odločbe"]
[null,null,"datum izdaje"]
[null,null,"datum pravnomočnosti"]
[null,null,"NARAVOVARSTVENO SOGLASJE"]
[null,null,"navedba organa, ki je izdal odločbo"]
[null,null,"številka odločbe"]
[null,null,"datum izdaje"]
[null,null,"datum pravnomočnosti"]
[null,null,"DRUGO (NAVEDI)"]
[null,null,"vrsta odločbe"]
[null,null,"navedba organa, ki je izdal odločbo"]
[null,null,"številka odločbe"]
[null,null,"datum izdaje"]
[null,null,"datum pravnomočnosti"]

{"sheet":"9A MNENJA VLOGA","index":2,"n_rows":109,"n_cols":3,"rows_kept":109,"cut":false,"hidden":false,"merged":[[71,0,71,1],[73,0,73,2],[78,0,78,2],[99,0,99,2],[1,0,1,2],[3,0,3,2],[17,0,17,2],[30,0,30,2],[69,0,69,1],[40,0,40,2],[55,0,55,2],[62,0,62,2],[64,0,64,1],[67,0,67,2]]}
["PRILOGA 9A"]
["ZAHTEVA ZA IZDAJO MNENJA"]
[]
[{"$f":"'VNOS PODATKOV'!C16","v":"INVESTITOR"}]
[{"$f":"'VNOS PODATKOV'!C17","v":"INVESTITOR 1"}]
[{"$f":"'VNOS PODATKOV'!C18","v":"ime in priimek ali naziv družbe"},null,{"$f":"'VNOS PODATKOV'!D18","v":0}]
[{"$f":"'VNOS PODATKOV'!C19","v":"naslov ali poslovni naslov družbe"},null,{"$f":"'VNOS PODATKOV'!D19","v":0}]
[{"$f":"'VNOS PODATKOV'!C20","v":"davčna številka"},null,{"$f":"'VNOS PODATKOV'!D20","v":0}]
[{"$f":"'VNOS PODATKOV'!C21","v":"INVESTITOR 2"}]
[{"$f":"'VNOS PODATKOV'!C22","v":"ime in priimek ali naziv družbe"},null,{"$f":"'VNOS PODATKOV'!D22","v":0}]
[{"$f":"'VNOS PODATKOV'!C23","v":"naslov ali poslovni naslov družbe"},null,{"$f":"'VNOS PODATKOV'!D23","v":0}]
[{"$f":"'VNOS PODATKOV'!C24","v":"davčna številka"},null,{"$f":"'VNOS PODATKOV'!D24","v":0}]
[{"$f":"'VNOS PODATKOV'!C25","v":"INVESTITOR 3"}]
[{"$f":"'VNOS PODATKOV'!C26","v":"ime in priimek ali naziv družbe"},null,{"$f":"'VNOS PODATKOV'!D26","v":0}]
[{"$f":"'VNOS PODATKOV'!C27","v":"naslov ali poslovni naslov družbe"},null,{"$f":"'VNOS PODATKOV'!D27","v":0}]
[{"$f":"'VNOS PODATKOV'!C28","v":"davčna številka"},null,{"$f":"'VNOS PODATKOV'!D28","v":0}]
[]
[{"$f":"'VNOS PODATKOV'!C29","v":"KONTAKTNA OSEBA"}]
[{"$f":"'VNOS PODATKOV'!C30","v":"ime in priimek"},null,{"$f":"'VNOS PODATKOV'!D30","v":0}]
[{"$f":"'VNOS PODATKOV'!C31","v":"telefonska številka"},null,{"$f":"'VNOS PODATKOV'!D31","v":0}]
[{"$f":"'VNOS PODATKOV'!C32","v":"elektronski naslov"},null,{"$f":"'VNOS PODATKOV'!D32","v":0}]
[]
[{"$f":"'VNOS PODATKOV'!C33","v":"POOBLAŠČENEC"}]
["podatki se vpišejo, kadar je imenovan pooblaščenec"]
[{"$f":"'VNOS PODATKOV'!C36","v":"ime in priimek ali naziv družbe"},null,{"$f":"'VNOS PODATKOV'!D36","v":0}]
[{"$f":"'VNOS PODATKOV'!C37","v":"naslov ali poslovni naslov družbe"},null,{"$f":"'VNOS PODATKOV'!D37","v":0}]
[{"$f":"'VNOS PODATKOV'!C38","v":"kontaktna oseba"},null,{"$f":"'VNOS PODATKOV'!D38","v":0}]
[{"$f":"'VNOS PODATKOV'!C39","v":"telefonska številka"},null,{"$f":"'VNOS PODATKOV'!D39","v":0}]
[{"$f":"'VNOS PODATKOV'!C40","v":"elektronski naslov"},null,{"$f":"'VNOS PODATKOV'!D40","v":0}]
[]
["NAVEDBA ORGANA, PRI KATEREM SE VLAGA ZAHTEVA"]
["naziv",null,"Zavod"]
["naslov",null,"Naslov"]
["naziv mnenja",null,"MNENJE"]
[]
["PRIDOBLJENI PROJEKTNI POGOJI"]
["vpišejo se podatki o projektnih pogojih, če so bili pridobljeni"]
["številka projektnih pogojev",null,"1654618/45"]
["datum projektnih pogojev",null,"27.06.2018"]
[]
["PODATKI O GRADNJI"]
["naziv gradnje",null,{"$f":"'VNOS PODATKOV'!D82","v":0}]
["kratek opis gradnje",null,{"$f":"'VNOS PODATKOV'!D83","v":0}]
[null,{"$f":"IF('VNOS PODATKOV'!D119=TRUE,TRUE,FALSE)","v":false},{"$f":"'VNOS PODATKOV'!C119","v":"objekt z vplivi na okolje"}]
[null,{"$f":"IF('VNOS PODATKOV'!D125=TRUE,TRUE,FALSE)","v":false},{"$f":"'VNOS PODATKOV'!C125","v":"predhodna presoja vplivov na okolje"}]
["VRSTE GRADNJE",null,""]
["navesti vse ustrezne vrste gradnje"]
[null,null,"NOVOGRADNJA - NOVOZGRAJEN OBJEKT"]
[null,null,"NOVOGRADNJA - PRIZIDAVA"]
[null,null,"REKONSTRUKCIJA"]
[null,null,"SPREMEMBA NAMEMBNOSTI"]
[null,null,"ODSTRANITEV CELOTNEGA OBJEKTA"]
[null,null,"LEGALIZACIJA"]
[null,null,"MANJŠA REKONSTRUKCIJA"]
[]
["PODATKI O PROJEKTNI DOKUMENTACIJI"]
["podatki se vpišejo, če dokumentacijo izdela projektant"]
["vrsta dokumentacije",null,{"$f":"'VNOS PODATKOV'!D75","v":"DL (dokumentacija za legalizacijo)"}]
["številka projekta",null,{"$f":"'VNOS PODATKOV'!D76","v":0}]
["datum izdelave",null,{"$f":"'VNOS PODATKOV'!D77","v":"00:00:00"}]
["projektant (naziv družbe)",null,{"$f":"'VNOS PODATKOV'!D44","v":0}]
[]
["PREDHODNA PRESOJA VPLIVOV NA OKOLJE"]
[{"$f":"'VNOS PODATKOV'!C124","v":"podatki se vpišejo če gre za objekt z vplivi na okolje in če je bil izveden predhodni postopek v skladu z zakonom, ki ureja varstvo okolja"}]
["številka sklepa",null,{"$f":"'VNOS PODATKOV'!D126","v":0}]
["datum sklepa",null,{"$f":"'VNOS PODATKOV'!D127","v":"00:00:00"}]
[]
["POROČILO O VPLIVIH NA OKOLJE (PVO)"]
["Podatki se vpišejo če gre za objekt z vplivi na okolje."]
["številka poročila",null,{"$f":"'VNOS PODATKOV'!D120","v":0}]
["datum izdelave poročila",null,{"$f":"'VNOS PODATKOV'!D121","v":"00:00:00"}]
["izdelovalec poročila",null,{"$f":"'VNOS PODATKOV'!D122","v":0}]
[]
["PODATKI O VODNI PRAVICI"]
["navedejo se podatki o vodni pravici, če je bila pridobljena"]
["številka ",null,{"$f":"'VNOS PODATKOV'!D130","v":0}]
["datum izdaje",null,{"$f":"'VNOS PODATKOV'!D131","v":"00:00:00"}]
[]
["PODATKI O DOVOLJENJU ZA RAZISKAVO PODZEMNIH VODA"]
["navedejo se podatki o dovoljenju za raziskavo podzemnih voda, če je bilo pridobljeno"]
["številka ",null,{"$f":"'VNOS PODATKOV'!D134","v":0}]
["datum izdaje",null,{"$f":"'VNOS PODATKOV'!D135","v":"00:00:00"}]
[]
["PODATKI O VODNIH ZEMLJIŠČIH ZARADI USTANOVITEV STVARNE SLUŽNOSTI"]
["podatki se navedejo, če se poseg načrtuje na vodnih ali priobalnih zemljiščih v lasti države"]
["številka katastrske občine",null,{"$f":"'VNOS PODATKOV'!D137","v":0}]
["katastrska občina",null,{"$f":"'VNOS PODATKOV'!D138","v":0}]
["parc. št.",null,{"$f":"'VNOS PODATKOV'!D139","v":0}]
["služnostni upravičenec",null,{"$f":"'VNOS PODATKOV'!D140","v":0}]
["matična številka",null,{"$f":"'VNOS PODATKOV'!D141","v":0}]
["davčna številka",null,{"$f":"'VNOS PODATKOV'!D142","v":0}]
["zakoniti zastopnik",null,{"$f":"'VNOS PODATKOV'!D143","v":0}]
[]
[null,null,"Na podlagi navedenih podatkov vas prosim za mnenje, ali je priložena dokumentacija skladna s predpisi iz vaše pristojnosti, ter za določitev morebitnih pogojev za izvedbo gradnje in uporabo objekta."]
[]
["datum",null,"podpis vložnika"]
[{"$f":"TODAY()","v":"2023-10-04"}]
[]
[]
["PRILOGE"]
["ustrezno označiti"]
[null,false,"Pooblastilo (če zahteve ne vlaga investitor)"]
[null,false,"Projektna dokumentacija za pridobitev mnenj in gradbenega dovoljenja - DGD (če gre za zahteven ali manj zahteven objekt)"]
[null,false,"Dokumentacija za pridobitev gradbenega dovoljenja za nezahtevne objekte - DNZO"]
[null,false,"Dokumentacija za pridobitev gradbenega dovoljenja za spremembo namembnosti - DSN"]
[null,false,"Dokumentacija za legalizacijo - DL"]
[null,false,"Poročilo o vplivih na okolje (če gre za objekt z vplivi na okolje)"]
[null,false,"Priloga 1 Vloge za izdajo vodnega soglasja, določene na spletni strani Direkcije RS za vode, \nče se poseg načrtuje na vodnih ali priobalnih zemljiščih v lasti države"]
[null,false,"Druge priloge (navesti, katere):"]

{"sheet":"19A LEG ZAHTEVA","index":3,"n_rows":166,"n_cols":6,"rows_kept":166,"cut":false,"hidden":false,"merged":[[1,0,1,2],[31,0,31,1],[31,2,31,5],[127,2,127,5],[128,2,128,5],[118,2,118,3],[119,2,119,3],[120,2,120,3],[121,2,121,3],[126,0,126,4],[124,0,124,1],[124,2,124,3],[122,2,122,3],[123,2,123,3],[125,0,125,5],[78,2,78,3],[111,2,111,3],[32,0,32,1],[32,2,32,5],[116,2,116,3],[105,2,105,3],[106,2,106,3],[68,0,68,4],[82,2,82,3],[83,2,83,3],[69,0,69,1],[69,2,69,3],[71,0,71,1],[73,2,73,3],[74,2,74,3],[71,2,71,3],[90,2,90,3],[102,2,102,3],[104,2,104,3],[108,2,108,3],[109,2,109,3],[110,2,110,3],[95,2,95,3],[92,2,92,3],[94,2,94,3],[79,2,79,3],[80,2,80,3],[91,2,91,3],[149,2,149,5],[150,2,150,5],[151,2,151,5],[153,2,153,5],[75,2,75,3],[76,2,76,3],[77,2,77,3],[97,2,97,3],[81,2,81,3],[84,2,84,3],[86,2,86,3],[96,2,96,3],[87,2,87,3],[93,2,93,3],[88,2,88,3],[89,2,89,3],[138,2,138,5],[136,2,136,5],[98,2,98,3],[99,2,99,3],[117,2,117,3],[131,2,131,5],[132,2,132,5],[133,2,133,5],[134,2,134,5],[135,2,135,5],[114,2,114,3],[112,2,112,3],[107,2,107,3],[100,2,100,3],[113,2,113,3],[101,2,101,3],[168,2,168,5],[154,2,154,5],[156,2,156,5],[165,2,165,5],[157,2,157,5],[160,2,160,5],[162,2,162,5],[164,2,164,5],[158,2,158,5],[166,2,166,5]]}
["PRILOGA 19A"]
["ZAHTEVA ZA IZDAJO ODLOČBE O LEGALIZACIJI\n(143. člen GZ-1)"]
[]
[{"$f":"'VNOS PODATKOV'!C16","v":"INVESTITOR"}]
[{"$f":"'VNOS PODATKOV'!C17","v":"INVESTITOR 1"}]
[{"$f":"'VNOS PODATKOV'!C18","v":"ime in priimek ali naziv družbe"},null,{"$f":"'VNOS PODATKOV'!D18","v":0}]
[{"$f":"'VNOS PODATKOV'!C19","v":"naslov ali poslovni naslov družbe"},null,{"$f":"'VNOS PODATKOV'!D19","v":0}]
[{"$f":"'VNOS PODATKOV'!C20","v":"davčna številka"},null,{"$f":"'VNOS PODATKOV'!D20","v":0}]
[{"$f":"'VNOS PODATKOV'!C21","v":"INVESTITOR 2"}]
[{"$f":"'VNOS PODATKOV'!C22","v":"ime in priimek ali naziv družbe"},null,{"$f":"'VNOS PODATKOV'!D22","v":0}]
[{"$f":"'VNOS PODATKOV'!C23","v":"naslov ali poslovni naslov družbe"},null,{"$f":"'VNOS PODATKOV'!D23","v":0}]
[{"$f":"'VNOS PODATKOV'!C24","v":"davčna številka"},null,{"$f":"'VNOS PODATKOV'!D24","v":0}]
[{"$f":"'VNOS PODATKOV'!C25","v":"INVESTITOR 3"}]
[{"$f":"'VNOS PODATKOV'!C26","v":"ime in priimek ali naziv družbe"},null,{"$f":"'VNOS PODATKOV'!D26","v":0}]
[{"$f":"'VNOS PODATKOV'!C27","v":"naslov ali poslovni naslov družbe"},null,{"$f":"'VNOS PODATKOV'!D27","v":0}]
[{"$f":"'VNOS PODATKOV'!C28","v":"davčna številka"},null,{"$f":"'VNOS PODATKOV'!D28","v":0}]
[]
[{"$f":"'VNOS PODATKOV'!C29","v":"KONTAKTNA OSEBA"}]
[{"$f":"'VNOS PODATKOV'!C30","v":"ime in priimek"},null,{"$f":"'VNOS PODATKOV'!D30","v":0}]
[{"$f":"'VNOS PODATKOV'!C31","v":"telefonska številka"},null,{"$f":"'VNOS PODATKOV'!D31","v":0}]
[{"$f":"'VNOS PODATKOV'!C32","v":"elektronski naslov"},null,{"$f":"'VNOS PODATKOV'!D32","v":0}]
[]
[{"$f":"'VNOS PODATKOV'!C33","v":"POOBLAŠČENEC"}]
[{"$f":"'VNOS PODATKOV'!C34","v":"podatki se vpišejo, če je imenovan pooblaščenec"}]
[{"$f":"'VNOS PODATKOV'!C36","v":"ime in priimek ali naziv družbe"},null,{"$f":"IF('VNOS PODATKOV'!D$35=TRUE,'VNOS PODATKOV'!D36, \"\")","v":""}]
[{"$f":"'VNOS PODATKOV'!C37","v":"naslov ali poslovni naslov družbe"},null,{"$f":"IF('VNOS PODATKOV'!D$35=TRUE,'VNOS PODATKOV'!D37, \"\")","v":""}]
[{"$f":"'VNOS PODATKOV'!C38","v":"kontaktna oseba"},null,{"$f":"IF('VNOS PODATKOV'!D$35=TRUE,'VNOS PODATKOV'!D38, \"\")","v":""}]
[{"$f":"'VNOS PODATKOV'!C39","v":"telefonska številka"},null,{"$f":"IF('VNOS PODATKOV'!D$35=TRUE,'VNOS PODATKOV'!D39, \"\")","v":""}]
[{"$f":"'VNOS PODATKOV'!C40","v":"elektronski naslov"},null,{"$f":"IF('VNOS PODATKOV'!D$35=TRUE,'VNOS PODATKOV'!D40, \"\")","v":""}]
[]
["NAVEDBA ORGANA, PRI KATEREM SE VLAGA ZAHTEVA"]
["naziv",null,{"$f":"'VNOS PODATKOV'!D242","v":0}]
["naslov",null,{"$f":"'VNOS PODATKOV'!D243","v":0}]
[]
["PODATKI O OBJEKTU"]
[null,{"$f":"IF('VNOS PODATKOV'!D88=TRUE,TRUE,FALSE)","v":false},{"$f":"'VNOS PODATKOV'!C88","v":"objekt, zgrajen do 3. gradbene faze pred 17. 11. 2017"}]
[null,{"$f":"IF('VNOS PODATKOV'!D89=TRUE,TRUE,FALSE)","v":false},{"$f":"'VNOS PODATKOV'!C89","v":"objekt, zgrajen pred 30. 4. 2004"}]
[null,{"$f":"IF('VNOS PODATKOV'!D90=TRUE,TRUE,FALSE)","v":false},{"$f":"'VNOS PODATKOV'!C90","v":"v objektu se izvaja dejavnost gasilske službe v skladu z zakonom, ki ureja gasilstvo"}]
[null,{"$f":"IF('VNOS PODATKOV'!D125=TRUE,TRUE,FALSE)","v":false},{"$f":"'VNOS PODATKOV'!C125","v":"predhodna presoja vplivov na okolje"}]
[{"$f":"'VNOS PODATKOV'!C82","v":"naziv objekta ali dela objekta"},null,{"$f":"'VNOS PODATKOV'!D82","v":0}]
["naslov stavbe, če je določen",null,{"$f":"'VNOS PODATKOV'!D84","v":0}]
[]
["ZEMLJIŠČA, NA KATERIH SE NAHAJA OBJEKT"]
[{"$f":"'VNOS PODATKOV'!C93","v":"številka katastrske občine"},null,{"$f":"'VNOS PODATKOV'!D93","v":0}]
[{"$f":"'VNOS PODATKOV'!C94","v":"katastrska občina"},null,{"$f":"'VNOS PODATKOV'!D94","v":0}]
[{"$f":"'VNOS PODATKOV'!C95","v":"parc. št."},null,{"$f":"'VNOS PODATKOV'!D95","v":0}]
[{"$f":"'VNOS PODATKOV'!C96","v":"velikost gradbene parcele"},null,{"$f":"'VNOS PODATKOV'!D96","v":0}]
[]
["PODATKI O DOKUMENTACIJI"]
["številka dokumentacije",null,{"$f":"'VNOS PODATKOV'!D76","v":0}]
[{"$f":"'VNOS PODATKOV'!C77","v":"datum izdelave"},null,{"$f":"'VNOS PODATKOV'!D77","v":"00:00:00"}]
["projektant (naziv družbe)",null,{"$f":"'VNOS PODATKOV'!D44","v":0}]
[]
["IZDANE ODLOČBE V ZVEZI Z OBJEKTOM"]
[null,null,"navedba organa, \nki je izdal odločbo","številka odločbe","datum odločbe","datum pravnomočnosti"]
["lokacijsko dovoljenje",null,{"$f":"'VNOS PODATKOV'!D246","v":0},{"$f":"'VNOS PODATKOV'!D247","v":0},{"$f":"'VNOS PODATKOV'!D248","v":"00:00:00"}]
["gradbeno dovoljenje",null,{"$f":"'VNOS PODATKOV'!D251","v":0},{"$f":"'VNOS PODATKOV'!D252","v":0},{"$f":"'VNOS PODATKOV'!D253","v":"00:00:00"},{"$f":"'VNOS PODATKOV'!D254","v":"00:00:00"}]
["inšpekcijski ukrep v zvezi z nevarno gradnjo",null,{"$f":"'VNOS PODATKOV'!D261","v":0},{"$f":"'VNOS PODATKOV'!D262","v":0},{"$f":"'VNOS PODATKOV'!D263","v":"00:00:00"},{"$f":"'VNOS PODATKOV'!D264","v":"00:00:00"}]
["okoljevarstveno soglasje",null,{"$f":"'VNOS PODATKOV'!D266","v":0},{"$f":"'VNOS PODATKOV'!D267","v":0},{"$f":"'VNOS PODATKOV'!D268","v":"00:00:00"},{"$f":"'VNOS PODATKOV'!D269","v":"00:00:00"}]
["naravovarstveno soglasje",null,{"$f":"'VNOS PODATKOV'!D271","v":0},{"$f":"'VNOS PODATKOV'!D272","v":0},{"$f":"'VNOS PODATKOV'!D273","v":"00:00:00"},{"$f":"'VNOS PODATKOV'!D274","v":"00:00:00"}]
[{"$f":"'VNOS PODATKOV'!D276","v":0},null,{"$f":"'VNOS PODATKOV'!D277","v":0},{"$f":"'VNOS PODATKOV'!D278","v":0},{"$f":"'VNOS PODATKOV'!D279","v":"00:00:00"},{"$f":"'VNOS PODATKOV'!D280","v":"00:00:00"}]
[]
["PREDHODNA PRESOJA VPLIVOV NA OKOLJE"]
["podatki se vpišejo, če je bil izveden predhodni postopek v skladu z zakonom, ki ureja varstvo okolja"]
[{"$f":"'VNOS PODATKOV'!C126","v":"številka sklepa"},null,{"$f":"'VNOS PODATKOV'!D126","v":0}]
[{"$f":"'VNOS PODATKOV'!C127","v":"datum sklepa"},null,{"$f":"'VNOS PODATKOV'!D127","v":"00:00:00"}]
[]
["MNENJA"]
["vpišejo se podatki za vsa pridobljena mnenja "]
[null,null,{"$f":"'VNOS PODATKOV'!E174","v":"navedba mnenjedajalca"},null,{"$f":"'VNOS PODATKOV'!J174","v":"številka mnenja"},{"$f":"'VNOS PODATKOV'!K174","v":"datum mnenja"}]
[{"$f":"'VNOS PODATKOV'!C172","v":"SKLADNOST S PROSTORSKIMI AKTI"}]
["OBČINA",null,{"$f":"'VNOS PODATKOV'!E175","v":0},null,{"$f":"'VNOS PODATKOV'!J175","v":0},{"$f":"'VNOS PODATKOV'!K175","v":"00:00:00"}]
[{"$f":"'VNOS PODATKOV'!C176","v":"VAROVANA OBMOČJA"}]
[{"$f":"IFERROR(INDEX('VNOS PODATKOV'!$C$179:$K$196,MATCH(ROW()-ROW(A$73),'VNOS PODATKOV'!$L$179:$L$196,0),1),\"\")","v":"VARSTVO KULTURNE DEDIŠČINE - POSEG"},null,{"$f":"IFERROR(INDEX('VNOS PODATKOV'!$C$179:$K$196,MATCH(ROW()-ROW(A$73),'VNOS PODATKOV'!$L$179:$L$196,0),3),\"\")","v":0},null,{"$f":"IFERROR(INDEX('VNOS PODATKOV'!$C$179:$K$196,MATCH(ROW()-ROW(A$73),'VNOS PODATKOV'!$L$179:$L$196,0),8),\"\")","v":0},{"$f":"IFERROR(INDEX('VNOS PODATKOV'!$C$179:$K$196,MATCH(ROW()-ROW(B$73),'VNOS PODATKOV'!$L$179:$L$196,0),9),\"\")","v":"00:00:00"}]
[{"$f":"IFERROR(INDEX('VNOS PODATKOV'!$C$179:$K$196,MATCH(ROW()-ROW(A$73),'VNOS PODATKOV'!$L$179:$L$196,0),1),\"\")","v":"VARSTVO NARAVE"},null,{"$f":"IFERROR(INDEX('VNOS PODATKOV'!$C$179:$K$196,MATCH(ROW()-ROW(A$73),'VNOS PODATKOV'!$L$179:$L$196,0),3),\"\")","v":0},null,{"$f":"IFERROR(INDEX('VNOS PODATKOV'!$C$179:$K$196,MATCH(ROW()-ROW(A$73),'VNOS PODATKOV'!$L$179:$L$196,0),8),\"\")","v":0},{"$f":"IFERROR(INDEX('VNOS PODATKOV'!$C$179:$K$196,MATCH(ROW()-ROW(B$73),'VNOS PODATKOV'!$L$179:$L$196,0),9),\"\")","v":"00:00:00"}]
[{"$f":"IFERROR(INDEX('VNOS PODATKOV'!$C$179:$K$196,MATCH(ROW()-ROW(A$73),'VNOS PODATKOV'!$L$179:$L$196,0),1),\"\")","v":"VARSTVO GOZDOV"},null,{"$f":"IFERROR(INDEX('VNOS PODATKOV'!$C$179:$K$196,MATCH(ROW()-ROW(A$73),'VNOS PODATKOV'!$L$179:$L$196,0),3),\"\")","v":0},null,{"$f":"IFERROR(INDEX('VNOS PODATKOV'!$C$179:$K$196,MATCH(ROW()-ROW(A$73),'VNOS PODATKOV'!$L$179:$L$196,0),8),\"\")","v":0},{"$f":"IFERROR(INDEX('VNOS PODATKOV'!$C$179:$K$196,MATCH(ROW()-ROW(B$73),'VNOS PODATKOV'!$L$179:$L$196,0),9),\"\")","v":"00:00:00"}]
[{"$f":"IFERROR(INDEX('VNOS PODATKOV'!$C$179:$K$196,MATCH(ROW()-ROW(A$73),'VNOS PODATKOV'!$L$179:$L$196,0),1),\"\")","v":""},null,{"$f":"IFERROR(INDEX('VNOS PODATKOV'!$C$179:$K$196,MATCH(ROW()-ROW(A$73),'VNOS PODATKOV'!$L$179:$L$196,0),3),\"\")","v":""},null,{"$f":"IFERROR(INDEX('VNOS PODATKOV'!$C$179:$K$196,MATCH(ROW()-ROW(A$73),'VNOS PODATKOV'!$L$179:$L$196,0),8),\"\")","v":""},{"$f":"IFERROR(INDEX('VNOS PODATKOV'!$C$179:$K$196,MATCH(ROW()-ROW(B$73),'VNOS PODATKOV'!$L$179:$L$196,0),9),\"\")","v":""}]
[{"$f":"IFERROR(INDEX('VNOS PODATKOV'!$C$179:$K$196,MATCH(ROW()-ROW(A$73),'VNOS PODATKOV'!$L$179:$L$196,0),1),\"\")","v":""},null,{"$f":"IFERROR(INDEX('VNOS PODATKOV'!$C$179:$K$196,MATCH(ROW()-ROW(A$73),'VNOS PODATKOV'!$L$179:$L$196,0),3),\"\")","v":""},null,{"$f":"IFERROR(INDEX('VNOS PODATKOV'!$C$179:$K$196,MATCH(ROW()-ROW(A$73),'VNOS PODATKOV'!$L$179:$L$196,0),8),\"\")","v":""},{"$f":"IFERROR(INDEX('VNOS PODATKOV'!$C$179:$K$196,MATCH(ROW()-ROW(B$73),'VNOS PODATKOV'!$L$179:$L$196,0),9),\"\")","v":""}]
[{"$f":"IFERROR(INDEX('VNOS PODATKOV'!$C$179:$K$196,MATCH(ROW()-ROW(A$73),'VNOS PODATKOV'!$L$179:$L$196,0),1),\"\")","v":""},null,{"$f":"IFERROR(INDEX('VNOS PODATKOV'!$C$179:$K$196,MATCH(ROW()-ROW(A$73),'VNOS PODATKOV'!$L$179:$L$196,0),3),\"\")","v":""},null,{"$f":"IFERROR(INDEX('VNOS PODATKOV'!$C$179:$K$196,MATCH(ROW()-ROW(A$73),'VNOS PODATKOV'!$L$179:$L$196,0),8),\"\")","v":""},{"$f":"IFERROR(INDEX('VNOS PODATKOV'!$C$179:$K$196,MATCH(ROW()-ROW(B$73),'VNOS PODATKOV'!$L$179:$L$196,0),9),\"\")","v":""}]
[{"$f":"IFERROR(INDEX('VNOS PODATKOV'!$C$179:$K$196,MATCH(ROW()-ROW(A$73),'VNOS PODATKOV'!$L$179:$L$196,0),1),\"\")","v":""},null,{"$f":"IFERROR(INDEX('VNOS PODATKOV'!$C$179:$K$196,MATCH(ROW()-ROW(A$73),'VNOS PODATKOV'!$L$179:$L$196,0),3),\"\")","v":""},null,{"$f":"IFERROR(INDEX('VNOS PODATKOV'!$C$179:$K$196,MATCH(ROW()-ROW(A$73),'VNOS PODATKOV'!$L$179:$L$196,0),8),\"\")","v":""},{"$f":"IFERROR(INDEX('VNOS PODATKOV'!$C$179:$K$196,MATCH(ROW()-ROW(B$73),'VNOS PODATKOV'!$L$179:$L$196,0),9),\"\")","v":""}]
[{"$f":"IFERROR(INDEX('VNOS PODATKOV'!$C$179:$K$196,MATCH(ROW()-ROW(A$73),'VNOS PODATKOV'!$L$179:$L$196,0),1),\"\")","v":""},null,{"$f":"IFERROR(INDEX('VNOS PODATKOV'!$C$179:$K$196,MATCH(ROW()-ROW(A$73),'VNOS PODATKOV'!$L$179:$L$196,0),3),\"\")","v":""},null,{"$f":"IFERROR(INDEX('VNOS PODATKOV'!$C$179:$K$196,MATCH(ROW()-ROW(A$73),'VNOS PODATKOV'!$L$179:$L$196,0),8),\"\")","v":""},{"$f":"IFERROR(INDEX('VNOS PODATKOV'!$C$179:$K$196,MATCH(ROW()-ROW(B$73),'VNOS PODATKOV'!$L$179:$L$196,0),9),\"\")","v":""}]
[{"$f":"IFERROR(INDEX('VNOS PODATKOV'!$C$179:$K$196,MATCH(ROW()-ROW(A$73),'VNOS PODATKOV'!$L$179:$L$196,0),1),\"\")","v":""},null,{"$f":"IFERROR(INDEX('VNOS PODATKOV'!$C$179:$K$196,MATCH(ROW()-ROW(A$73),'VNOS PODATKOV'!$L$179:$L$196,0),3),\"\")","v":""},null,{"$f":"IFERROR(INDEX('VNOS PODATKOV'!$C$179:$K$196,MATCH(ROW()-ROW(A$73),'VNOS PODATKOV'!$L$179:$L$196,0),8),\"\")","v":""},{"$f":"IFERROR(INDEX('VNOS PODATKOV'!$C$179:$K$196,MATCH(ROW()-ROW(B$73),'VNOS PODATKOV'!$L$179:$L$196,0),9),\"\")","v":""}]
[{"$f":"IFERROR(INDEX('VNOS PODATKOV'!$C$179:$K$196,MATCH(ROW()-ROW(A$73),'VNOS PODATKOV'!$L$179:$L$196,0),1),\"\")","v":""},null,{"$f":"IFERROR(INDEX('VNOS PODATKOV'!$C$179:$K$196,MATCH(ROW()-ROW(A$73),'VNOS PODATKOV'!$L$179:$L$196,0),3),\"\")","v":""},null,{"$f":"IFERROR(INDEX('VNOS PODATKOV'!$C$179:$K$196,MATCH(ROW()-ROW(A$73),'VNOS PODATKOV'!$L$179:$L$196,0),8),\"\")","v":""},{"$f":"IFERROR(INDEX('VNOS PODATKOV'!$C$179:$K$196,MATCH(ROW()-ROW(B$73),'VNOS PODATKOV'!$L$179:$L$196,0),9),\"\")","v":""}]
[{"$f":"IFERROR(INDEX('VNOS PODATKOV'!$C$179:$K$196,MATCH(ROW()-ROW(A$73),'VNOS PODATKOV'!$L$179:$L$196,0),1),\"\")","v":""},null,{"$f":"IFERROR(INDEX('VNOS PODATKOV'!$C$179:$K$196,MATCH(ROW()-ROW(A$73),'VNOS PODATKOV'!$L$179:$L$196,0),3),\"\")","v":""},null,{"$f":"IFERROR(INDEX('VNOS PODATKOV'!$C$179:$K$196,MATCH(ROW()-ROW(A$73),'VNOS PODATKOV'!$L$179:$L$196,0),8),\"\")","v":""},{"$f":"IFERROR(INDEX('VNOS PODATKOV'!$C$179:$K$196,MATCH(ROW()-ROW(B$73),'VNOS PODATKOV'!$L$179:$L$196,0),9),\"\")","v":""}]
[{"$f":"IFERROR(INDEX('VNOS PODATKOV'!$C$179:$K$196,MATCH(ROW()-ROW(A$73),'VNOS PODATKOV'!$L$179:$L$196,0),1),\"\")","v":""},null,{"$f":"IFERROR(INDEX('VNOS PODATKOV'!$C$179:$K$196,MATCH(ROW()-ROW(A$73),'VNOS PODATKOV'!$L$179:$L$196,0),3),\"\")","v":""},null,{"$f":"IFERROR(INDEX('VNOS PODATKOV'!$C$179:$K$196,MATCH(ROW()-ROW(A$73),'VNOS PODATKOV'!$L$179:$L$196,0),8),\"\")","v":""},{"$f":"IFERROR(INDEX('VNOS PODATKOV'!$C$179:$K$196,MATCH(ROW()-ROW(B$73),'VNOS PODATKOV'!$L$179:$L$196,0),9),\"\")","v":""}]
[{"$f":"'VNOS PODATKOV'!C197","v":"VAROVALNI PASOVI INFRASTRUKTURE"}]
[{"$f":"IFERROR(INDEX('VNOS PODATKOV'!$C$200:$K$212,MATCH(ROW()-ROW(A$86),'VNOS PODATKOV'!$L$200:$L$212,0),1),\"\")","v":"VODOVOD"},null,{"$f":"IFERROR(INDEX('VNOS PODATKOV'!$C$200:$K$212,MATCH(ROW()-ROW(A$86),'VNOS PODATKOV'!$L$200:$L$212,0),3),\"\")","v":0},null,{"$f":"IFERROR(INDEX('VNOS PODATKOV'!$C$200:$K$212,MATCH(ROW()-ROW(A$86),'VNOS PODATKOV'!$L$200:$L$212,0),8),\"\")","v":0},{"$f":"IFERROR(INDEX('VNOS PODATKOV'!$C$200:$K$212,MATCH(ROW()-ROW(B$86),'VNOS PODATKOV'!$L$200:$L$212,0),9),\"\")","v":"00:00:00"}]
[{"$f":"IFERROR(INDEX('VNOS PODATKOV'!$C$200:$K$212,MATCH(ROW()-ROW(A$86),'VNOS PODATKOV'!$L$200:$L$212,0),1),\"\")","v":"PLIN"},null,{"$f":"IFERROR(INDEX('VNOS PODATKOV'!$C$200:$K$212,MATCH(ROW()-ROW(A$86),'VNOS PODATKOV'!$L$200:$L$212,0),3),\"\")","v":0},null,{"$f":"IFERROR(INDEX('VNOS PODATKOV'!$C$200:$K$212,MATCH(ROW()-ROW(A$86),'VNOS PODATKOV'!$L$200:$L$212,0),8),\"\")","v":0},{"$f":"IFERROR(INDEX('VNOS PODATKOV'!$C$200:$K$212,MATCH(ROW()-ROW(B$86),'VNOS PODATKOV'!$L$200:$L$212,0),9),\"\")","v":"00:00:00"}]
[{"$f":"IFERROR(INDEX('VNOS PODATKOV'!$C$200:$K$212,MATCH(ROW()-ROW(A$86),'VNOS PODATKOV'!$L$200:$L$212,0),1),\"\")","v":""},null,{"$f":"IFERROR(INDEX('VNOS PODATKOV'!$C$200:$K$212,MATCH(ROW()-ROW(A$86),'VNOS PODATKOV'!$L$200:$L$212,0),3),\"\")","v":""},null,{"$f":"IFERROR(INDEX('VNOS PODATKOV'!$C$200:$K$212,MATCH(ROW()-ROW(A$86),'VNOS PODATKOV'!$L$200:$L$212,0),8),\"\")","v":""},{"$f":"IFERROR(INDEX('VNOS PODATKOV'!$C$200:$K$212,MATCH(ROW()-ROW(B$86),'VNOS PODATKOV'!$L$200:$L$212,0),9),\"\")","v":""}]
[{"$f":"IFERROR(INDEX('VNOS PODATKOV'!$C$200:$K$212,MATCH(ROW()-ROW(A$86),'VNOS PODATKOV'!$L$200:$L$212,0),1),\"\")","v":""},null,{"$f":"IFERROR(INDEX('VNOS PODATKOV'!$C$200:$K$212,MATCH(ROW()-ROW(A$86),'VNOS PODATKOV'!$L$200:$L$212,0),3),\"\")","v":""},null,{"$f":"IFERROR(INDEX('VNOS PODATKOV'!$C$200:$K$212,MATCH(ROW()-ROW(A$86),'VNOS PODATKOV'!$L$200:$L$212,0),8),\"\")","v":""},{"$f":"IFERROR(INDEX('VNOS PODATKOV'!$C$200:$K$212,MATCH(ROW()-ROW(B$86),'VNOS PODATKOV'!$L$200:$L$212,0),9),\"\")","v":""}]
[{"$f":"IFERROR(INDEX('VNOS PODATKOV'!$C$200:$K$212,MATCH(ROW()-ROW(A$86),'VNOS PODATKOV'!$L$200:$L$212,0),1),\"\")","v":""},null,{"$f":"IFERROR(INDEX('VNOS PODATKOV'!$C$200:$K$212,MATCH(ROW()-ROW(A$86),'VNOS PODATKOV'!$L$200:$L$212,0),3),\"\")","v":""},null,{"$f":"IFERROR(INDEX('VNOS PODATKOV'!$C$200:$K$212,MATCH(ROW()-ROW(A$86),'VNOS PODATKOV'!$L$200:$L$212,0),8),\"\")","v":""},{"$f":"IFERROR(INDEX('VNOS PODATKOV'!$C$200:$K$212,MATCH(ROW()-ROW(B$86),'VNOS PODATKOV'!$L$200:$L$212,0),9),\"\")","v":""}]
[{"$f":"IFERROR(INDEX('VNOS PODATKOV'!$C$200:$K$212,MATCH(ROW()-ROW(A$86),'VNOS PODATKOV'!$L$200:$L$212,0),1),\"\")","v":""},null,{"$f":"IFERROR(INDEX('VNOS PODATKOV'!$C$200:$K$212,MATCH(ROW()-ROW(A$86),'VNOS PODATKOV'!$L$200:$L$212,0),3),\"\")","v":""},null,{"$f":"IFERROR(INDEX('VNOS PODATKOV'!$C$200:$K$212,MATCH(ROW()-ROW(A$86),'VNOS PODATKOV'!$L$200:$L$212,0),8),\"\")","v":""},{"$f":"IFERROR(INDEX('VNOS PODATKOV'!$C$200:$K$212,MATCH(ROW()-ROW(B$86),'VNOS PODATKOV'!$L$200:$L$212,0),9),\"\")","v":""}]
[{"$f":"IFERROR(INDEX('VNOS PODATKOV'!$C$200:$K$212,MATCH(ROW()-ROW(A$86),'VNOS PODATKOV'!$L$200:$L$212,0),1),\"\")","v":""},null,{"$f":"IFERROR(INDEX('VNOS PODATKOV'!$C$200:$K$212,MATCH(ROW()-ROW(A$86),'VNOS PODATKOV'!$L$200:$L$212,0),3),\"\")","v":""},null,{"$f":"IFERROR(INDEX('VNOS PODATKOV'!$C$200:$K$212,MATCH(ROW()-ROW(A$86),'VNOS PODATKOV'!$L$200:$L$212,0),8),\"\")","v":""},{"$f":"IFERROR(INDEX('VNOS PODATKOV'!$C$200:$K$212,MATCH(ROW()-ROW(B$86),'VNOS PODATKOV'!$L$200:$L$212,0),9),\"\")","v":""}]
[{"$f":"IFERROR(INDEX('VNOS PODATKOV'!$C$200:$K$212,MATCH(ROW()-ROW(A$86),'VNOS PODATKOV'!$L$200:$L$212,0),1),\"\")","v":""},null,{"$f":"IFERROR(INDEX('VNOS PODATKOV'!$C$200:$K$212,MATCH(ROW()-ROW(A$86),'VNOS PODATKOV'!$L$200:$L$212,0),3),\"\")","v":""},null,{"$f":"IFERROR(INDEX('VNOS PODATKOV'!$C$200:$K$212,MATCH(ROW()-ROW(A$86),'VNOS PODATKOV'!$L$200:$L$212,0),8),\"\")","v":""},{"$f":"IFERROR(INDEX('VNOS PODATKOV'!$C$200:$K$212,MATCH(ROW()-ROW(B$86),'VNOS PODATKOV'!$L$200:$L$212,0),9),\"\")","v":""}]
[{"$f":"IFERROR(INDEX('VNOS PODATKOV'!$C$200:$K$212,MATCH(ROW()-ROW(A$86),'VNOS PODATKOV'!$L$200:$L$212,0),1),\"\")","v":""},null,{"$f":"IFERROR(INDEX('VNOS PODATKOV'!$C$200:$K$212,MATCH(ROW()-ROW(A$86),'VNOS PODATKOV'!$L$200:$L$212,0),3),\"\")","v":""},null,{"$f":"IFERROR(INDEX('VNOS PODATKOV'!$C$200:$K$212,MATCH(ROW()-ROW(A$86),'VNOS PODATKOV'!$L$200:$L$212,0),8),\"\")","v":""},{"$f":"IFERROR(INDEX('VNOS PODATKOV'!$C$200:$K$212,MATCH(ROW()-ROW(B$86),'VNOS PODATKOV'!$L$200:$L$212,0),9),\"\")","v":""}]
[{"$f":"IFERROR(INDEX('VNOS PODATKOV'!$C$200:$K$212,MATCH(ROW()-ROW(A$86),'VNOS PODATKOV'!$L$200:$L$212,0),1),\"\")","v":""},null,{"$f":"IFERROR(INDEX('VNOS PODATKOV'!$C$200:$K$212,MATCH(ROW()-ROW(A$86),'VNOS PODATKOV'!$L$200:$L$212,0),3),\"\")","v":""},null,{"$f":"IFERROR(INDEX('VNOS PODATKOV'!$C$200:$K$212,MATCH(ROW()-ROW(A$86),'VNOS PODATKOV'!$L$200:$L$212,0),8),\"\")","v":""},{"$f":"IFERROR(INDEX('VNOS PODATKOV'!$C$200:$K$212,MATCH(ROW()-ROW(B$86),'VNOS PODATKOV'!$L$200:$L$212,0),9),\"\")","v":""}]
[{"$f":"IFERROR(INDEX('VNOS PODATKOV'!$C$200:$K$212,MATCH(ROW()-ROW(A$86),'VNOS PODATKOV'!$L$200:$L$212,0),1),\"\")","v":""},null,{"$f":"IFERROR(INDEX('VNOS PODATKOV'!$C$200:$K$212,MATCH(ROW()-ROW(A$86),'VNOS PODATKOV'!$L$200:$L$212,0),3),\"\")","v":""},null,{"$f":"IFERROR(INDEX('VNOS PODATKOV'!$C$200:$K$212,MATCH(ROW()-ROW(A$86),'VNOS PODATKOV'!$L$200:$L$212,0),8),\"\")","v":""},{"$f":"IFERROR(INDEX('VNOS PODATKOV'!$C$200:$K$212,MATCH(ROW()-ROW(B$86),'VNOS PODATKOV'!$L$200:$L$212,0),9),\"\")","v":""}]
[{"$f":"IFERROR(INDEX('VNOS PODATKOV'!$C$200:$K$212,MATCH(ROW()-ROW(A$86),'VNOS PODATKOV'!$L$200:$L$212,0),1),\"\")","v":""},null,{"$f":"IFERROR(INDEX('VNOS PODATKOV'!$C$200:$K$212,MATCH(ROW()-ROW(A$86),'VNOS PODATKOV'!$L$200:$L$212,0),3),\"\")","v":""},null,{"$f":"IFERROR(INDEX('VNOS PODATKOV'!$C$200:$K$212,MATCH(ROW()-ROW(A$86),'VNOS PODATKOV'!$L$200:$L$212,0),8),\"\")","v":""},{"$f":"IFERROR(INDEX('VNOS PODATKOV'!$C$200:$K$212,MATCH(ROW()-ROW(B$86),'VNOS PODATKOV'!$L$200:$L$212,0),9),\"\")","v":""}]
[{"$f":"IFERROR(INDEX('VNOS PODATKOV'!$C$200:$K$212,MATCH(ROW()-ROW(A$86),'VNOS PODATKOV'!$L$200:$L$212,0),1),\"\")","v":""},null,{"$f":"IFERROR(INDEX('VNOS PODATKOV'!$C$200:$K$212,MATCH(ROW()-ROW(A$86),'VNOS PODATKOV'!$L$200:$L$212,0),3),\"\")","v":""},null,{"$f":"IFERROR(INDEX('VNOS PODATKOV'!$C$200:$K$212,MATCH(ROW()-ROW(A$86),'VNOS PODATKOV'!$L$200:$L$212,0),8),\"\")","v":""},{"$f":"IFERROR(INDEX('VNOS PODATKOV'!$C$200:$K$212,MATCH(ROW()-ROW(B$86),'VNOS PODATKOV'!$L$200:$L$212,0),9),\"\")","v":""}]
[{"$f":"IFERROR(INDEX('VNOS PODATKOV'!$C$200:$K$212,MATCH(ROW()-ROW(A$86),'VNOS PODATKOV'!$L$200:$L$212,0),1),\"\")","v":""},null,{"$f":"IFERROR(INDEX('VNOS PODATKOV'!$C$200:$K$212,MATCH(ROW()-ROW(A$86),'VNOS PODATKOV'!$L$200:$L$212,0),3),\"\")","v":""},null,{"$f":"IFERROR(INDEX('VNOS PODATKOV'!$C$200:$K$212,MATCH(ROW()-ROW(A$86),'VNOS PODATKOV'!$L$200:$L$212,0),8),\"\")","v":""},{"$f":"IFERROR(INDEX('VNOS PODATKOV'!$C$200:$K$212,MATCH(ROW()-ROW(B$86),'VNOS PODATKOV'!$L$200:$L$212,0),9),\"\")","v":""}]
[{"$f":"IFERROR(INDEX('VNOS PODATKOV'!$C$200:$K$212,MATCH(ROW()-ROW(A$86),'VNOS PODATKOV'!$L$200:$L$212,0),1),\"\")","v":""},null,{"$f":"IFERROR(INDEX('VNOS PODATKOV'!$C$200:$K$212,MATCH(ROW()-ROW(A$86),'VNOS PODATKOV'!$L$200:$L$212,0),3),\"\")","v":""},null,{"$f":"IFERROR(INDEX('VNOS PODATKOV'!$C$200:$K$212,MATCH(ROW()-ROW(A$86),'VNOS PODATKOV'!$L$200:$L$212,0),8),\"\")","v":""},{"$f":"IFERROR(INDEX('VNOS PODATKOV'!$C$200:$K$212,MATCH(ROW()-ROW(B$86),'VNOS PODATKOV'!$L$200:$L$212,0),9),\"\")","v":""}]
[{"$f":"IFERROR(INDEX('VNOS PODATKOV'!$C$200:$K$212,MATCH(ROW()-ROW(A$86),'VNOS PODATKOV'!$L$200:$L$212,0),1),\"\")","v":""},null,{"$f":"IFERROR(INDEX('VNOS PODATKOV'!$C$200:$K$212,MATCH(ROW()-ROW(A$86),'VNOS PODATKOV'!$L$200:$L$212,0),3),\"\")","v":""},null,{"$f":"IFERROR(INDEX('VNOS PODATKOV'!$C$200:$K$212,MATCH(ROW()-ROW(A$86),'VNOS PODATKOV'!$L$200:$L$212,0),8),\"\")","v":""},{"$f":"IFERROR(INDEX('VNOS PODATKOV'!$C$200:$K$212,MATCH(ROW()-ROW(B$86),'VNOS PODATKOV'!$L$200:$L$212,0),9),\"\")","v":""}]
[{"$f":"IFERROR(INDEX('VNOS PODATKOV'!$C$200:$K$212,MATCH(ROW()-ROW(A$86),'VNOS PODATKOV'!$L$200:$L$212,0),1),\"\")","v":""},null,{"$f":"IFERROR(INDEX('VNOS PODATKOV'!$C$200:$K$212,MATCH(ROW()-ROW(A$86),'VNOS PODATKOV'!$L$200:$L$212,0),3),\"\")","v":""},null,{"$f":"IFERROR(INDEX('VNOS PODATKOV'!$C$200:$K$212,MATCH(ROW()-ROW(A$86),'VNOS PODATKOV'!$L$200:$L$212,0),8),\"\")","v":""},{"$f":"IFERROR(INDEX('VNOS PODATKOV'!$C$200:$K$212,MATCH(ROW()-ROW(B$86),'VNOS PODATKOV'!$L$200:$L$212,0),9),\"\")","v":""}]
[{"$f":"'VNOS PODATKOV'!C213","v":"PRIKLJUČEVANJE NA INFRASTRUKTURO"}]
[{"$f":"IFERROR(INDEX('VNOS PODATKOV'!$C$216:$K$226,MATCH(ROW()-ROW(A$104),'VNOS PODATKOV'!$L$216:$L$226,0),1),\"\")","v":"VODOVOD"},null,{"$f":"IFERROR(INDEX('VNOS PODATKOV'!$C$216:$K$226,MATCH(ROW()-ROW(A$104),'VNOS PODATKOV'!$L$216:$L$226,0),3),\"\")","v":0},null,{"$f":"IFERROR(INDEX('VNOS PODATKOV'!$C$216:$K$226,MATCH(ROW()-ROW(A$104),'VNOS PODATKOV'!$L$216:$L$226,0),8),\"\")","v":0},{"$f":"IFERROR(INDEX('VNOS PODATKOV'!$C$216:$K$226,MATCH(ROW()-ROW(A$104),'VNOS PODATKOV'!$L$216:$L$226,0),9),\"\")","v":"00:00:00"}]
[{"$f":"IFERROR(INDEX('VNOS PODATKOV'!$C$216:$K$226,MATCH(ROW()-ROW(A$104),'VNOS PODATKOV'!$L$216:$L$226,0),1),\"\")","v":"TOPLOVOD"},null,{"$f":"IFERROR(INDEX('VNOS PODATKOV'!$C$216:$K$226,MATCH(ROW()-ROW(A$104),'VNOS PODATKOV'!$L$216:$L$226,0),3),\"\")","v":0},null,{"$f":"IFERROR(INDEX('VNOS PODATKOV'!$C$216:$K$226,MATCH(ROW()-ROW(A$104),'VNOS PODATKOV'!$L$216:$L$226,0),8),\"\")","v":0},{"$f":"IFERROR(INDEX('VNOS PODATKOV'!$C$216:$K$226,MATCH(ROW()-ROW(A$104),'VNOS PODATKOV'!$L$216:$L$226,0),9),\"\")","v":"00:00:00"}]
[{"$f":"IFERROR(INDEX('VNOS PODATKOV'!$C$216:$K$226,MATCH(ROW()-ROW(A$104),'VNOS PODATKOV'!$L$216:$L$226,0),1),\"\")","v":""},null,{"$f":"IFERROR(INDEX('VNOS PODATKOV'!$C$216:$K$226,MATCH(ROW()-ROW(A$104),'VNOS PODATKOV'!$L$216:$L$226,0),3),\"\")","v":""},null,{"$f":"IFERROR(INDEX('VNOS PODATKOV'!$C$216:$K$226,MATCH(ROW()-ROW(A$104),'VNOS PODATKOV'!$L$216:$L$226,0),8),\"\")","v":""},{"$f":"IFERROR(INDEX('VNOS PODATKOV'!$C$216:$K$226,MATCH(ROW()-ROW(A$104),'VNOS PODATKOV'!$L$216:$L$226,0),9),\"\")","v":""}]
[{"$f":"IFERROR(INDEX('VNOS PODATKOV'!$C$216:$K$226,MATCH(ROW()-ROW(A$104),'VNOS PODATKOV'!$L$216:$L$226,0),1),\"\")","v":""},null,{"$f":"IFERROR(INDEX('VNOS PODATKOV'!$C$216:$K$226,MATCH(ROW()-ROW(A$104),'VNOS PODATKOV'!$L$216:$L$226,0),3),\"\")","v":""},null,{"$f":"IFERROR(INDEX('VNOS PODATKOV'!$C$216:$K$226,MATCH(ROW()-ROW(A$104),'VNOS PODATKOV'!$L$216:$L$226,0),8),\"\")","v":""},{"$f":"IFERROR(INDEX('VNOS PODATKOV'!$C$216:$K$226,MATCH(ROW()-ROW(A$104),'VNOS PODATKOV'!$L$216:$L$226,0),9),\"\")","v":""}]
[{"$f":"IFERROR(INDEX('VNOS PODATKOV'!$C$216:$K$226,MATCH(ROW()-ROW(A$104),'VNOS PODATKOV'!$L$216:$L$226,0),1),\"\")","v":""},null,{"$f":"IFERROR(INDEX('VNOS PODATKOV'!$C$216:$K$226,MATCH(ROW()-ROW(A$104),'VNOS PODATKOV'!$L$216:$L$226,0),3),\"\")","v":""},null,{"$f":"IFERROR(INDEX('VNOS PODATKOV'!$C$216:$K$226,MATCH(ROW()-ROW(A$104),'VNOS PODATKOV'!$L$216:$L$226,0),8),\"\")","v":""},{"$f":"IFERROR(INDEX('VNOS PODATKOV'!$C$216:$K$226,MATCH(ROW()-ROW(A$104),'VNOS PODATKOV'!$L$216:$L$226,0),9),\"\")","v":""}]
[{"$f":"IFERROR(INDEX('VNOS PODATKOV'!$C$216:$K$226,MATCH(ROW()-ROW(A$104),'VNOS PODATKOV'!$L$216:$L$226,0),1),\"\")","v":""},null,{"$f":"IFERROR(INDEX('VNOS PODATKOV'!$C$216:$K$226,MATCH(ROW()-ROW(A$104),'VNOS PODATKOV'!$L$216:$L$226,0),3),\"\")","v":""},null,{"$f":"IFERROR(INDEX('VNOS PODATKOV'!$C$216:$K$226,MATCH(ROW()-ROW(A$104),'VNOS PODATKOV'!$L$216:$L$226,0),8),\"\")","v":""},{"$f":"IFERROR(INDEX('VNOS PODATKOV'!$C$216:$K$226,MATCH(ROW()-ROW(A$104),'VNOS PODATKOV'!$L$216:$L$226,0),9),\"\")","v":""}]
[{"$f":"IFERROR(INDEX('VNOS PODATKOV'!$C$216:$K$226,MATCH(ROW()-ROW(A$104),'VNOS PODATKOV'!$L$216:$L$226,0),1),\"\")","v":""},null,{"$f":"IFERROR(INDEX('VNOS PODATKOV'!$C$216:$K$226,MATCH(ROW()-ROW(A$104),'VNOS PODATKOV'!$L$216:$L$226,0),3),\"\")","v":""},null,{"$f":"IFERROR(INDEX('VNOS PODATKOV'!$C$216:$K$226,MATCH(ROW()-ROW(A$104),'VNOS PODATKOV'!$L$216:$L$226,0),8),\"\")","v":""},{"$f":"IFERROR(INDEX('VNOS PODATKOV'!$C$216:$K$226,MATCH(ROW()-ROW(A$104),'VNOS PODATKOV'!$L$216:$L$226,0),9),\"\")","v":""}]
[{"$f":"IFERROR(INDEX('VNOS PODATKOV'!$C$216:$K$226,MATCH(ROW()-ROW(A$104),'VNOS PODATKOV'!$L$216:$L$226,0),1),\"\")","v":""},null,{"$f":"IFERROR(INDEX('VNOS PODATKOV'!$C$216:$K$226,MATCH(ROW()-ROW(A$104),'VNOS PODATKOV'!$L$216:$L$226,0),3),\"\")","v":""},null,{"$f":"IFERROR(INDEX('VNOS PODATKOV'!$C$216:$K$226,MATCH(ROW()-ROW(A$104),'VNOS PODATKOV'!$L$216:$L$226,0),8),\"\")","v":""},{"$f":"IFERROR(INDEX('VNOS PODATKOV'!$C$216:$K$226,MATCH(ROW()-ROW(A$104),'VNOS PODATKOV'!$L$216:$L$226,0),9),\"\")","v":""}]
[{"$f":"IFERROR(INDEX('VNOS PODATKOV'!$C$216:$K$226,MATCH(ROW()-ROW(A$104),'VNOS PODATKOV'!$L$216:$L$226,0),1),\"\")","v":""},null,{"$f":"IFERROR(INDEX('VNOS PODATKOV'!$C$216:$K$226,MATCH(ROW()-ROW(A$104),'VNOS PODATKOV'!$L$216:$L$226,0),3),\"\")","v":""},null,{"$f":"IFERROR(INDEX('VNOS PODATKOV'!$C$216:$K$226,MATCH(ROW()-ROW(A$104),'VNOS PODATKOV'!$L$216:$L$226,0),8),\"\")","v":""},{"$f":"IFERROR(INDEX('VNOS PODATKOV'!$C$216:$K$226,MATCH(ROW()-ROW(A$104),'VNOS PODATKOV'!$L$216:$L$226,0),9),\"\")","v":""}]
[{"$f":"IFERROR(INDEX('VNOS PODATKOV'!$C$216:$K$226,MATCH(ROW()-ROW(A$104),'VNOS PODATKOV'!$L$216:$L$226,0),1),\"\")","v":""},null,{"$f":"IFERROR(INDEX('VNOS PODATKOV'!$C$216:$K$226,MATCH(ROW()-ROW(A$104),'VNOS PODATKOV'!$L$216:$L$226,0),3),\"\")","v":""},null,{"$f":"IFERROR(INDEX('VNOS PODATKOV'!$C$216:$K$226,MATCH(ROW()-ROW(A$104),'VNOS PODATKOV'!$L$216:$L$226,0),8),\"\")","v":""},{"$f":"IFERROR(INDEX('VNOS PODATKOV'!$C$216:$K$226,MATCH(ROW()-ROW(A$104),'VNOS PODATKOV'!$L$216:$L$226,0),9),\"\")","v":""}]
[{"$f":"IFERROR(INDEX('VNOS PODATKOV'!$C$216:$K$226,MATCH(ROW()-ROW(A$104),'VNOS PODATKOV'!$L$216:$L$226,0),1),\"\")","v":""},null,{"$f":"IFERROR(INDEX('VNOS PODATKOV'!$C$216:$K$226,MATCH(ROW()-ROW(A$104),'VNOS PODATKOV'!$L$216:$L$226,0),3),\"\")","v":""},null,{"$f":"IFERROR(INDEX('VNOS PODATKOV'!$C$216:$K$226,MATCH(ROW()-ROW(A$104),'VNOS PODATKOV'!$L$216:$L$226,0),8),\"\")","v":""},{"$f":"IFERROR(INDEX('VNOS PODATKOV'!$C$216:$K$226,MATCH(ROW()-ROW(A$104),'VNOS PODATKOV'!$L$216:$L$226,0),9),\"\")","v":""}]
[{"$f":"'VNOS PODATKOV'!C227","v":"DRUGA MNENJA"}]
[{"$f":"IFERROR(INDEX('VNOS PODATKOV'!$C$230:$K$237,MATCH(ROW()-ROW(A$116),'VNOS PODATKOV'!$L$230:$L$237,0),1),\"\")","v":"SEVALNA VARNOST "},null,{"$f":"IFERROR(INDEX('VNOS PODATKOV'!$C$230:$K$237,MATCH(ROW()-ROW(A$116),'VNOS PODATKOV'!$L$230:$L$237,0),3),\"\")","v":"Uprava RS za jedrsko varnost"},null,{"$f":"IFERROR(INDEX('VNOS PODATKOV'!$C$230:$K$237,MATCH(ROW()-ROW(C$116),'VNOS PODATKOV'!$L$230:$L$237,0),8),\"\")","v":0},{"$f":"IFERROR(INDEX('VNOS PODATKOV'!$C$230:$K$237,MATCH(ROW()-ROW(D$116),'VNOS PODATKOV'!$L$230:$L$237,0),9),\"\")","v":"00:00:00"}]
[{"$f":"IFERROR(INDEX('VNOS PODATKOV'!$C$230:$K$237,MATCH(ROW()-ROW(A$116),'VNOS PODATKOV'!$L$230:$L$237,0),1),\"\")","v":"DRUGO (NAVEDI)"},null,{"$f":"IFERROR(INDEX('VNOS PODATKOV'!$C$230:$K$237,MATCH(ROW()-ROW(A$116),'VNOS PODATKOV'!$L$230:$L$237,0),3),\"\")","v":0},null,{"$f":"IFERROR(INDEX('VNOS PODATKOV'!$C$230:$K$237,MATCH(ROW()-ROW(C$116),'VNOS PODATKOV'!$L$230:$L$237,0),8),\"\")","v":0},{"$f":"IFERROR(INDEX('VNOS PODATKOV'!$C$230:$K$237,MATCH(ROW()-ROW(D$116),'VNOS PODATKOV'!$L$230:$L$237,0),9),\"\")","v":"00:00:00"}]
[{"$f":"IFERROR(INDEX('VNOS PODATKOV'!$C$230:$K$237,MATCH(ROW()-ROW(A$116),'VNOS PODATKOV'!$L$230:$L$237,0),1),\"\")","v":""},null,{"$f":"IFERROR(INDEX('VNOS PODATKOV'!$C$230:$K$237,MATCH(ROW()-ROW(A$116),'VNOS PODATKOV'!$L$230:$L$237,0),3),\"\")","v":""},null,{"$f":"IFERROR(INDEX('VNOS PODATKOV'!$C$230:$K$237,MATCH(ROW()-ROW(C$116),'VNOS PODATKOV'!$L$230:$L$237,0),8),\"\")","v":""},{"$f":"IFERROR(INDEX('VNOS PODATKOV'!$C$230:$K$237,MATCH(ROW()-ROW(D$116),'VNOS PODATKOV'!$L$230:$L$237,0),9),\"\")","v":""}]
[{"$f":"IFERROR(INDEX('VNOS PODATKOV'!$C$230:$K$237,MATCH(ROW()-ROW(A$116),'VNOS PODATKOV'!$L$230:$L$237,0),1),\"\")","v":""},null,{"$f":"IFERROR(INDEX('VNOS PODATKOV'!$C$230:$K$237,MATCH(ROW()-ROW(A$116),'VNOS PODATKOV'!$L$230:$L$237,0),3),\"\")","v":""},null,{"$f":"IFERROR(INDEX('VNOS PODATKOV'!$C$230:$K$237,MATCH(ROW()-ROW(C$116),'VNOS PODATKOV'!$L$230:$L$237,0),8),\"\")","v":""},{"$f":"IFERROR(INDEX('VNOS PODATKOV'!$C$230:$K$237,MATCH(ROW()-ROW(D$116),'VNOS PODATKOV'!$L$230:$L$237,0),9),\"\")","v":""}]
[{"$f":"IFERROR(INDEX('VNOS PODATKOV'!$C$230:$K$237,MATCH(ROW()-ROW(A$116),'VNOS PODATKOV'!$L$230:$L$237,0),1),\"\")","v":""},null,{"$f":"IFERROR(INDEX('VNOS PODATKOV'!$C$230:$K$237,MATCH(ROW()-ROW(A$116),'VNOS PODATKOV'!$L$230:$L$237,0),3),\"\")","v":""},null,{"$f":"IFERROR(INDEX('VNOS PODATKOV'!$C$230:$K$237,MATCH(ROW()-ROW(C$116),'VNOS PODATKOV'!$L$230:$L$237,0),8),\"\")","v":""},{"$f":"IFERROR(INDEX('VNOS PODATKOV'!$C$230:$K$237,MATCH(ROW()-ROW(D$116),'VNOS PODATKOV'!$L$230:$L$237,0),9),\"\")","v":""}]
[{"$f":"IFERROR(INDEX('VNOS PODATKOV'!$C$230:$K$237,MATCH(ROW()-ROW(A$116),'VNOS PODATKOV'!$L$230:$L$237,0),1),\"\")","v":""},null,{"$f":"IFERROR(INDEX('VNOS PODATKOV'!$C$230:$K$237,MATCH(ROW()-ROW(A$116),'VNOS PODATKOV'!$L$230:$L$237,0),3),\"\")","v":""},null,{"$f":"IFERROR(INDEX('VNOS PODATKOV'!$C$230:$K$237,MATCH(ROW()-ROW(C$116),'VNOS PODATKOV'!$L$230:$L$237,0),8),\"\")","v":""},{"$f":"IFERROR(INDEX('VNOS PODATKOV'!$C$230:$K$237,MATCH(ROW()-ROW(D$116),'VNOS PODATKOV'!$L$230:$L$237,0),9),\"\")","v":""}]
[{"$f":"IFERROR(INDEX('VNOS PODATKOV'!$C$230:$K$237,MATCH(ROW()-ROW(A$116),'VNOS PODATKOV'!$L$230:$L$237,0),1),\"\")","v":""},null,{"$f":"IFERROR(INDEX('VNOS PODATKOV'!$C$230:$K$237,MATCH(ROW()-ROW(A$116),'VNOS PODATKOV'!$L$230:$L$237,0),3),\"\")","v":""},null,{"$f":"IFERROR(INDEX('VNOS PODATKOV'!$C$230:$K$237,MATCH(ROW()-ROW(C$116),'VNOS PODATKOV'!$L$230:$L$237,0),8),\"\")","v":""},{"$f":"IFERROR(INDEX('VNOS PODATKOV'!$C$230:$K$237,MATCH(ROW()-ROW(D$116),'VNOS PODATKOV'!$L$230:$L$237,0),9),\"\")","v":""}]
[{"$f":"IFERROR(INDEX('VNOS PODATKOV'!$C$230:$K$237,MATCH(ROW()-ROW(A$116),'VNOS PODATKOV'!$L$230:$L$237,0),1),\"\")","v":""},null,{"$f":"IFERROR(INDEX('VNOS PODATKOV'!$C$230:$K$237,MATCH(ROW()-ROW(A$116),'VNOS PODATKOV'!$L$230:$L$237,0),3),\"\")","v":""},null,{"$f":"IFERROR(INDEX('VNOS PODATKOV'!$C$230:$K$237,MATCH(ROW()-ROW(C$116),'VNOS PODATKOV'!$L$230:$L$237,0),8),\"\")","v":""},{"$f":"IFERROR(INDEX('VNOS PODATKOV'!$C$230:$K$237,MATCH(ROW()-ROW(D$116),'VNOS PODATKOV'!$L$230:$L$237,0),9),\"\")","v":""}]
[{"$f":"IFERROR(INDEX('VNOS PODATKOV'!$C$230:$K$237,MATCH(ROW()-ROW(A$116),'VNOS PODATKOV'!$L$230:$L$237,0),1),\"\")","v":""},{"$f":"IF(#REF!=\"DA\",IF('VNOS PODATKOV'!E224<>\"\", 'VNOS PODATKOV'!E224,\"\"),\"\")","v":{"$error":"#REF!"}},{"$f":"IFERROR(INDEX('VNOS PODATKOV'!$C$230:$K$237,MATCH(ROW()-ROW(A$116),'VNOS PODATKOV'!$L$230:$L$237,0),3),\"\")","v":""},null,{"$f":"IFERROR(INDEX('VNOS PODATKOV'!$C$230:$K$237,MATCH(ROW()-ROW(C$116),'VNOS PODATKOV'!$L$230:$L$237,0),7),\"\")","v":""},{"$f":"IFERROR(INDEX('VNOS PODATKOV'!$C$230:$K$237,MATCH(ROW()-ROW(D$116),'VNOS PODATKOV'!$L$230:$L$237,0),8),\"\")","v":""}]
["IZKAZOVANJE PRAVICE GRADITI"]
["ustrezno označiti"]
[null,null,"Lastninska ali druga stvarna pravica na nepremičninah, na katerih se bo izvajala gradnja, je vpisana v zemljiški knjigi"]
[null,null,"Iz uradnih evidenc je razvidno, da je investitor zakoniti upravljavec nepremičnine, na kateri se bo izvajala gradnja"]
[]
[null,null,"Pravico graditi izkazujem z listinami:"]
[null,null,"Notarsko overjena pogodba o pridobitvi lastninske ali druge stvarne pravice na nepremičninah, na katerih se bo izvajala gradnja, ki je predlagana za vpis v zemljiško knjigo"]
[null,null,"Sodna ali upravna odločba, ki investitorju omogoča gradnjo oziroma izvajanje del"]
[null,null,"Sklep o določitvi investitorja kot upravljavca nepremičnine, če gre za nepremičnino v lasti njegovega ustanovitelja"]
[null,null,"Druga listina, ki v skladu z zakonom investitorju omogoča gradnjo oziroma izvajanje del"]
[null,null,"Soglasje upravljavca javne ceste za izvedbo gradnje v cestnem telesu, če gre za gradnjo objekta gospodarske javne infrastrukture, skupaj s priključki, ki se izvaja v cestnem telesu javne ceste"]
[null,null,"Notarsko overjena pogodba o pridobitvi obligacijske pravice za nepremičnine, na katerih so predvidene začasne ureditve za potrebe gradnje"]
[]
[null,null,"Na podlagi navedenih podatkov in priložene dokumentacije za legalizacijo ter drugih priloženih listin vas prosim za izdajo odločbe o legalizaciji objekta."]
[]
["datum",null,"podpis vložnika"]
[{"$f":"TODAY()","v":"2023-10-04"}]
[]
[]
["PRILOGE"]
["ustrezno označiti"]
[null,null,"Pooblastilo (če zahteve ne vlaga investitor)"]
[null,null,"Dokumentacija za legalizacijo (DL)"]
[null,null,"Sklep predhodne presoje vplivov na okolje (če je bil pridobljen)"]
[null,null,"Mnenja navedena zgoraj ali dokazilo o tem, da mnenje ni bilo izdano v roku iz petega odstavka 43. člena GZ-1"]
[null,null,"Listine, ki izkazujejo pravico graditi, če lastninska ali druga stvarna pravica ni vpisana v zemljiško knjigo ali če iz uradnih evidenc ni razvidno, da je vlagatelj zakoniti upravljavec nepremičnin"]
[null,null,"Dokazilo, da se v objektu izvaja dejavnost gasilske službe v skladu z zakonom, ki ureja gasilstvo"]
[null,null,"Pisne izjave strank, da se strinjajo z zgrajenim objektom, če so pridobljene"]
[null,null,"Podatki in dokazila o morebitnih preteklih vlaganjih v komunalno opremo, že poravnanih obveznostih plačila komunalnega prispevka in druga dokumentacija, pomembna za odločitev o odmeri komunalnega prispevka (navesti, katera):"]
[]
[]
[]
[null,null,"Dokazila, da je bila gradnja izvedena vsaj do faze grobih gradbenih del pred 17. 11. 2017 (navesti, katera):"]
[]
[]
[]
[null,null,"Dokazila, da je objekt dokončan (navesti, katera):"]
[]
[]
[]
[null,null,"Druge priloge (navesti, katere):"]

{"sheet":"19B IZJAVA DL","index":4,"n_rows":22,"n_cols":3,"rows_kept":22,"cut":false,"hidden":false,"merged":[[20,0,20,1],[21,0,21,1],[19,0,19,1],[1,0,1,2],[3,0,3,2],[8,0,8,2],[17,0,17,1],[18,0,18,1]]}
["PRILOGA 19B"]
["IZJAVA PROJEKTANTA\nIN POOBLAŠČENEGA STROKOVNJAKA \nV DOKUMENTACIJI ZA LEGALIZACIJO \n(1. odstavek 145. člena GZ-1)"]
[]
["PROJEKTANT"]
["projektant (naziv družbe)",null,{"$f":"'VNOS PODATKOV'!D44","v":0}]
["naslov",null,{"$f":"'VNOS PODATKOV'!D45","v":0}]
["odgovorna oseba projektanta",null,{"$f":"'VNOS PODATKOV'!D46","v":0}]
[]
["IN POOBLAŠČENI STROKOVNJAK"]
["ime in priimek",null,{"$f":"IF('VNOS PODATKOV'!D48=\"\",\"\",(CONCATENATE('VNOS PODATKOV'!D48,\", \",'VNOS PODATKOV'!D49)))","v":""}]
[{"$f":"'VNOS PODATKOV'!C50","v":"identifikacijska številka"},null,{"$f":"'VNOS PODATKOV'!D50","v":0}]
[]
[null,null,"IZJAVLJAVA:"]
[null,null,"- da dokumentacija za legalizacijo izkazuje dejansko stanje objekta;"]
[null,null,"- da objekt nima očitnih napak in"]
[null,null,"- da je objekt sposoben za uporabo."]
[]
["ime in priimek",null,{"$f":"IF('VNOS PODATKOV'!D48=\"\",\"\",(CONCATENATE('VNOS PODATKOV'!D48,\", \",'VNOS PODATKOV'!D49)))","v":""}]
[{"$f":"'VNOS PODATKOV'!C50","v":"identifikacijska številka"},null,{"$f":"'VNOS PODATKOV'!D50","v":0}]
["podpis pooblaščenega strokovnjaka"]
["odgovorna oseba projektanta",null,{"$f":"'VNOS PODATKOV'!D46","v":0}]
["podpis odgovorne osebe projektanta"]

{"sheet":"1A NASLOVNA","index":5,"n_rows":42,"n_cols":3,"rows_kept":42,"cut":false,"hidden":false,"merged":[]}
["PRILOGA 1A"]
["NASLOVNA STRAN \nPROJEKTNE DOKUMENTACIJE"]
[]
["INVESTITOR"]
["INVESTITOR 1"]
["ime in priimek ali naziv družbe",null,{"$f":"'VNOS PODATKOV'!D18","v":0}]
["naslov ali poslovni naslov družbe",null,{"$f":"'VNOS PODATKOV'!D19","v":0}]
["INVESTITOR 2"]
["ime in priimek ali naziv družbe",null,{"$f":"'VNOS PODATKOV'!D22","v":0}]
["naslov ali poslovni naslov družbe",null,{"$f":"'VNOS PODATKOV'!D23","v":0}]
["INVESTITOR 3"]
["ime in priimek ali naziv družbe",null,{"$f":"'VNOS PODATKOV'!D26","v":0}]
["naslov ali poslovni naslov družbe",null,{"$f":"'VNOS PODATKOV'!D27","v":0}]
["PODATKI O GRADNJI"]
["naziv gradnje",null,{"$f":"'VNOS PODATKOV'!D82","v":0}]
["naziv gradnje se določi po namenu glavnega objekta"]
["VRSTE GRADNJE",null,"NOVOGRADNJA - NOVOZGRAJEN OBJEKT"]
["označiti vse ustrezne vrste gradnje",null,"NOVOGRADNJA - PRIZIDAVA"]
[null,null,"REKONSTRUKCIJA"]
[null,null,"SPREMEMBA NAMEMBNOSTI"]
[null,null,"ODSTRANITEV CELOTNEGA OBJEKTA"]
[null,null,"LEGALIZACIJA"]
[null,null,"MANJŠA REKONSTRUKCIJA"]
["PODATKI O PROJEKTNI DOKUMENTACIJI"]
["vrsta dokumentacije (DPP, DGD, PZI, PZO, PID, DL)",null,{"$f":"'VNOS PODATKOV'!D75","v":"DL (dokumentacija za legalizacijo)"}]
["številka projekta",null,{"$f":"'VNOS PODATKOV'!D76","v":0}]
["datum izdelave",null,{"$f":"'VNOS PODATKOV'!D77","v":"00:00:00"}]
["datum spremembe",null,{"$f":"'VNOS PODATKOV'!D78","v":0}]
["PODATKI O PROJEKTANTU"]
["projektant (naziv družbe)",null,{"$f":"'VNOS PODATKOV'!D44","v":0}]
["naslov",null,{"$f":"'VNOS PODATKOV'!D45","v":0}]
["odgovorna oseba projektanta",null,{"$f":"'VNOS PODATKOV'!D46","v":0}]
["podpis odgovorne osebe projektanta"]
["PODATKI O IZDELOVALCU OSNOVNEGA PRIKAZA / NAČRTA"]
["izdelovalec osnovnega prikaza / načrta",null,{"$f":"'VNOS PODATKOV'!D48","v":0}]
["identifikacijska številka",null,{"$f":"'VNOS PODATKOV'!D50","v":0}]
["projektant izdelovalca osnovnega načrta (naziv družbe)",null,{"$f":"'VNOS PODATKOV'!D44","v":0}]
["naslov",null,{"$f":"'VNOS PODATKOV'!D45","v":0}]
["PODATKI O VODJI PROJEKTIRANJA"]
["VODJA PROJEKTIRANJA",null,{"$f":"IF('VNOS PODATKOV'!D48=\"\",\"\",(CONCATENATE('VNOS PODATKOV'!D48,\", \",'VNOS PODATKOV'!D49)))","v":""}]
["identifikacijska številka",null,{"$f":"'VNOS PODATKOV'!D50","v":0}]
["podpis vodje projektiranja"]

{"sheet":"19C LEG SPLOŠNI PODATKI","index":6,"n_rows":134,"n_cols":2,"rows_kept":134,"cut":false,"hidden":false,"merged":[[125,0,125,1],[75,0,75,1],[78,0,78,1],[98,0,98,1],[113,0,113,1],[39,0,39,1],[7,0,7,1],[1,0,1,1],[41,0,41,1],[74,0,74,1],[49,0,49,1]]}
["PRILOGA 19C\n"]
["SPLOŠNI PODATKI \nO OBJEKTU LEGALIZACIJE"]
[]
["ZEMLJIŠČA, NA KATERIH SE NAHAJA OBJEKT"]
["številka katastrske občine",{"$f":"'VNOS PODATKOV'!D93","v":0}]
["katastrska občina",{"$f":"'VNOS PODATKOV'!D94","v":0}]
["parc. št.",{"$f":"'VNOS PODATKOV'!D95","v":0}]
["PODATKI O OBJEKTU"]
[{"$f":"'VNOS PODATKOV'!C85","v":"vrsta objekta"},{"$f":"'VNOS PODATKOV'!D85","v":0}]
[{"$f":"'VNOS PODATKOV'!C86","v":"zahtevnost objekta"},{"$f":"'VNOS PODATKOV'!D86","v":0}]
["klasifikacija po CC-SI ",{"$f":"IF(B9=\"STAVBA\",'VNOS PODATKOV'!D98,'VNOS PODATKOV'!D99)","v":0}]
[{"$f":"IF('VNOS PODATKOV'!D101=TRUE,TRUE,FALSE)","v":false},{"$f":"'VNOS PODATKOV'!C101","v":"objekt je vpisan v kataster nepremičnin"}]
[{"$f":"'VNOS PODATKOV'!C102","v":"številka stavbe"},{"$f":"'VNOS PODATKOV'!D102","v":0}]
[{"$f":"'VNOS PODATKOV'!C103","v":"številka posameznega dela stavbe"},{"$f":"'VNOS PODATKOV'!D103","v":0}]
[{"$f":"IF('VNOS PODATKOV'!D104=TRUE,TRUE,FALSE)","v":false},{"$f":"'VNOS PODATKOV'!C104","v":"objekt gospodarske javne infrastrukture je evidentiran v katastru gospodarske javne infrastrukture "}]
[{"$f":"IF('VNOS PODATKOV'!D90=TRUE,TRUE,FALSE)","v":false},{"$f":"'VNOS PODATKOV'!C90","v":"v objektu se izvaja dejavnost gasilske službe v skladu z zakonom, ki ureja gasilstvo"}]
[{"$f":"'VNOS PODATKOV'!C105","v":"VRSTA NEDOVOLJENE GRADNJE"}]
[{"$f":"IF('VNOS PODATKOV'!D106=TRUE,TRUE,FALSE)","v":false},{"$f":"'VNOS PODATKOV'!C106","v":"gradnja, izvedena brez gradbenega dovoljenja"}]
[{"$f":"IF('VNOS PODATKOV'!D107=TRUE,TRUE,FALSE)","v":false},{"$f":"'VNOS PODATKOV'!C107","v":"gradnja, izvedena v nasprotju s pogoji, določenimi z gradbenim dovoljenjem"}]
["PODATKI O GRADNJI"]
["poseg","novogradnja - novozgrajen objekt"]
["datum začetka"]
["datum izgradnje objekta do faze grobih gradbenih del"]
["datum dokončanja"]
["po potrebi dodati vrstice"]
["poseg","novogradnja - prizidava"]
["datum začetka"]
["datum izgradnje objekta do faze grobih gradbenih del"]
["datum dokončanja"]
["po potrebi dodati vrstice"]
["poseg","rekonstrukcija"]
["datum začetka"]
["datum izgradnje objekta do faze grobih gradbenih del"]
["datum dokončanja"]
["po potrebi dodati vrstice"]
["poseg","sprememba namembnosti"]
["datum začetka"]
["datum izgradnje objekta do faze grobih gradbenih del"]
["datum dokončanja"]
["po potrebi dodati vrstice"]
["PODATKI O STAVBI IN GRADBENO INŽENIRSKIH OBJEKTIH"]
["vpisujejo se podatki, ki so relevantni za objekt"]
[{"$f":"'VNOS PODATKOV'!C84","v":"naslov stavbe, če je določen"},{"$f":"'VNOS PODATKOV'!D84","v":0}]
[{"$f":"'VNOS PODATKOV'!C109","v":"višina"},{"$f":"'VNOS PODATKOV'!D109","v":0}]
[{"$f":"'VNOS PODATKOV'!C110","v":"dolžina"},{"$f":"'VNOS PODATKOV'!D110","v":0}]
[{"$f":"'VNOS PODATKOV'!C111","v":"bruto etažna površina stavbe ali dela stavbe, ki se legalizira"},{"$f":"'VNOS PODATKOV'!D111","v":0}]
[{"$f":"'VNOS PODATKOV'!C112","v":"bruto tlorisna površina gradbeno inženirskega objekta ali dela objekta, ki se legalizira"},{"$f":"'VNOS PODATKOV'!D112","v":0}]
[{"$f":"IF('VNOS PODATKOV'!D91=TRUE,TRUE,FALSE)","v":false},{"$f":"'VNOS PODATKOV'!C91","v":"objekt je objekt gospodarske javne infrastrukture"}]
["LOKACIJSKO DOVOLJENJE"]
["podatki se vpišejo, kadar je bilo lokacijsko dovoljenje izdano"]
[{"$f":"'VNOS PODATKOV'!C246","v":"navedba organa, ki je izdal lokacijsko dovoljenje"},{"$f":"'VNOS PODATKOV'!D246","v":0}]
["št. lokacijskega dovoljenja",{"$f":"'VNOS PODATKOV'!D247","v":0}]
["datum lokacijskega dovoljenja",{"$f":"'VNOS PODATKOV'!D248","v":"00:00:00"}]
["LOKACIJSKI PODATKI"]
[{"$f":"'VNOS PODATKOV'!C149","v":"prostorski akt"},{"$f":"'VNOS PODATKOV'!D149","v":"OPN MOL"}]
["opis skladnosti s prostorskim aktom oziroma z izdanim lokacijskim dovoljenjem"]
[null,"Opis skladnosti je v prilogi"]
[{"$f":"'VNOS PODATKOV'!C152","v":"OBJEKT JE PRIKLJUČEN NA KOMUNALNO INFRASTRUKTURO (NAVEDI, KATERO):"}]
[]
[null,{"$f":"IFERROR(INDEX('VNOS PODATKOV'!$C$155:$H$169,MATCH(ROW()-ROW(A$59),'VNOS PODATKOV'!$N$155:$N$169,0),1),\"\")","v":""}]
[null,{"$f":"IFERROR(INDEX('VNOS PODATKOV'!$C$155:$H$169,MATCH(ROW()-ROW(A$59),'VNOS PODATKOV'!$N$155:$N$169,0),1),\"\")","v":""}]
[null,{"$f":"IFERROR(INDEX('VNOS PODATKOV'!$C$155:$H$169,MATCH(ROW()-ROW(A$59),'VNOS PODATKOV'!$N$155:$N$169,0),1),\"\")","v":""}]
[null,{"$f":"IFERROR(INDEX('VNOS PODATKOV'!$C$155:$H$169,MATCH(ROW()-ROW(A$59),'VNOS PODATKOV'!$N$155:$N$169,0),1),\"\")","v":""}]
[null,{"$f":"IFERROR(INDEX('VNOS PODATKOV'!$C$155:$H$169,MATCH(ROW()-ROW(A$59),'VNOS PODATKOV'!$N$155:$N$169,0),1),\"\")","v":""}]
[null,{"$f":"IFERROR(INDEX('VNOS PODATKOV'!$C$155:$H$169,MATCH(ROW()-ROW(A$59),'VNOS PODATKOV'!$N$155:$N$169,0),1),\"\")","v":""}]
[null,{"$f":"IFERROR(INDEX('VNOS PODATKOV'!$C$155:$H$169,MATCH(ROW()-ROW(A$59),'VNOS PODATKOV'!$N$155:$N$169,0),1),\"\")","v":""}]
[null,{"$f":"IFERROR(INDEX('VNOS PODATKOV'!$C$155:$H$169,MATCH(ROW()-ROW(A$59),'VNOS PODATKOV'!$N$155:$N$169,0),1),\"\")","v":""}]
[null,{"$f":"IFERROR(INDEX('VNOS PODATKOV'!$C$155:$H$169,MATCH(ROW()-ROW(A$59),'VNOS PODATKOV'!$N$155:$N$169,0),1),\"\")","v":""}]
[null,{"$f":"IFERROR(INDEX('VNOS PODATKOV'!$C$155:$H$169,MATCH(ROW()-ROW(A$59),'VNOS PODATKOV'!$N$155:$N$169,0),1),\"\")","v":""}]
[null,{"$f":"IFERROR(INDEX('VNOS PODATKOV'!$C$155:$H$169,MATCH(ROW()-ROW(A$59),'VNOS PODATKOV'!$N$155:$N$169,0),1),\"\")","v":""}]
[null,{"$f":"IFERROR(INDEX('VNOS PODATKOV'!$C$155:$H$169,MATCH(ROW()-ROW(A$59),'VNOS PODATKOV'!$N$155:$N$169,0),1),\"\")","v":""}]
[null,{"$f":"IFERROR(INDEX('VNOS PODATKOV'!$C$155:$H$169,MATCH(ROW()-ROW(A$59),'VNOS PODATKOV'!$N$155:$N$169,0),1),\"\")","v":""}]
[null,{"$f":"IFERROR(INDEX('VNOS PODATKOV'!$C$155:$H$169,MATCH(ROW()-ROW(A$59),'VNOS PODATKOV'!$N$155:$N$169,0),1),\"\")","v":""}]
["K DOKUMENTACIJI SE PRIDOBIJO NASLEDNJA MNENJA"]
[]
[{"$f":"'VNOS PODATKOV'!C172","v":"SKLADNOST S PROSTORSKIMI AKTI"}]
[{"$f":"IFERROR('VNOS PODATKOV'!C175,\"\")","v":"OBČINA"},{"$f":"IFERROR(IF(#REF!='BAZA PODATKOV'!$A$7,\"\",'VNOS PODATKOV'!D175),\"\")","v":""}]
[]
[{"$f":"'VNOS PODATKOV'!C176","v":"VAROVANA OBMOČJA"}]
[{"$f":"IFERROR(INDEX('VNOS PODATKOV'!$C$179:$K$196,MATCH(ROW()-ROW(A$79),'VNOS PODATKOV'!$L$179:$L$196,0),1),\"\")","v":"VARSTVO KULTURNE DEDIŠČINE - POSEG"},{"$f":"IFERROR(INDEX('VNOS PODATKOV'!$C$179:$K$196,MATCH(ROW()-ROW(A$79),'VNOS PODATKOV'!$L$179:$L$196,0),2),\"\")","v":"KULTUROVARSTVENO MNENJE ZA POSEG"}]
[{"$f":"IFERROR(INDEX('VNOS PODATKOV'!$C$179:$K$196,MATCH(ROW()-ROW(A$79),'VNOS PODATKOV'!$L$179:$L$196,0),1),\"\")","v":"VARSTVO NARAVE"},{"$f":"IFERROR(INDEX('VNOS PODATKOV'!$C$179:$K$196,MATCH(ROW()-ROW(A$79),'VNOS PODATKOV'!$L$179:$L$196,0),2),\"\")","v":"NARAVOVARSTVENO MNENJE"}]
[{"$f":"IFERROR(INDEX('VNOS PODATKOV'!$C$179:$K$196,MATCH(ROW()-ROW(A$79),'VNOS PODATKOV'!$L$179:$L$196,0),1),\"\")","v":"VARSTVO GOZDOV"},{"$f":"IFERROR(INDEX('VNOS PODATKOV'!$C$179:$K$196,MATCH(ROW()-ROW(A$79),'VNOS PODATKOV'!$L$179:$L$196,0),2),\"\")","v":"MNENJE ZA GRADNJO V GOZDNEM PROSTORU"}]
[{"$f":"IFERROR(INDEX('VNOS PODATKOV'!$C$179:$K$196,MATCH(ROW()-ROW(A$79),'VNOS PODATKOV'!$L$179:$L$196,0),1),\"\")","v":""},{"$f":"IFERROR(INDEX('VNOS PODATKOV'!$C$179:$K$196,MATCH(ROW()-ROW(A$79),'VNOS PODATKOV'!$L$179:$L$196,0),2),\"\")","v":""}]
[{"$f":"IFERROR(INDEX('VNOS PODATKOV'!$C$179:$K$196,MATCH(ROW()-ROW(A$79),'VNOS PODATKOV'!$L$179:$L$196,0),1),\"\")","v":""},{"$f":"IFERROR(INDEX('VNOS PODATKOV'!$C$179:$K$196,MATCH(ROW()-ROW(A$79),'VNOS PODATKOV'!$L$179:$L$196,0),2),\"\")","v":""}]
[{"$f":"IFERROR(INDEX('VNOS PODATKOV'!$C$179:$K$196,MATCH(ROW()-ROW(A$79),'VNOS PODATKOV'!$L$179:$L$196,0),1),\"\")","v":""},{"$f":"IFERROR(INDEX('VNOS PODATKOV'!$C$179:$K$196,MATCH(ROW()-ROW(A$79),'VNOS PODATKOV'!$L$179:$L$196,0),2),\"\")","v":""}]
[{"$f":"IFERROR(INDEX('VNOS PODATKOV'!$C$179:$K$196,MATCH(ROW()-ROW(A$79),'VNOS PODATKOV'!$L$179:$L$196,0),1),\"\")","v":""},{"$f":"IFERROR(INDEX('VNOS PODATKOV'!$C$179:$K$196,MATCH(ROW()-ROW(A$79),'VNOS PODATKOV'!$L$179:$L$196,0),2),\"\")","v":""}]
[{"$f":"IFERROR(INDEX('VNOS PODATKOV'!$C$179:$K$196,MATCH(ROW()-ROW(A$79),'VNOS PODATKOV'!$L$179:$L$196,0),1),\"\")","v":""},{"$f":"IFERROR(INDEX('VNOS PODATKOV'!$C$179:$K$196,MATCH(ROW()-ROW(A$79),'VNOS PODATKOV'!$L$179:$L$196,0),2),\"\")","v":""}]
[{"$f":"IFERROR(INDEX('VNOS PODATKOV'!$C$179:$K$196,MATCH(ROW()-ROW(A$79),'VNOS PODATKOV'!$L$179:$L$196,0),1),\"\")","v":""},{"$f":"IFERROR(INDEX('VNOS PODATKOV'!$C$179:$K$196,MATCH(ROW()-ROW(A$79),'VNOS PODATKOV'!$L$179:$L$196,0),2),\"\")","v":""}]
[{"$f":"IFERROR(INDEX('VNOS PODATKOV'!$C$179:$K$196,MATCH(ROW()-ROW(A$79),'VNOS PODATKOV'!$L$179:$L$196,0),1),\"\")","v":""},{"$f":"IFERROR(INDEX('VNOS PODATKOV'!$C$179:$K$196,MATCH(ROW()-ROW(A$79),'VNOS PODATKOV'!$L$179:$L$196,0),2),\"\")","v":""}]
[{"$f":"IFERROR(INDEX('VNOS PODATKOV'!$C$179:$K$196,MATCH(ROW()-ROW(A$79),'VNOS PODATKOV'!$L$179:$L$196,0),1),\"\")","v":""},{"$f":"IFERROR(INDEX('VNOS PODATKOV'!$C$179:$K$196,MATCH(ROW()-ROW(A$79),'VNOS PODATKOV'!$L$179:$L$196,0),2),\"\")","v":""}]
[{"$f":"IFERROR(INDEX('VNOS PODATKOV'!$C$179:$K$196,MATCH(ROW()-ROW(A$79),'VNOS PODATKOV'!$L$179:$L$196,0),1),\"\")","v":""},{"$f":"IFERROR(INDEX('VNOS PODATKOV'!$C$179:$K$196,MATCH(ROW()-ROW(A$79),'VNOS PODATKOV'!$L$179:$L$196,0),2),\"\")","v":""}]
[{"$f":"IFERROR(INDEX('VNOS PODATKOV'!$C$179:$K$196,MATCH(ROW()-ROW(A$79),'VNOS PODATKOV'!$L$179:$L$196,0),1),\"\")","v":""},{"$f":"IFERROR(INDEX('VNOS PODATKOV'!$C$179:$K$196,MATCH(ROW()-ROW(A$79),'VNOS PODATKOV'!$L$179:$L$196,0),2),\"\")","v":""}]
[{"$f":"IFERROR(INDEX('VNOS PODATKOV'!$C$179:$K$196,MATCH(ROW()-ROW(A$79),'VNOS PODATKOV'!$L$179:$L$196,0),1),\"\")","v":""},{"$f":"IFERROR(INDEX('VNOS PODATKOV'!$C$179:$K$196,MATCH(ROW()-ROW(A$79),'VNOS PODATKOV'!$L$179:$L$196,0),2),\"\")","v":""}]
[{"$f":"IFERROR(INDEX('VNOS PODATKOV'!$C$179:$K$196,MATCH(ROW()-ROW(A$79),'VNOS PODATKOV'!$L$179:$L$196,0),1),\"\")","v":""},{"$f":"IFERROR(INDEX('VNOS PODATKOV'!$C$179:$K$196,MATCH(ROW()-ROW(A$79),'VNOS PODATKOV'!$L$179:$L$196,0),2),\"\")","v":""}]
[{"$f":"IFERROR(INDEX('VNOS PODATKOV'!$C$179:$K$196,MATCH(ROW()-ROW(A$79),'VNOS PODATKOV'!$L$179:$L$196,0),1),\"\")","v":""},{"$f":"IFERROR(INDEX('VNOS PODATKOV'!$C$179:$K$196,MATCH(ROW()-ROW(A$79),'VNOS PODATKOV'!$L$179:$L$196,0),2),\"\")","v":""}]
[{"$f":"IFERROR(INDEX('VNOS PODATKOV'!$C$179:$K$196,MATCH(ROW()-ROW(A$79),'VNOS PODATKOV'!$L$179:$L$196,0),1),\"\")","v":""},{"$f":"IFERROR(INDEX('VNOS PODATKOV'!$C$179:$K$196,MATCH(ROW()-ROW(A$79),'VNOS PODATKOV'!$L$179:$L$196,0),2),\"\")","v":""}]
[{"$f":"IFERROR(INDEX('VNOS PODATKOV'!$C$179:$K$196,MATCH(ROW()-ROW(A$79),'VNOS PODATKOV'!$L$179:$L$196,0),1),\"\")","v":""},{"$f":"IFERROR(INDEX('VNOS PODATKOV'!$C$179:$K$196,MATCH(ROW()-ROW(A$79),'VNOS PODATKOV'!$L$179:$L$196,0),2),\"\")","v":""}]
[{"$f":"IFERROR(INDEX('VNOS PODATKOV'!$C$179:$K$188,MATCH(ROW()-ROW(A$79),'VNOS PODATKOV'!$L$179:$L$188,0),1),\"\")","v":""},{"$f":"IFERROR(INDEX('VNOS PODATKOV'!$C$179:$K$188,MATCH(ROW()-ROW(A$79),'VNOS PODATKOV'!$L$179:$L$188,0),3),\"\")","v":""}]
[{"$f":"'VNOS PODATKOV'!C197","v":"VAROVALNI PASOVI INFRASTRUKTURE"}]
[{"$f":"IFERROR(INDEX('VNOS PODATKOV'!$C$200:$K$212,MATCH(ROW()-ROW(B$99),'VNOS PODATKOV'!$L$200:$L$212,0),1),\"\")","v":"VODOVOD"},{"$f":"IFERROR(INDEX('VNOS PODATKOV'!$C$200:$K$212,MATCH(ROW()-ROW(B$99),'VNOS PODATKOV'!$L$200:$L$212,0),2),\"\")","v":"MNENJE"}]
[{"$f":"IFERROR(INDEX('VNOS PODATKOV'!$C$200:$K$212,MATCH(ROW()-ROW(B$99),'VNOS PODATKOV'!$L$200:$L$212,0),1),\"\")","v":"PLIN"},{"$f":"IFERROR(INDEX('VNOS PODATKOV'!$C$200:$K$212,MATCH(ROW()-ROW(B$99),'VNOS PODATKOV'!$L$200:$L$212,0),2),\"\")","v":"MNENJE Z VIDIKA VAROVANJA ENERGETSKIH SISTEMOV"}]
[{"$f":"IFERROR(INDEX('VNOS PODATKOV'!$C$200:$K$212,MATCH(ROW()-ROW(B$99),'VNOS PODATKOV'!$L$200:$L$212,0),1),\"\")","v":""},{"$f":"IFERROR(INDEX('VNOS PODATKOV'!$C$200:$K$212,MATCH(ROW()-ROW(B$99),'VNOS PODATKOV'!$L$200:$L$212,0),2),\"\")","v":""}]
[{"$f":"IFERROR(INDEX('VNOS PODATKOV'!$C$200:$K$212,MATCH(ROW()-ROW(B$99),'VNOS PODATKOV'!$L$200:$L$212,0),1),\"\")","v":""},{"$f":"IFERROR(INDEX('VNOS PODATKOV'!$C$200:$K$212,MATCH(ROW()-ROW(B$99),'VNOS PODATKOV'!$L$200:$L$212,0),2),\"\")","v":""}]
[{"$f":"IFERROR(INDEX('VNOS PODATKOV'!$C$200:$K$212,MATCH(ROW()-ROW(B$99),'VNOS PODATKOV'!$L$200:$L$212,0),1),\"\")","v":""},{"$f":"IFERROR(INDEX('VNOS PODATKOV'!$C$200:$K$212,MATCH(ROW()-ROW(B$99),'VNOS PODATKOV'!$L$200:$L$212,0),2),\"\")","v":""}]
[{"$f":"IFERROR(INDEX('VNOS PODATKOV'!$C$200:$K$212,MATCH(ROW()-ROW(B$99),'VNOS PODATKOV'!$L$200:$L$212,0),1),\"\")","v":""},{"$f":"IFERROR(INDEX('VNOS PODATKOV'!$C$200:$K$212,MATCH(ROW()-ROW(B$99),'VNOS PODATKOV'!$L$200:$L$212,0),2),\"\")","v":""}]
[{"$f":"IFERROR(INDEX('VNOS PODATKOV'!$C$200:$K$212,MATCH(ROW()-ROW(B$99),'VNOS PODATKOV'!$L$200:$L$212,0),1),\"\")","v":""},{"$f":"IFERROR(INDEX('VNOS PODATKOV'!$C$200:$K$212,MATCH(ROW()-ROW(B$99),'VNOS PODATKOV'!$L$200:$L$212,0),2),\"\")","v":""}]
[{"$f":"IFERROR(INDEX('VNOS PODATKOV'!$C$200:$K$212,MATCH(ROW()-ROW(B$99),'VNOS PODATKOV'!$L$200:$L$212,0),1),\"\")","v":""},{"$f":"IFERROR(INDEX('VNOS PODATKOV'!$C$200:$K$212,MATCH(ROW()-ROW(B$99),'VNOS PODATKOV'!$L$200:$L$212,0),2),\"\")","v":""}]
[{"$f":"IFERROR(INDEX('VNOS PODATKOV'!$C$200:$K$212,MATCH(ROW()-ROW(B$99),'VNOS PODATKOV'!$L$200:$L$212,0),1),\"\")","v":""},{"$f":"IFERROR(INDEX('VNOS PODATKOV'!$C$200:$K$212,MATCH(ROW()-ROW(B$99),'VNOS PODATKOV'!$L$200:$L$212,0),2),\"\")","v":""}]
[{"$f":"IFERROR(INDEX('VNOS PODATKOV'!$C$200:$K$212,MATCH(ROW()-ROW(B$99),'VNOS PODATKOV'!$L$200:$L$212,0),1),\"\")","v":""},{"$f":"IFERROR(INDEX('VNOS PODATKOV'!$C$200:$K$212,MATCH(ROW()-ROW(B$99),'VNOS PODATKOV'!$L$200:$L$212,0),2),\"\")","v":""}]
[{"$f":"IFERROR(INDEX('VNOS PODATKOV'!$C$200:$K$212,MATCH(ROW()-ROW(B$99),'VNOS PODATKOV'!$L$200:$L$212,0),1),\"\")","v":""},{"$f":"IFERROR(INDEX('VNOS PODATKOV'!$C$200:$K$212,MATCH(ROW()-ROW(B$99),'VNOS PODATKOV'!$L$200:$L$212,0),2),\"\")","v":""}]
[{"$f":"IFERROR(INDEX('VNOS PODATKOV'!$C$200:$K$212,MATCH(ROW()-ROW(B$99),'VNOS PODATKOV'!$L$200:$L$212,0),1),\"\")","v":""},{"$f":"IFERROR(INDEX('VNOS PODATKOV'!$C$200:$K$212,MATCH(ROW()-ROW(B$99),'VNOS PODATKOV'!$L$200:$L$212,0),2),\"\")","v":""}]
[{"$f":"IFERROR(INDEX('VNOS PODATKOV'!$C$200:$K$212,MATCH(ROW()-ROW(B$99),'VNOS PODATKOV'!$L$200:$L$212,0),1),\"\")","v":""},{"$f":"IFERROR(INDEX('VNOS PODATKOV'!$C$200:$K$212,MATCH(ROW()-ROW(B$99),'VNOS PODATKOV'!$L$200:$L$212,0),2),\"\")","v":""}]
[{"$f":"IFERROR(INDEX('VNOS PODATKOV'!$C$179:$K$188,MATCH(ROW()-ROW(A$79),'VNOS PODATKOV'!$L$179:$L$188,0),1),\"\")","v":""},{"$f":"IFERROR(INDEX('VNOS PODATKOV'!$C$179:$K$188,MATCH(ROW()-ROW(A$79),'VNOS PODATKOV'!$L$179:$L$188,0),3),\"\")","v":""}]
[{"$f":"'VNOS PODATKOV'!C213","v":"PRIKLJUČEVANJE NA INFRASTRUKTURO"}]
[{"$f":"IFERROR(INDEX('VNOS PODATKOV'!$C$216:$K$226,MATCH(ROW()-ROW(B$114),'VNOS PODATKOV'!$L$216:$L$226,0),1),\"\")","v":"VODOVOD"},{"$f":"IFERROR(INDEX('VNOS PODATKOV'!$C$216:$K$226,MATCH(ROW()-ROW(B$114),'VNOS PODATKOV'!$L$216:$L$226,0),2),\"\")","v":"MNENJE ALI SOGLASJE ZA PRIKLJUČITEV"}]
[{"$f":"IFERROR(INDEX('VNOS PODATKOV'!$C$216:$K$226,MATCH(ROW()-ROW(B$114),'VNOS PODATKOV'!$L$216:$L$226,0),1),\"\")","v":"TOPLOVOD"},{"$f":"IFERROR(INDEX('VNOS PODATKOV'!$C$216:$K$226,MATCH(ROW()-ROW(B$114),'VNOS PODATKOV'!$L$216:$L$226,0),2),\"\")","v":"MNENJE ALI SOGLASJE ZA PRIKLJUČITEV"}]
[{"$f":"IFERROR(INDEX('VNOS PODATKOV'!$C$216:$K$226,MATCH(ROW()-ROW(B$114),'VNOS PODATKOV'!$L$216:$L$226,0),1),\"\")","v":""},{"$f":"IFERROR(INDEX('VNOS PODATKOV'!$C$216:$K$226,MATCH(ROW()-ROW(B$114),'VNOS PODATKOV'!$L$216:$L$226,0),2),\"\")","v":""}]
[{"$f":"IFERROR(INDEX('VNOS PODATKOV'!$C$216:$K$226,MATCH(ROW()-ROW(B$114),'VNOS PODATKOV'!$L$216:$L$226,0),1),\"\")","v":""},{"$f":"IFERROR(INDEX('VNOS PODATKOV'!$C$216:$K$226,MATCH(ROW()-ROW(B$114),'VNOS PODATKOV'!$L$216:$L$226,0),2),\"\")","v":""}]
[{"$f":"IFERROR(INDEX('VNOS PODATKOV'!$C$216:$K$226,MATCH(ROW()-ROW(B$114),'VNOS PODATKOV'!$L$216:$L$226,0),1),\"\")","v":""},{"$f":"IFERROR(INDEX('VNOS PODATKOV'!$C$216:$K$226,MATCH(ROW()-ROW(B$114),'VNOS PODATKOV'!$L$216:$L$226,0),2),\"\")","v":""}]
[{"$f":"IFERROR(INDEX('VNOS PODATKOV'!$C$216:$K$226,MATCH(ROW()-ROW(B$114),'VNOS PODATKOV'!$L$216:$L$226,0),1),\"\")","v":""},{"$f":"IFERROR(INDEX('VNOS PODATKOV'!$C$216:$K$226,MATCH(ROW()-ROW(B$114),'VNOS PODATKOV'!$L$216:$L$226,0),2),\"\")","v":""}]
[{"$f":"IFERROR(INDEX('VNOS PODATKOV'!$C$216:$K$226,MATCH(ROW()-ROW(B$114),'VNOS PODATKOV'!$L$216:$L$226,0),1),\"\")","v":""},{"$f":"IFERROR(INDEX('VNOS PODATKOV'!$C$216:$K$226,MATCH(ROW()-ROW(B$114),'VNOS PODATKOV'!$L$216:$L$226,0),2),\"\")","v":""}]
[{"$f":"IFERROR(INDEX('VNOS PODATKOV'!$C$216:$K$226,MATCH(ROW()-ROW(B$114),'VNOS PODATKOV'!$L$216:$L$226,0),1),\"\")","v":""},{"$f":"IFERROR(INDEX('VNOS PODATKOV'!$C$216:$K$226,MATCH(ROW()-ROW(B$114),'VNOS PODATKOV'!$L$216:$L$226,0),2),\"\")","v":""}]
[{"$f":"IFERROR(INDEX('VNOS PODATKOV'!$C$216:$K$226,MATCH(ROW()-ROW(B$114),'VNOS PODATKOV'!$L$216:$L$226,0),1),\"\")","v":""},{"$f":"IFERROR(INDEX('VNOS PODATKOV'!$C$216:$K$226,MATCH(ROW()-ROW(B$114),'VNOS PODATKOV'!$L$216:$L$226,0),2),\"\")","v":""}]
[{"$f":"IFERROR(INDEX('VNOS PODATKOV'!$C$216:$K$226,MATCH(ROW()-ROW(B$114),'VNOS PODATKOV'!$L$216:$L$226,0),1),\"\")","v":""},{"$f":"IFERROR(INDEX('VNOS PODATKOV'!$C$216:$K$226,MATCH(ROW()-ROW(B$114),'VNOS PODATKOV'!$L$216:$L$226,0),2),\"\")","v":""}]
[{"$f":"IFERROR(INDEX('VNOS PODATKOV'!$C$216:$K$226,MATCH(ROW()-ROW(B$114),'VNOS PODATKOV'!$L$216:$L$226,0),1),\"\")","v":""},{"$f":"IFERROR(INDEX('VNOS PODATKOV'!$C$216:$K$226,MATCH(ROW()-ROW(B$114),'VNOS PODATKOV'!$L$216:$L$226,0),2),\"\")","v":""}]
[{"$f":"'VNOS PODATKOV'!C227","v":"DRUGA MNENJA"}]
[{"$f":"IFERROR(INDEX('VNOS PODATKOV'!$C$230:$K$237,MATCH(ROW()-ROW(A$126),'VNOS PODATKOV'!$L$230:$L$237,0),1),\"\")","v":"SEVALNA VARNOST "},{"$f":"IFERROR(INDEX('VNOS PODATKOV'!$C$230:$K$237,MATCH(ROW()-ROW(A$126),'VNOS PODATKOV'!$L$230:$L$237,0),2),\"\")","v":"MNENJE H GRADNJAM, KI VPLIVAJO NA SEVALNO VARNOST"}]
[{"$f":"IFERROR(INDEX('VNOS PODATKOV'!$C$230:$K$237,MATCH(ROW()-ROW(A$126),'VNOS PODATKOV'!$L$230:$L$237,0),1),\"\")","v":"DRUGO (NAVEDI)"},{"$f":"IFERROR(INDEX('VNOS PODATKOV'!$C$230:$K$237,MATCH(ROW()-ROW(A$126),'VNOS PODATKOV'!$L$230:$L$237,0),2),\"\")","v":"MNENJE"}]
[{"$f":"IFERROR(INDEX('VNOS PODATKOV'!$C$230:$K$237,MATCH(ROW()-ROW(A$126),'VNOS PODATKOV'!$L$230:$L$237,0),1),\"\")","v":""},{"$f":"IFERROR(INDEX('VNOS PODATKOV'!$C$230:$K$237,MATCH(ROW()-ROW(A$126),'VNOS PODATKOV'!$L$230:$L$237,0),2),\"\")","v":""}]
[{"$f":"IFERROR(INDEX('VNOS PODATKOV'!$C$230:$K$237,MATCH(ROW()-ROW(A$126),'VNOS PODATKOV'!$L$230:$L$237,0),1),\"\")","v":""},{"$f":"IFERROR(INDEX('VNOS PODATKOV'!$C$230:$K$237,MATCH(ROW()-ROW(A$126),'VNOS PODATKOV'!$L$230:$L$237,0),2),\"\")","v":""}]
[{"$f":"IFERROR(INDEX('VNOS PODATKOV'!$C$230:$K$237,MATCH(ROW()-ROW(A$126),'VNOS PODATKOV'!$L$230:$L$237,0),1),\"\")","v":""},{"$f":"IFERROR(INDEX('VNOS PODATKOV'!$C$230:$K$237,MATCH(ROW()-ROW(A$126),'VNOS PODATKOV'!$L$230:$L$237,0),2),\"\")","v":""}]
[{"$f":"IFERROR(INDEX('VNOS PODATKOV'!$C$230:$K$237,MATCH(ROW()-ROW(A$126),'VNOS PODATKOV'!$L$230:$L$237,0),1),\"\")","v":""},{"$f":"IFERROR(INDEX('VNOS PODATKOV'!$C$230:$K$237,MATCH(ROW()-ROW(A$126),'VNOS PODATKOV'!$L$230:$L$237,0),2),\"\")","v":""}]
[{"$f":"IFERROR(INDEX('VNOS PODATKOV'!$C$230:$K$237,MATCH(ROW()-ROW(A$126),'VNOS PODATKOV'!$L$230:$L$237,0),1),\"\")","v":""},{"$f":"IFERROR(INDEX('VNOS PODATKOV'!$C$230:$K$237,MATCH(ROW()-ROW(A$126),'VNOS PODATKOV'!$L$230:$L$237,0),2),\"\")","v":""}]
[{"$f":"IFERROR(INDEX('VNOS PODATKOV'!$C$230:$K$237,MATCH(ROW()-ROW(A$126),'VNOS PODATKOV'!$L$230:$L$237,0),1),\"\")","v":""},{"$f":"IFERROR(INDEX('VNOS PODATKOV'!$C$230:$K$237,MATCH(ROW()-ROW(A$126),'VNOS PODATKOV'!$L$230:$L$237,0),2),\"\")","v":""}]

{"sheet":"19D ODO ZAHTEVA BREZ GD","index":7,"n_rows":148,"n_cols":6,"rows_kept":148,"cut":false,"hidden":false,"merged":[[1,0,1,3],[61,0,61,2],[61,3,61,5],[114,2,114,5],[138,2,138,5],[115,2,115,5],[117,2,117,4],[118,2,118,5],[119,2,119,5],[120,2,120,5],[121,2,121,5],[31,0,31,1],[32,0,32,1],[46,0,46,2],[51,0,51,2],[56,0,56,2],[136,2,136,5],[132,2,132,5],[125,2,125,5],[128,2,128,5],[129,2,129,5],[72,2,72,5],[150,2,150,5],[149,2,149,5],[143,2,143,5],[144,2,144,5],[145,2,145,5],[147,2,147,5],[148,2,148,5],[146,2,146,5],[139,2,139,5],[140,2,140,5],[142,2,142,5],[122,2,122,5],[123,2,123,5],[134,2,134,5],[135,2,135,5]]}
["PRILOGA 19D\n"]
["ZAHTEVA ZA DOVOLJENJE \nZA OBJEKT DALJŠEGA OBSTOJA \nBREZ GRADBENEGA DOVOLJENJA \n(146. člen GZ-1)"]
[]
[{"$f":"'VNOS PODATKOV'!C16","v":"INVESTITOR"}]
[{"$f":"'VNOS PODATKOV'!C17","v":"INVESTITOR 1"}]
[{"$f":"'VNOS PODATKOV'!C18","v":"ime in priimek ali naziv družbe"},null,{"$f":"'VNOS PODATKOV'!D18","v":0}]
[{"$f":"'VNOS PODATKOV'!C19","v":"naslov ali poslovni naslov družbe"},null,{"$f":"'VNOS PODATKOV'!D19","v":0}]
[{"$f":"'VNOS PODATKOV'!C20","v":"davčna številka"},null,{"$f":"'VNOS PODATKOV'!D20","v":0}]
[{"$f":"'VNOS PODATKOV'!C21","v":"INVESTITOR 2"}]
[{"$f":"'VNOS PODATKOV'!C22","v":"ime in priimek ali naziv družbe"},null,{"$f":"'VNOS PODATKOV'!D22","v":0}]
[{"$f":"'VNOS PODATKOV'!C23","v":"naslov ali poslovni naslov družbe"},null,{"$f":"'VNOS PODATKOV'!D23","v":0}]
[{"$f":"'VNOS PODATKOV'!C24","v":"davčna številka"},null,{"$f":"'VNOS PODATKOV'!D24","v":0}]
[{"$f":"'VNOS PODATKOV'!C25","v":"INVESTITOR 3"}]
[{"$f":"'VNOS PODATKOV'!C26","v":"ime in priimek ali naziv družbe"},null,{"$f":"'VNOS PODATKOV'!D26","v":0}]
[{"$f":"'VNOS PODATKOV'!C27","v":"naslov ali poslovni naslov družbe"},null,{"$f":"'VNOS PODATKOV'!D27","v":0}]
[{"$f":"'VNOS PODATKOV'!C28","v":"davčna številka"},null,{"$f":"'VNOS PODATKOV'!D28","v":0}]
[]
[{"$f":"'VNOS PODATKOV'!C29","v":"KONTAKTNA OSEBA"}]
[{"$f":"'VNOS PODATKOV'!C30","v":"ime in priimek"},null,{"$f":"'VNOS PODATKOV'!D30","v":0}]
[{"$f":"'VNOS PODATKOV'!C31","v":"telefonska številka"},null,{"$f":"'VNOS PODATKOV'!D31","v":0}]
[{"$f":"'VNOS PODATKOV'!C32","v":"elektronski naslov"},null,{"$f":"'VNOS PODATKOV'!D32","v":0}]
[]
[{"$f":"'VNOS PODATKOV'!C33","v":"POOBLAŠČENEC"}]
[{"$f":"'VNOS PODATKOV'!C34","v":"podatki se vpišejo, če je imenovan pooblaščenec"}]
[{"$f":"'VNOS PODATKOV'!C36","v":"ime in priimek ali naziv družbe"},null,{"$f":"IF('VNOS PODATKOV'!D$35=TRUE,'VNOS PODATKOV'!D36, \"\")","v":""}]
[{"$f":"'VNOS PODATKOV'!C37","v":"naslov ali poslovni naslov družbe"},null,{"$f":"IF('VNOS PODATKOV'!D$35=TRUE,'VNOS PODATKOV'!D37, \"\")","v":""}]
[{"$f":"'VNOS PODATKOV'!C38","v":"kontaktna oseba"},null,{"$f":"IF('VNOS PODATKOV'!D$35=TRUE,'VNOS PODATKOV'!D38, \"\")","v":""}]
[{"$f":"'VNOS PODATKOV'!C39","v":"telefonska številka"},null,{"$f":"IF('VNOS PODATKOV'!D$35=TRUE,'VNOS PODATKOV'!D39, \"\")","v":""}]
[{"$f":"'VNOS PODATKOV'!C40","v":"elektronski naslov"},null,{"$f":"IF('VNOS PODATKOV'!D$35=TRUE,'VNOS PODATKOV'!D40, \"\")","v":""}]
[]
["NAVEDBA ORGANA, PRI KATEREM SE VLAGA ZAHTEVA"]
["naziv",null,{"$f":"'VNOS PODATKOV'!D242","v":0}]
["naslov",null,{"$f":"'VNOS PODATKOV'!D243","v":0}]
[]
["VRSTA NEDOVOLJENE GRADNJE"]
[{"$f":"IF('VNOS PODATKOV'!D119=TRUE,TRUE,FALSE)","v":false},null,{"$f":"'VNOS PODATKOV'!C119","v":"objekt z vplivi na okolje"}]
[{"$f":"IF('VNOS PODATKOV'!D125=TRUE,TRUE,FALSE)","v":false},null,{"$f":"'VNOS PODATKOV'!C125","v":"predhodna presoja vplivov na okolje"}]
[{"$f":"IF('VNOS PODATKOV'!D87=TRUE,TRUE,FALSE)","v":false},null,{"$f":"'VNOS PODATKOV'!C87","v":"zahteva se nanaša na del objekta"}]
[{"$f":"IF('VNOS PODATKOV'!D106=TRUE,TRUE,FALSE)","v":false},null,{"$f":"'VNOS PODATKOV'!C106","v":"gradnja, izvedena brez gradbenega dovoljenja"}]
[{"$f":"IF('VNOS PODATKOV'!D107=TRUE,TRUE,FALSE)","v":false},null,{"$f":"'VNOS PODATKOV'!C107","v":"gradnja, izvedena v nasprotju s pogoji, določenimi z gradbenim dovoljenjem"}]
[]
["PODATKI O GRADNJI"]
["poseg",null,"novogradnja - novozgrajen objekt"]
["datum začetka gradnje objekta"]
["datum izgradnje objekta do faze grobih gradbenih del"]
["datum dokončanja gradnje objekta"]
["po potrebi dodati vrstice"]
["poseg",null,"novogradnja - prizidava"]
["datum začetka gradnje objekta"]
["datum izgradnje objekta do faze grobih gradbenih del"]
["datum dokončanja gradnje objekta"]
["po potrebi dodati vrstice"]
["poseg",null,"rekonstrukcija"]
["datum začetka gradnje objekta"]
["datum izgradnje objekta do faze grobih gradbenih del"]
["datum dokončanja gradnje objekta"]
["po potrebi dodati vrstice"]
["poseg",null,"sprememba namembnosti"]
["datum začetka gradnje objekta"]
["datum izgradnje objekta do faze grobih gradbenih del"]
["datum dokončanja gradnje objekta"]
["po potrebi dodati vrstice"]
[]
["PODATKI O OBJEKTU"]
[{"$f":"'VNOS PODATKOV'!C82","v":"naziv objekta ali dela objekta"},null,{"$f":"'VNOS PODATKOV'!D82","v":0}]
[{"$f":"'VNOS PODATKOV'!C84","v":"naslov stavbe, če je določen"},null,{"$f":"'VNOS PODATKOV'!D84","v":0}]
[{"$f":"'VNOS PODATKOV'!C85","v":"vrsta objekta"},null,{"$f":"'VNOS PODATKOV'!D85","v":0}]
[{"$f":"'VNOS PODATKOV'!C86","v":"zahtevnost objekta"},null,{"$f":"'VNOS PODATKOV'!D86","v":0}]
["klasifikacija po CC-SI ",null,{"$f":"IF(C67=\"STAVBA\",'VNOS PODATKOV'!D98,'VNOS PODATKOV'!D99)","v":0}]
[{"$f":"IF('VNOS PODATKOV'!D101=TRUE,TRUE,FALSE)","v":false},null,{"$f":"'VNOS PODATKOV'!C101","v":"objekt je vpisan v kataster nepremičnin"}]
[{"$f":"'VNOS PODATKOV'!C102","v":"številka stavbe"},null,{"$f":"'VNOS PODATKOV'!D102","v":0}]
[{"$f":"'VNOS PODATKOV'!C103","v":"številka posameznega dela stavbe"},null,{"$f":"'VNOS PODATKOV'!D103","v":0}]
[{"$f":"IF('VNOS PODATKOV'!D104=TRUE,TRUE,FALSE)","v":false},null,{"$f":"'VNOS PODATKOV'!C104","v":"objekt gospodarske javne infrastrukture je evidentiran v katastru gospodarske javne infrastrukture "}]
[{"$f":"IF('VNOS PODATKOV'!D90=TRUE,TRUE,FALSE)","v":false},null,{"$f":"'VNOS PODATKOV'!C90","v":"v objektu se izvaja dejavnost gasilske službe v skladu z zakonom, ki ureja gasilstvo"}]
[{"$f":"'VNOS PODATKOV'!C111","v":"bruto etažna površina stavbe ali dela stavbe, ki se legalizira"},null,{"$f":"'VNOS PODATKOV'!D111","v":0}]
[{"$f":"'VNOS PODATKOV'!C113","v":"dolžina oziroma višina objekta, če gre za gradbenoinženirski objekt, ograjo ali podporni zid"},null,{"$f":"'VNOS PODATKOV'!D113","v":0}]
[]
["ZEMLJIŠČA, NA KATERIH SE NAHAJA OBJEKT"]
["ustrezno izpolni"]
[{"$f":"'VNOS PODATKOV'!C93","v":"številka katastrske občine"},null,{"$f":"'VNOS PODATKOV'!D93","v":0}]
[{"$f":"'VNOS PODATKOV'!C94","v":"katastrska občina"},null,{"$f":"'VNOS PODATKOV'!D94","v":0}]
[{"$f":"'VNOS PODATKOV'!C95","v":"parc. št."},null,{"$f":"'VNOS PODATKOV'!D95","v":0}]
[{"$f":"'VNOS PODATKOV'!C152","v":"OBJEKT JE PRIKLJUČEN NA KOMUNALNO INFRASTRUKTURO (NAVEDI, KATERO):"}]
[]
[null,null,{"$f":"IFERROR(INDEX('VNOS PODATKOV'!$C$155:$H$169,MATCH(ROW()-ROW(A$84),'VNOS PODATKOV'!$N$155:$N$169,0),1),\"\")","v":""},null,{"$f":"IFERROR(IF(OR(#REF!='BAZA PODATKOV'!$A$3,#REF!='BAZA PODATKOV'!$A$4),INDEX('VNOS PODATKOV'!$C$155:$H$169,MATCH(ROW()-ROW(E$84),'VNOS PODATKOV'!$N$155:$N$169,0),3),\"\"),\"\")","v":""},{"$f":"IFERROR(IF(OR(#REF!='BAZA PODATKOV'!$A$3,#REF!='BAZA PODATKOV'!$A$4),INDEX('VNOS PODATKOV'!$C$155:$H$169,MATCH(ROW()-ROW(F$84),'VNOS PODATKOV'!$N$155:$N$169,0),4),\"\"),\"\")","v":""}]
[null,null,{"$f":"IFERROR(INDEX('VNOS PODATKOV'!$C$155:$H$169,MATCH(ROW()-ROW(A$84),'VNOS PODATKOV'!$N$155:$N$169,0),1),\"\")","v":""},null,{"$f":"IFERROR(IF(OR(#REF!='BAZA PODATKOV'!$A$3,#REF!='BAZA PODATKOV'!$A$4),INDEX('VNOS PODATKOV'!$C$155:$H$169,MATCH(ROW()-ROW(E$84),'VNOS PODATKOV'!$N$155:$N$169,0),3),\"\"),\"\")","v":""},{"$f":"IFERROR(IF(OR(#REF!='BAZA PODATKOV'!$A$3,#REF!='BAZA PODATKOV'!$A$4),INDEX('VNOS PODATKOV'!$C$155:$H$169,MATCH(ROW()-ROW(F$84),'VNOS PODATKOV'!$N$155:$N$169,0),4),\"\"),\"\")","v":""}]
[null,null,{"$f":"IFERROR(INDEX('VNOS PODATKOV'!$C$155:$H$169,MATCH(ROW()-ROW(A$84),'VNOS PODATKOV'!$N$155:$N$169,0),1),\"\")","v":""},null,{"$f":"IFERROR(IF(OR(#REF!='BAZA PODATKOV'!$A$3,#REF!='BAZA PODATKOV'!$A$4),INDEX('VNOS PODATKOV'!$C$155:$H$169,MATCH(ROW()-ROW(E$84),'VNOS PODATKOV'!$N$155:$N$169,0),3),\"\"),\"\")","v":""},{"$f":"IFERROR(IF(OR(#REF!='BAZA PODATKOV'!$A$3,#REF!='BAZA PODATKOV'!$A$4),INDEX('VNOS PODATKOV'!$C$155:$H$169,MATCH(ROW()-ROW(F$84),'VNOS PODATKOV'!$N$155:$N$169,0),4),\"\"),\"\")","v":""}]
[null,null,{"$f":"IFERROR(INDEX('VNOS PODATKOV'!$C$155:$H$169,MATCH(ROW()-ROW(A$84),'VNOS PODATKOV'!$N$155:$N$169,0),1),\"\")","v":""},null,{"$f":"IFERROR(IF(OR(#REF!='BAZA PODATKOV'!$A$3,#REF!='BAZA PODATKOV'!$A$4),INDEX('VNOS PODATKOV'!$C$155:$H$169,MATCH(ROW()-ROW(E$84),'VNOS PODATKOV'!$N$155:$N$169,0),3),\"\"),\"\")","v":""},{"$f":"IFERROR(IF(OR(#REF!='BAZA PODATKOV'!$A$3,#REF!='BAZA PODATKOV'!$A$4),INDEX('VNOS PODATKOV'!$C$155:$H$169,MATCH(ROW()-ROW(F$84),'VNOS PODATKOV'!$N$155:$N$169,0),4),\"\"),\"\")","v":""}]
[null,null,{"$f":"IFERROR(INDEX('VNOS PODATKOV'!$C$155:$H$169,MATCH(ROW()-ROW(A$84),'VNOS PODATKOV'!$N$155:$N$169,0),1),\"\")","v":""},null,{"$f":"IFERROR(IF(OR(#REF!='BAZA PODATKOV'!$A$3,#REF!='BAZA PODATKOV'!$A$4),INDEX('VNOS PODATKOV'!$C$155:$H$169,MATCH(ROW()-ROW(E$84),'VNOS PODATKOV'!$N$155:$N$169,0),3),\"\"),\"\")","v":""},{"$f":"IFERROR(IF(OR(#REF!='BAZA PODATKOV'!$A$3,#REF!='BAZA PODATKOV'!$A$4),INDEX('VNOS PODATKOV'!$C$155:$H$169,MATCH(ROW()-ROW(F$84),'VNOS PODATKOV'!$N$155:$N$169,0),4),\"\"),\"\")","v":""}]
[null,null,{"$f":"IFERROR(INDEX('VNOS PODATKOV'!$C$155:$H$169,MATCH(ROW()-ROW(A$84),'VNOS PODATKOV'!$N$155:$N$169,0),1),\"\")","v":""},null,{"$f":"IFERROR(IF(OR(#REF!='BAZA PODATKOV'!$A$3,#REF!='BAZA PODATKOV'!$A$4),INDEX('VNOS PODATKOV'!$C$155:$H$169,MATCH(ROW()-ROW(E$84),'VNOS PODATKOV'!$N$155:$N$169,0),3),\"\"),\"\")","v":""},{"$f":"IFERROR(IF(OR(#REF!='BAZA PODATKOV'!$A$3,#REF!='BAZA PODATKOV'!$A$4),INDEX('VNOS PODATKOV'!$C$155:$H$169,MATCH(ROW()-ROW(F$84),'VNOS PODATKOV'!$N$155:$N$169,0),4),\"\"),\"\")","v":""}]
[null,null,{"$f":"IFERROR(INDEX('VNOS PODATKOV'!$C$155:$H$169,MATCH(ROW()-ROW(A$84),'VNOS PODATKOV'!$N$155:$N$169,0),1),\"\")","v":""},null,{"$f":"IFERROR(IF(OR(#REF!='BAZA PODATKOV'!$A$3,#REF!='BAZA PODATKOV'!$A$4),INDEX('VNOS PODATKOV'!$C$155:$H$169,MATCH(ROW()-ROW(E$84),'VNOS PODATKOV'!$N$155:$N$169,0),3),\"\"),\"\")","v":""},{"$f":"IFERROR(IF(OR(#REF!='BAZA PODATKOV'!$A$3,#REF!='BAZA PODATKOV'!$A$4),INDEX('VNOS PODATKOV'!$C$155:$H$169,MATCH(ROW()-ROW(F$84),'VNOS PODATKOV'!$N$155:$N$169,0),4),\"\"),\"\")","v":""}]
[null,null,{"$f":"IFERROR(INDEX('VNOS PODATKOV'!$C$155:$H$169,MATCH(ROW()-ROW(A$84),'VNOS PODATKOV'!$N$155:$N$169,0),1),\"\")","v":""},null,{"$f":"IFERROR(IF(OR(#REF!='BAZA PODATKOV'!$A$3,#REF!='BAZA PODATKOV'!$A$4),INDEX('VNOS PODATKOV'!$C$155:$H$169,MATCH(ROW()-ROW(E$84),'VNOS PODATKOV'!$N$155:$N$169,0),3),\"\"),\"\")","v":""},{"$f":"IFERROR(IF(OR(#REF!='BAZA PODATKOV'!$A$3,#REF!='BAZA PODATKOV'!$A$4),INDEX('VNOS PODATKOV'!$C$155:$H$169,MATCH(ROW()-ROW(F$84),'VNOS PODATKOV'!$N$155:$N$169,0),4),\"\"),\"\")","v":""}]
[null,null,{"$f":"IFERROR(INDEX('VNOS PODATKOV'!$C$155:$H$169,MATCH(ROW()-ROW(A$84),'VNOS PODATKOV'!$N$155:$N$169,0),1),\"\")","v":""},null,{"$f":"IFERROR(IF(OR(#REF!='BAZA PODATKOV'!$A$3,#REF!='BAZA PODATKOV'!$A$4),INDEX('VNOS PODATKOV'!$C$155:$H$169,MATCH(ROW()-ROW(E$84),'VNOS PODATKOV'!$N$155:$N$169,0),3),\"\"),\"\")","v":""},{"$f":"IFERROR(IF(OR(#REF!='BAZA PODATKOV'!$A$3,#REF!='BAZA PODATKOV'!$A$4),INDEX('VNOS PODATKOV'!$C$155:$H$169,MATCH(ROW()-ROW(F$84),'VNOS PODATKOV'!$N$155:$N$169,0),4),\"\"),\"\")","v":""}]
[null,null,{"$f":"IFERROR(INDEX('VNOS PODATKOV'!$C$155:$H$169,MATCH(ROW()-ROW(A$84),'VNOS PODATKOV'!$N$155:$N$169,0),1),\"\")","v":""},null,{"$f":"IFERROR(IF(OR(#REF!='BAZA PODATKOV'!$A$3,#REF!='BAZA PODATKOV'!$A$4),INDEX('VNOS PODATKOV'!$C$155:$H$169,MATCH(ROW()-ROW(E$84),'VNOS PODATKOV'!$N$155:$N$169,0),3),\"\"),\"\")","v":""},{"$f":"IFERROR(IF(OR(#REF!='BAZA PODATKOV'!$A$3,#REF!='BAZA PODATKOV'!$A$4),INDEX('VNOS PODATKOV'!$C$155:$H$169,MATCH(ROW()-ROW(F$84),'VNOS PODATKOV'!$N$155:$N$169,0),4),\"\"),\"\")","v":""}]
[null,null,{"$f":"IFERROR(INDEX('VNOS PODATKOV'!$C$155:$H$169,MATCH(ROW()-ROW(A$84),'VNOS PODATKOV'!$N$155:$N$169,0),1),\"\")","v":""},null,{"$f":"IFERROR(IF(OR(#REF!='BAZA PODATKOV'!$A$3,#REF!='BAZA PODATKOV'!$A$4),INDEX('VNOS PODATKOV'!$C$155:$H$169,MATCH(ROW()-ROW(E$84),'VNOS PODATKOV'!$N$155:$N$169,0),3),\"\"),\"\")","v":""},{"$f":"IFERROR(IF(OR(#REF!='BAZA PODATKOV'!$A$3,#REF!='BAZA PODATKOV'!$A$4),INDEX('VNOS PODATKOV'!$C$155:$H$169,MATCH(ROW()-ROW(F$84),'VNOS PODATKOV'!$N$155:$N$169,0),4),\"\"),\"\")","v":""}]
[null,null,{"$f":"IFERROR(INDEX('VNOS PODATKOV'!$C$155:$H$169,MATCH(ROW()-ROW(A$84),'VNOS PODATKOV'!$N$155:$N$169,0),1),\"\")","v":""},null,{"$f":"IFERROR(IF(OR(#REF!='BAZA PODATKOV'!$A$3,#REF!='BAZA PODATKOV'!$A$4),INDEX('VNOS PODATKOV'!$C$155:$H$169,MATCH(ROW()-ROW(E$84),'VNOS PODATKOV'!$N$155:$N$169,0),3),\"\"),\"\")","v":""},{"$f":"IFERROR(IF(OR(#REF!='BAZA PODATKOV'!$A$3,#REF!='BAZA PODATKOV'!$A$4),INDEX('VNOS PODATKOV'!$C$155:$H$169,MATCH(ROW()-ROW(F$84),'VNOS PODATKOV'!$N$155:$N$169,0),4),\"\"),\"\")","v":""}]
[null,null,{"$f":"IFERROR(INDEX('VNOS PODATKOV'!$C$155:$H$169,MATCH(ROW()-ROW(A$84),'VNOS PODATKOV'!$N$155:$N$169,0),1),\"\")","v":""},null,{"$f":"IFERROR(IF(OR(#REF!='BAZA PODATKOV'!$A$3,#REF!='BAZA PODATKOV'!$A$4),INDEX('VNOS PODATKOV'!$C$155:$H$169,MATCH(ROW()-ROW(E$84),'VNOS PODATKOV'!$N$155:$N$169,0),3),\"\"),\"\")","v":""},{"$f":"IFERROR(IF(OR(#REF!='BAZA PODATKOV'!$A$3,#REF!='BAZA PODATKOV'!$A$4),INDEX('VNOS PODATKOV'!$C$155:$H$169,MATCH(ROW()-ROW(F$84),'VNOS PODATKOV'!$N$155:$N$169,0),4),\"\"),\"\")","v":""}]
[null,null,{"$f":"IFERROR(INDEX('VNOS PODATKOV'!$C$155:$H$169,MATCH(ROW()-ROW(A$84),'VNOS PODATKOV'!$N$155:$N$169,0),1),\"\")","v":""},null,{"$f":"IFERROR(IF(OR(#REF!='BAZA PODATKOV'!$A$3,#REF!='BAZA PODATKOV'!$A$4),INDEX('VNOS PODATKOV'!$C$155:$H$169,MATCH(ROW()-ROW(E$84),'VNOS PODATKOV'!$N$155:$N$169,0),3),\"\"),\"\")","v":""},{"$f":"IFERROR(IF(OR(#REF!='BAZA PODATKOV'!$A$3,#REF!='BAZA PODATKOV'!$A$4),INDEX('VNOS PODATKOV'!$C$155:$H$169,MATCH(ROW()-ROW(F$84),'VNOS PODATKOV'!$N$155:$N$169,0),4),\"\"),\"\")","v":""}]
["IZDANE ODLOČBE V ZVEZI Z OBJEKTOM"]
[null,null,"navedba organa, \nki je izdal odločbo","številka odločbe","datum odločbe","datum pravnomočnosti"]
["lokacijsko dovoljenje",null,{"$f":"'VNOS PODATKOV'!D246","v":0},{"$f":"'VNOS PODATKOV'!D247","v":0},{"$f":"'VNOS PODATKOV'!D248","v":"00:00:00"},{"$f":"'VNOS PODATKOV'!D249","v":"00:00:00"}]
["gradbeno dovoljenje",null,{"$f":"'VNOS PODATKOV'!D251","v":0},{"$f":"'VNOS PODATKOV'!D252","v":0},{"$f":"'VNOS PODATKOV'!D253","v":"00:00:00"},{"$f":"'VNOS PODATKOV'!D254","v":"00:00:00"}]
["inšpekcijski ukrep v zvezi z nevarno gradnjo",null,{"$f":"'VNOS PODATKOV'!D261","v":0},{"$f":"'VNOS PODATKOV'!D262","v":0},{"$f":"'VNOS PODATKOV'!D263","v":"00:00:00"},{"$f":"'VNOS PODATKOV'!D264","v":"00:00:00"}]
["okoljevarstveno soglasje",null,{"$f":"'VNOS PODATKOV'!D266","v":0},{"$f":"'VNOS PODATKOV'!D267","v":0},{"$f":"'VNOS PODATKOV'!D268","v":"00:00:00"},{"$f":"'VNOS PODATKOV'!D269","v":"00:00:00"}]
["naravovarstveno soglasje",null,{"$f":"'VNOS PODATKOV'!D271","v":0},{"$f":"'VNOS PODATKOV'!D272","v":0},{"$f":"'VNOS PODATKOV'!D273","v":"00:00:00"},{"$f":"'VNOS PODATKOV'!D274","v":"00:00:00"}]
[{"$f":"'VNOS PODATKOV'!D276","v":0},null,{"$f":"'VNOS PODATKOV'!D277","v":0},{"$f":"'VNOS PODATKOV'!D278","v":0},{"$f":"'VNOS PODATKOV'!D279","v":"00:00:00"},{"$f":"'VNOS PODATKOV'!D280","v":"00:00:00"}]
[]
["PREDHODNA PRESOJA VPLIVOV NA OKOLJE"]
["podatki se vpišejo, če je bil izveden predhodni postopek v skladu z zakonom, ki ureja varstvo okolja"]
[{"$f":"'VNOS PODATKOV'!C126","v":"številka sklepa"},null,{"$f":"'VNOS PODATKOV'!D126","v":0}]
[{"$f":"'VNOS PODATKOV'!C127","v":"datum sklepa"},null,{"$f":"'VNOS PODATKOV'!D127","v":"00:00:00"}]
[]
["IZKAZOVANJE PRAVICE GRADITI"]
["ustrezno označiti"]
[null,null,"Lastninska ali druga stvarna pravica na nepremičninah, na katerih se bo izvajala gradnja, je vpisana v zemljiški knjigi"]
[null,null,"Iz uradnih evidenc je razvidno, da je investitor zakoniti upravljavec nepremičnine, na kateri se bo izvajala gradnja"]
[]
[null,null,"Pravico graditi izkazujem z listinami:"]
[null,null,"Notarsko overjena pogodba o pridobitvi lastninske ali druge stvarne pravice na nepremičninah, na katerih se bo izvajala gradnja, ki je predlagana za vpis v zemljiško knjigo"]
[null,null,"Sodna ali upravna odločba, ki investitorju omogoča gradnjo oziroma izvajanje del"]
[null,null,"Sklep o določitvi investitorja kot upravljavca nepremičnine, če gre za nepremičnino v lasti njegovega ustanovitelja"]
[null,null,"Druga listina, ki v skladu z zakonom investitorju omogoča gradnjo oziroma izvajanje del"]
[null,null,"Soglasje upravljavca javne ceste za izvedbo gradnje v cestnem telesu, če gre za gradnjo objekta gospodarske javne infrastrukture, skupaj s priključki, ki se izvaja v cestnem telesu javne ceste"]
[null,null,"Notarsko overjena pogodba o pridobitvi obligacijske pravice za nepremičnine, na katerih so predvidene začasne ureditve za potrebe gradnje"]
[]
[null,null,"Na podlagi navedenih podatkov in priloženih listin vas prosim za izdajo dovoljenja za objekt daljšega obstoja."]
[]
["datum",null,"podpis vložnika"]
[{"$f":"TODAY()","v":"2023-10-04"}]
[]
[]
["PRILOGE"]
["ustrezno označiti",null,"Pooblastilo (če zahteve ne vlaga investitor)"]
[null,null,"Odločbe v zvezi z objektom, kot navedeno zgoraj"]
[null,null,"Dokazilo, da se v objektu izvaja dejavnost gasilske službe v skladu z zakonom, ki ureja gasilstvo"]
[null,null,"Podatki in dokazila o morebitnih preteklih vlaganjih v komunalno opremo, že poravnanih obveznostih plačila komunalnega prispevka in druga dokumentacija, pomembna za odločitev o odmeri komunalnega prispevka (navesti, katera):"]
[]
[]
[]
[null,null,"Dokazila, da objekt obstaja v bistveno enakem obsegu in bistveno enake namembnosti od 1. januarja 2005 (navesti, katera):"]
[]
[]
[]
[null,null,"Grafični prikaz nepremičnine, če je objekt vpisan v kataster nepremičnin"]
[null,null,"Elaborat v skladu z zakonom, ki ureja kataster nepremičnin; če objekt še ni vpisan v kataster nepremičnin, pa je tak vpis predpisan"]
[null,null,"Posnetek obstoječega stanja (tlorisi, prerezi in pogledi oziroma drugi posnetki in dimenzije objekta, površina gradbene parcele, če se parcela določa, pri stavbah tudi tlorisi vseh etaž z osnovnimi merami prostorov, seznamom prostorov s površinami in podatek o bruto tlorisni površini ter pri stavbah kulturne dediščine tudi vse fasade)"]
[null,null,"Pisne izjave strank, da se strinjajo z zgrajenim objektom, če so pridobljene"]
[null,null,"Druge priloge (navesti, katere):"]

{"sheet":"19E ODO ZAHTEVA Z GD","index":8,"n_rows":71,"n_cols":4,"rows_kept":71,"cut":false,"hidden":false,"merged":[[1,0,1,3],[36,2,36,3],[31,0,31,1],[32,0,32,1],[73,2,73,3],[45,0,45,3],[71,2,71,3],[72,2,72,3],[62,2,62,3],[63,2,63,3],[59,2,59,3]]}
["PRILOGA 19E\n"]
["ZAHTEVA ZA IZDAJO \nUPORABNEGA DOVOLJENJA \nZA OBSTOJEČI OBJEKT DALJŠEGA OBSTOJA \nZ GRADBENIM DOVOLJENJEM\n(147. člen GZ-1)"]
[]
[{"$f":"'VNOS PODATKOV'!C16","v":"INVESTITOR"}]
[{"$f":"'VNOS PODATKOV'!C17","v":"INVESTITOR 1"}]
[{"$f":"'VNOS PODATKOV'!C18","v":"ime in priimek ali naziv družbe"},null,{"$f":"'VNOS PODATKOV'!D18","v":0}]
[{"$f":"'VNOS PODATKOV'!C19","v":"naslov ali poslovni naslov družbe"},null,{"$f":"'VNOS PODATKOV'!D19","v":0}]
[{"$f":"'VNOS PODATKOV'!C20","v":"davčna številka"},null,{"$f":"'VNOS PODATKOV'!D20","v":0}]
[{"$f":"'VNOS PODATKOV'!C21","v":"INVESTITOR 2"}]
[{"$f":"'VNOS PODATKOV'!C22","v":"ime in priimek ali naziv družbe"},null,{"$f":"'VNOS PODATKOV'!D22","v":0}]
[{"$f":"'VNOS PODATKOV'!C23","v":"naslov ali poslovni naslov družbe"},null,{"$f":"'VNOS PODATKOV'!D23","v":0}]
[{"$f":"'VNOS PODATKOV'!C24","v":"davčna številka"},null,{"$f":"'VNOS PODATKOV'!D24","v":0}]
[{"$f":"'VNOS PODATKOV'!C25","v":"INVESTITOR 3"}]
[{"$f":"'VNOS PODATKOV'!C26","v":"ime in priimek ali naziv družbe"},null,{"$f":"'VNOS PODATKOV'!D26","v":0}]
[{"$f":"'VNOS PODATKOV'!C27","v":"naslov ali poslovni naslov družbe"},null,{"$f":"'VNOS PODATKOV'!D27","v":0}]
[{"$f":"'VNOS PODATKOV'!C28","v":"davčna številka"},null,{"$f":"'VNOS PODATKOV'!D28","v":0}]
[]
[{"$f":"'VNOS PODATKOV'!C29","v":"KONTAKTNA OSEBA"}]
[{"$f":"'VNOS PODATKOV'!C30","v":"ime in priimek"},null,{"$f":"'VNOS PODATKOV'!D30","v":0}]
[{"$f":"'VNOS PODATKOV'!C31","v":"telefonska številka"},null,{"$f":"'VNOS PODATKOV'!D31","v":0}]
[{"$f":"'VNOS PODATKOV'!C32","v":"elektronski naslov"},null,{"$f":"'VNOS PODATKOV'!D32","v":0}]
[]
[{"$f":"'VNOS PODATKOV'!C33","v":"POOBLAŠČENEC"}]
[{"$f":"'VNOS PODATKOV'!C34","v":"podatki se vpišejo, če je imenovan pooblaščenec"}]
[{"$f":"'VNOS PODATKOV'!C36","v":"ime in priimek ali naziv družbe"},null,{"$f":"IF('VNOS PODATKOV'!D$35=TRUE,'VNOS PODATKOV'!D36, \"\")","v":""}]
[{"$f":"'VNOS PODATKOV'!C37","v":"naslov ali poslovni naslov družbe"},null,{"$f":"IF('VNOS PODATKOV'!D$35=TRUE,'VNOS PODATKOV'!D37, \"\")","v":""}]
[{"$f":"'VNOS PODATKOV'!C38","v":"kontaktna oseba"},null,{"$f":"IF('VNOS PODATKOV'!D$35=TRUE,'VNOS PODATKOV'!D38, \"\")","v":""}]
[{"$f":"'VNOS PODATKOV'!C39","v":"telefonska številka"},null,{"$f":"IF('VNOS PODATKOV'!D$35=TRUE,'VNOS PODATKOV'!D39, \"\")","v":""}]
[{"$f":"'VNOS PODATKOV'!C40","v":"elektronski naslov"},null,{"$f":"IF('VNOS PODATKOV'!D$35=TRUE,'VNOS PODATKOV'!D40, \"\")","v":""}]
[]
["NAVEDBA ORGANA, PRI KATEREM SE VLAGA ZAHTEVA"]
["naziv",null,{"$f":"'VNOS PODATKOV'!D242","v":0}]
["naslov",null,{"$f":"'VNOS PODATKOV'!D243","v":0}]
[]
["PODATKI O OBJEKTU"]
[{"$f":"'VNOS PODATKOV'!C82","v":"naziv objekta ali dela objekta"},null,{"$f":"'VNOS PODATKOV'!D82","v":0}]
[{"$f":"'VNOS PODATKOV'!C83","v":"kratek opis"},null,{"$f":"'VNOS PODATKOV'!D83","v":0}]
["ZEMLJIŠČA, NA KATERIH SE NAHAJA OBJEKT, TER NAVEDBA GRADBENE PARCELE"]
["ustrezno izpolniti"]
[{"$f":"'VNOS PODATKOV'!C93","v":"številka katastrske občine"},null,{"$f":"'VNOS PODATKOV'!D93","v":0}]
[{"$f":"'VNOS PODATKOV'!C94","v":"katastrska občina"},null,{"$f":"'VNOS PODATKOV'!D94","v":0}]
[{"$f":"'VNOS PODATKOV'!C95","v":"parc. št."},null,{"$f":"'VNOS PODATKOV'!D95","v":0}]
[{"$f":"'VNOS PODATKOV'!C96","v":"velikost gradbene parcele"},null,{"$f":"'VNOS PODATKOV'!D96","v":0}]
[]
["IZPOLNJEVANJE POGOJEV ZA IZDAJO ODLOČBE"]
["(za dokazila se lahko poleg potrdil in drugih listin, ki jih izdajajo pristojni državni organi, organi lokalnih skupnosti in nosilci javnih pooblastil, štejejo tudi izjave izvedencev, prič in ogledi objektov oziroma prostorov v njih, v skladu s predpisi, ki urejajo splošni upravni postopek; stranka lahko predlaga tudi vpogled v javno evidenco, ki ga izvede upravni organ sam)"]
[]
[null,null,"Izpolnjevanje pogojev za izdajo odločbe dokazujem z:"]
[]
[null,null,"pogoj","dokazilo"]
[null,null,"gradbeno dovoljenje"]
[null,null,"objekt, zgrajen pred 1. januarjem 2005"]
[null,null,"stavba, zgrajena v skladu z gradbenim dovoljenjem in dopustnimi manjšimi odstopanji iz 79. člena GZ-1","izjava pooblaščenega strokovnjaka"]
[null,null,"za stavbo ni bil izrečen inšpekcijski ukrep"]
[null,null,"stavba, vpisana v kataster nepremičnin, ali"]
[null,null,"dokazilo, da je vložena zahteva z elaboratom za vpis v kataster nepremičnin"]
[null,null,"zahteva se nanaša na del objekta, ki bo skupaj z obstoječim objektom zagotavljal funkcionalno celoto"]
[null,null," za obstoječi objekt je bilo izdano uporabno dovoljenje"]
[]
[null,null,"Na podlagi navedenih podatkov in priloženih listin vas prosim za izdajo uporabnega dovoljenja za obstoječi objekt daljšega obstoja z gradbenim dovoljenjem."]
[]
["datum",null,"podpis vložnika"]
[{"$f":"TODAY()","v":"2023-10-04"}]
[]
[]
["PRILOGE"]
["ustrezno označiti",null,"Izjava pooblaščenega strokovnjaka"]
[null,null,"Dokazilo, da je vložena zahteva z elaboratom za vpis podatkov v kataster nepremičnin"]
[null,null,"Druga dokazila, kot navedeno zgoraj"]
[null,null,"Pooblastilo (če je imenovan pooblaščenec)"]
[null,null,"Druge priloge (navesti, katere):"]

{"sheet":"19F UD IZJAVA ODO Z GD","index":9,"n_rows":40,"n_cols":2,"rows_kept":40,"cut":false,"hidden":false,"merged":[[1,0,1,1]]}
["PRILOGA 19F"]
["IZJAVA POOBLAŠČENEGA STROKOVNJAKA \nOB ZAHTEVI ZA IZDAJO UD \nZA OBJEKT DALJŠEGA OBSTOJA Z GD\n(1. odstavek 147. člena GZ-1)"]
[]
["PODATKI O INVESTITORJU, OBJEKTU IN ZEMLJIŠČIH"]
["VLAGATELJ 1"]
[{"$f":"'VNOS PODATKOV'!C18","v":"ime in priimek ali naziv družbe"},{"$f":"'VNOS PODATKOV'!D18","v":0}]
[{"$f":"'VNOS PODATKOV'!C19","v":"naslov ali poslovni naslov družbe"},{"$f":"'VNOS PODATKOV'!D19","v":0}]
[{"$f":"'VNOS PODATKOV'!C20","v":"davčna številka"},{"$f":"'VNOS PODATKOV'!D20","v":0}]
["VLAGATELJ 2"]
[{"$f":"'VNOS PODATKOV'!C22","v":"ime in priimek ali naziv družbe"},{"$f":"'VNOS PODATKOV'!D22","v":0}]
[{"$f":"'VNOS PODATKOV'!C23","v":"naslov ali poslovni naslov družbe"},{"$f":"'VNOS PODATKOV'!D23","v":0}]
[{"$f":"'VNOS PODATKOV'!C24","v":"davčna številka"},{"$f":"'VNOS PODATKOV'!D24","v":0}]
["VLAGATELJ 3"]
[{"$f":"'VNOS PODATKOV'!C26","v":"ime in priimek ali naziv družbe"},{"$f":"'VNOS PODATKOV'!D26","v":0}]
[{"$f":"'VNOS PODATKOV'!C27","v":"naslov ali poslovni naslov družbe"},{"$f":"'VNOS PODATKOV'!D27","v":0}]
[{"$f":"'VNOS PODATKOV'!C28","v":"davčna številka"},{"$f":"'VNOS PODATKOV'!D28","v":0}]
["PODATKI O GRADNJI"]
["naziv objekta",{"$f":"'VNOS PODATKOV'!D82","v":0}]
["naslov objekta",{"$f":"'VNOS PODATKOV'!D84","v":0}]
["ZEMLJIŠČA, NA KATERIH SE NAHAJA OBJEKT"]
["ustrezno izpolniti"]
[{"$f":"'VNOS PODATKOV'!C93","v":"številka katastrske občine"},{"$f":"'VNOS PODATKOV'!D93","v":0}]
[{"$f":"'VNOS PODATKOV'!C94","v":"katastrska občina"},{"$f":"'VNOS PODATKOV'!D94","v":0}]
[{"$f":"'VNOS PODATKOV'!C95","v":"parc. št."},{"$f":"'VNOS PODATKOV'!D95","v":0}]
["POOBLAŠČENI STROKOVNJAK"]
[{"$f":"'VNOS PODATKOV'!C48","v":"ime in priimek"},{"$f":"IF('VNOS PODATKOV'!D48=\"\",\"\",(CONCATENATE('VNOS PODATKOV'!D48,\", \",'VNOS PODATKOV'!D49)))","v":""}]
[{"$f":"'VNOS PODATKOV'!C50","v":"identifikacijska številka"},{"$f":"'VNOS PODATKOV'!D50","v":0}]
[{"$f":"'VNOS PODATKOV'!C44","v":"družba"},{"$f":"'VNOS PODATKOV'!D44","v":0}]
[]
[null,"IZJAVLJAM:"]
[null,"da je objekt izveden v skladu z gradbenim dovoljenjem:"]
[]
["številka dovoljenja",{"$f":"'VNOS PODATKOV'!D252","v":0}]
["z dne",{"$f":"'VNOS PODATKOV'!D253","v":"00:00:00"}]
[]
[null,"ob upoštevanju dopustnih manjših odstopanj iz 79. člena Gradbenega zakona (GZ-1)."]
[]
["pooblaščeni strokovnjak",{"$f":"IF('VNOS PODATKOV'!D48=\"\",\"\",(CONCATENATE('VNOS PODATKOV'!D48,\", \",'VNOS PODATKOV'!D49)))","v":""}]
[{"$f":"'VNOS PODATKOV'!C50","v":"identifikacijska številka"},{"$f":"'VNOS PODATKOV'!D50","v":0}]
["podpis pooblaščenega strokovnjaka"]

{"sheet":"19G UD ZAHTEVA ENO-ST","index":10,"n_rows":70,"n_cols":4,"rows_kept":70,"cut":false,"hidden":false,"merged":[[1,0,1,3],[31,0,31,1],[32,0,32,1],[36,2,36,3],[45,0,45,3],[70,2,70,3],[71,2,71,3],[72,2,72,3],[58,2,58,3],[61,2,61,3],[62,2,62,3]]}
["PRILOGA 19G\n"]
["ZAHTEVA ZA IZDAJO ODLOČBE \nO PRIDOBLJENEM UPORABNEM \nDOVOLJENJU ZA ENOSTANOVANJSKO \nSTAVBO (149. člen GZ-1)"]
[]
[{"$f":"'VNOS PODATKOV'!C16","v":"INVESTITOR"}]
[{"$f":"'VNOS PODATKOV'!C17","v":"INVESTITOR 1"}]
[{"$f":"'VNOS PODATKOV'!C18","v":"ime in priimek ali naziv družbe"},null,{"$f":"'VNOS PODATKOV'!D18","v":0}]
[{"$f":"'VNOS PODATKOV'!C19","v":"naslov ali poslovni naslov družbe"},null,{"$f":"'VNOS PODATKOV'!D19","v":0}]
[{"$f":"'VNOS PODATKOV'!C20","v":"davčna številka"},null,{"$f":"'VNOS PODATKOV'!D20","v":0}]
[{"$f":"'VNOS PODATKOV'!C21","v":"INVESTITOR 2"}]
[{"$f":"'VNOS PODATKOV'!C22","v":"ime in priimek ali naziv družbe"},null,{"$f":"'VNOS PODATKOV'!D22","v":0}]
[{"$f":"'VNOS PODATKOV'!C23","v":"naslov ali poslovni naslov družbe"},null,{"$f":"'VNOS PODATKOV'!D23","v":0}]
[{"$f":"'VNOS PODATKOV'!C24","v":"davčna številka"},null,{"$f":"'VNOS PODATKOV'!D24","v":0}]
[{"$f":"'VNOS PODATKOV'!C25","v":"INVESTITOR 3"}]
[{"$f":"'VNOS PODATKOV'!C26","v":"ime in priimek ali naziv družbe"},null,{"$f":"'VNOS PODATKOV'!D26","v":0}]
[{"$f":"'VNOS PODATKOV'!C27","v":"naslov ali poslovni naslov družbe"},null,{"$f":"'VNOS PODATKOV'!D27","v":0}]
[{"$f":"'VNOS PODATKOV'!C28","v":"davčna številka"},null,{"$f":"'VNOS PODATKOV'!D28","v":0}]
[]
[{"$f":"'VNOS PODATKOV'!C29","v":"KONTAKTNA OSEBA"}]
[{"$f":"'VNOS PODATKOV'!C30","v":"ime in priimek"},null,{"$f":"'VNOS PODATKOV'!D30","v":0}]
[{"$f":"'VNOS PODATKOV'!C31","v":"telefonska številka"},null,{"$f":"'VNOS PODATKOV'!D31","v":0}]
[{"$f":"'VNOS PODATKOV'!C32","v":"elektronski naslov"},null,{"$f":"'VNOS PODATKOV'!D32","v":0}]
[]
[{"$f":"'VNOS PODATKOV'!C33","v":"POOBLAŠČENEC"}]
[{"$f":"'VNOS PODATKOV'!C34","v":"podatki se vpišejo, če je imenovan pooblaščenec"}]
[{"$f":"'VNOS PODATKOV'!C36","v":"ime in priimek ali naziv družbe"},null,{"$f":"IF('VNOS PODATKOV'!D$35=TRUE,'VNOS PODATKOV'!D36, \"\")","v":""}]
[{"$f":"'VNOS PODATKOV'!C37","v":"naslov ali poslovni naslov družbe"},null,{"$f":"IF('VNOS PODATKOV'!D$35=TRUE,'VNOS PODATKOV'!D37, \"\")","v":""}]
[{"$f":"'VNOS PODATKOV'!C38","v":"kontaktna oseba"},null,{"$f":"IF('VNOS PODATKOV'!D$35=TRUE,'VNOS PODATKOV'!D38, \"\")","v":""}]
[{"$f":"'VNOS PODATKOV'!C39","v":"telefonska številka"},null,{"$f":"IF('VNOS PODATKOV'!D$35=TRUE,'VNOS PODATKOV'!D39, \"\")","v":""}]
[{"$f":"'VNOS PODATKOV'!C40","v":"elektronski naslov"},null,{"$f":"IF('VNOS PODATKOV'!D$35=TRUE,'VNOS PODATKOV'!D40, \"\")","v":""}]
[]
["NAVEDBA ORGANA, PRI KATEREM SE VLAGA ZAHTEVA"]
["naziv",null,{"$f":"'VNOS PODATKOV'!D242","v":0}]
["naslov",null,{"$f":"'VNOS PODATKOV'!D243","v":0}]
[]
["PODATKI O OBJEKTU"]
[{"$f":"'VNOS PODATKOV'!C82","v":"naziv objekta ali dela objekta"},null,{"$f":"'VNOS PODATKOV'!D82","v":0}]
[{"$f":"'VNOS PODATKOV'!C83","v":"kratek opis"},null,{"$f":"'VNOS PODATKOV'!D83","v":0}]
["ZEMLJIŠČA, NA KATERIH SE NAHAJA OBJEKT, TER NAVEDBA GRADBENE PARCELE"]
["ustrezno izpolniti"]
[{"$f":"'VNOS PODATKOV'!C93","v":"številka katastrske občine"},null,{"$f":"'VNOS PODATKOV'!D93","v":0}]
[{"$f":"'VNOS PODATKOV'!C94","v":"katastrska občina"},null,{"$f":"'VNOS PODATKOV'!D94","v":0}]
[{"$f":"'VNOS PODATKOV'!C95","v":"parc. št."},null,{"$f":"'VNOS PODATKOV'!D95","v":0}]
[{"$f":"'VNOS PODATKOV'!C96","v":"velikost gradbene parcele"},null,{"$f":"'VNOS PODATKOV'!D96","v":0}]
[]
["IZPOLNJEVANJE POGOJEV ZA IZDAJO ODLOČBE"]
["(za dokazila se lahko poleg potrdil in drugih listin, ki jih izdajajo pristojni državni organi, organi lokalnih skupnosti in nosilci javnih pooblastil, štejejo tudi izjave izvedencev, prič in ogledi objektov oziroma prostorov v njih, v skladu s predpisi, ki urejajo splošni upravni postopek; stranka lahko predlaga tudi vpogled v javno evidenco, ki ga izvede upravni organ sam)"]
[]
[null,null,"Izpolnjevanje pogojev za izdajo odločbe dokazujem z:"]
[]
[null,null,"pogoj","dokazilo"]
[null,null,"gradbeno dovoljenje"]
[null,null,"stavba, zgrajena pred 1. junijem 2018"]
[null,null,"stavba, zgrajena v skladu z gradbenim dovoljenjem ","izjava pooblaščenega strokovnjaka"]
[null,null,"stavba, zgrajena v skladu z gradbenim dovoljenjem in dopustnimi manjšimi odstopanji iz 79. člena GZ-1","izjava pooblaščenega strokovnjaka"]
[null,null,"za stavbo ni bil izrečen inšpekcijski ukrep"]
[null,null,"stavba, vpisana v kataster nepremičnin ali"]
[null,null,"dokazilo, da je vložena zahteva z elaboratom za vpis v kataster nepremičnin"]
[]
[null,null,"Na podlagi navedenih podatkov in priloženih listin vas prosim za izdajo odločbe o pridobljenem uporabnem dovoljenju za enostanovanjsko stavbo."]
[]
["datum",null,"podpis vložnika"]
[{"$f":"TODAY()","v":"2023-10-04"}]
[]
[]
["PRILOGE"]
["ustrezno označiti",null,"Izjava pooblaščenega strokovnjaka"]
[null,null,"Dokazilo, da je vložena zahteva z elaboratom za vpis podatkov v kataster nepremičnin"]
[null,null,"Druga dokazila, kot navedeno zgoraj"]
[null,null,"Pooblastilo (če je imenovan pooblaščenec)"]
[null,null,"Druge priloge (navesti katere):"]

{"sheet":"19H IZJAVA OBST ENO","index":11,"n_rows":30,"n_cols":3,"rows_kept":30,"cut":false,"hidden":false,"merged":[[1,0,1,2]]}
["PRILOGA 19H"]
["IZJAVA POOBLAŠČENEGA \nSTROKOVNJAKA ZA OBSTOJEČE \nENOSTANOVANJSKE STAVBE\n(2. odstavek 149. člena GZ-1)"]
[]
[1,null,"projektant"]
[4,null,"izvajalec"]
[4,null,"nadzornik"]
[]
[{"$f":"IF($A$4=1,\"PROJEKTANT\",IF($A$4=2,'VNOS PODATKOV'!C64,IF($A$4=3,'VNOS PODATKOV'!C52,\"\")))","v":"PROJEKTANT"}]
["naziv družbe",null,{"$f":"IF($A$4=1,'VNOS PODATKOV'!D44,IF($A$4=2,'VNOS PODATKOV'!D66,IF($A$4=3,'VNOS PODATKOV'!D55,\"\")))","v":0}]
["poslovni naslov družbe",null,{"$f":"IF($A$4=1,'VNOS PODATKOV'!D45,IF($A$4=2,'VNOS PODATKOV'!D67,IF($A$4=3,'VNOS PODATKOV'!D56,\"\")))","v":0}]
["odgovorna oseba",null,{"$f":"IF($A$4=1,'VNOS PODATKOV'!D46,IF($A$4=2,'VNOS PODATKOV'!D68,IF($A$4=3,'VNOS PODATKOV'!D58,\"\")))","v":0}]
["pooblaščeni arhitekt ali inženir",null,{"$f":"IF($A$4=1,CONCATENATE('VNOS PODATKOV'!D48,\", \",'VNOS PODATKOV'!D49),IF($A$4=2,CONCATENATE('VNOS PODATKOV'!D69,\", \",'VNOS PODATKOV'!D70),IF($A$4=3,CONCATENATE('VNOS PODATKOV'!D60,\", \",'VNOS PODATKOV'!D61),\"\")))","v":", "}]
[]
[null,null,"IZJAVLJAVA:"]
[]
[null,null,"da je bila enostanovanjska stavba zgrajena v skladu z izdanim gradbenim dovoljenjem in dopustnimi manjšimi odstopanji"]
[]
["številka dovoljenja",null,{"$f":"'VNOS PODATKOV'!D252","v":0}]
["z dne",null,{"$f":"'VNOS PODATKOV'!D253","v":"00:00:00"}]
[]
[null,null,"in spremembo gradbenega dovoljenja:"]
[]
["številka dovoljenja",null,{"$f":"'VNOS PODATKOV'!D257","v":0}]
["z dne",null,{"$f":"'VNOS PODATKOV'!D258","v":"00:00:00"}]
[]
["pooblaščeni arhitekt ali inženir",null,{"$f":"IF($A$4=1,CONCATENATE('VNOS PODATKOV'!D48,\", \",'VNOS PODATKOV'!D49),IF($A$4=2,CONCATENATE('VNOS PODATKOV'!D69,\", \",'VNOS PODATKOV'!D70),IF($A$4=3,CONCATENATE('VNOS PODATKOV'!D60,\", \",'VNOS PODATKOV'!D61),\"\")))","v":", "}]
[{"$f":"'VNOS PODATKOV'!C50","v":"identifikacijska številka"},null,{"$f":"IF($A$4=1,'VNOS PODATKOV'!D50,IF($A$4=2,'VNOS PODATKOV'!D71,IF($A$4=3,'VNOS PODATKOV'!D62,\"\")))","v":0}]
["podpis"]
["odgovorna oseba projektanta, nadzornika ali izvajalca",null,{"$f":"IF($A$4=1,'VNOS PODATKOV'!D46,IF($A$4=2,'VNOS PODATKOV'!D68,IF($A$4=3,'VNOS PODATKOV'!D58,\"\")))","v":0}]
["podpis odgovorne osebe"]

{"sheet":"19I GD+UD ZAHTEVA","index":12,"n_rows":116,"n_cols":4,"rows_kept":116,"cut":false,"hidden":false,"merged":[[116,2,116,3],[117,2,117,3],[118,2,118,3],[31,0,31,1],[31,2,31,3],[32,0,32,1],[32,2,32,3],[105,2,105,3],[108,2,108,3],[109,2,109,3],[59,2,59,3],[92,2,92,3],[98,2,98,3],[55,0,55,3],[1,0,1,3],[46,2,46,3],[38,2,38,3],[41,2,41,3],[42,2,42,3]]}
["PRILOGA 19I\n"]
["ZAHTEVA ZA IZDAJO ODLOČBE \nO DOMNEVI IZDANEGA GRADBENEGA \nIN UPORABNEGA DOVOLJENJA\n(150. člen GZ-1)"]
[]
[{"$f":"'VNOS PODATKOV'!C16","v":"INVESTITOR"}]
[{"$f":"'VNOS PODATKOV'!C17","v":"INVESTITOR 1"}]
[{"$f":"'VNOS PODATKOV'!C18","v":"ime in priimek ali naziv družbe"},null,{"$f":"'VNOS PODATKOV'!D18","v":0}]
[{"$f":"'VNOS PODATKOV'!C19","v":"naslov ali poslovni naslov družbe"},null,{"$f":"'VNOS PODATKOV'!D19","v":0}]
[{"$f":"'VNOS PODATKOV'!C20","v":"davčna številka"},null,{"$f":"'VNOS PODATKOV'!D20","v":0}]
[{"$f":"'VNOS PODATKOV'!C21","v":"INVESTITOR 2"}]
[{"$f":"'VNOS PODATKOV'!C22","v":"ime in priimek ali naziv družbe"},null,{"$f":"'VNOS PODATKOV'!D22","v":0}]
[{"$f":"'VNOS PODATKOV'!C23","v":"naslov ali poslovni naslov družbe"},null,{"$f":"'VNOS PODATKOV'!D23","v":0}]
[{"$f":"'VNOS PODATKOV'!C24","v":"davčna številka"},null,{"$f":"'VNOS PODATKOV'!D24","v":0}]
[{"$f":"'VNOS PODATKOV'!C25","v":"INVESTITOR 3"}]
[{"$f":"'VNOS PODATKOV'!C26","v":"ime in priimek ali naziv družbe"},null,{"$f":"'VNOS PODATKOV'!D26","v":0}]
[{"$f":"'VNOS PODATKOV'!C27","v":"naslov ali poslovni naslov družbe"},null,{"$f":"'VNOS PODATKOV'!D27","v":0}]
[{"$f":"'VNOS PODATKOV'!C28","v":"davčna številka"},null,{"$f":"'VNOS PODATKOV'!D28","v":0}]
[]
[{"$f":"'VNOS PODATKOV'!C29","v":"KONTAKTNA OSEBA"}]
[{"$f":"'VNOS PODATKOV'!C30","v":"ime in priimek"},null,{"$f":"'VNOS PODATKOV'!D30","v":0}]
[{"$f":"'VNOS PODATKOV'!C31","v":"telefonska številka"},null,{"$f":"'VNOS PODATKOV'!D31","v":0}]
[{"$f":"'VNOS PODATKOV'!C32","v":"elektronski naslov"},null,{"$f":"'VNOS PODATKOV'!D32","v":0}]
[]
[{"$f":"'VNOS PODATKOV'!C33","v":"POOBLAŠČENEC"}]
[{"$f":"'VNOS PODATKOV'!C34","v":"podatki se vpišejo, če je imenovan pooblaščenec"}]
[{"$f":"'VNOS PODATKOV'!C36","v":"ime in priimek ali naziv družbe"},null,{"$f":"IF('VNOS PODATKOV'!D$35=TRUE,'VNOS PODATKOV'!D36, \"\")","v":""}]
[{"$f":"'VNOS PODATKOV'!C37","v":"naslov ali poslovni naslov družbe"},null,{"$f":"IF('VNOS PODATKOV'!D$35=TRUE,'VNOS PODATKOV'!D37, \"\")","v":""}]
[{"$f":"'VNOS PODATKOV'!C38","v":"kontaktna oseba"},null,{"$f":"IF('VNOS PODATKOV'!D$35=TRUE,'VNOS PODATKOV'!D38, \"\")","v":""}]
[{"$f":"'VNOS PODATKOV'!C39","v":"telefonska številka"},null,{"$f":"IF('VNOS PODATKOV'!D$35=TRUE,'VNOS PODATKOV'!D39, \"\")","v":""}]
[{"$f":"'VNOS PODATKOV'!C40","v":"elektronski naslov"},null,{"$f":"IF('VNOS PODATKOV'!D$35=TRUE,'VNOS PODATKOV'!D40, \"\")","v":""}]
[]
["NAVEDBA ORGANA, PRI KATEREM SE VLAGA ZAHTEVA"]
["naziv",null,{"$f":"'VNOS PODATKOV'!D242","v":0}]
["naslov",null,{"$f":"'VNOS PODATKOV'!D243","v":0}]
[]
["ZAHTEVA ZA IZDAJO ODLOČBE"]
[null,null,"Zahteva za legalizacijo se nanaša na:"]
[null,null,"enostanovanjsko stavbo, zgrajeno na podlagi gradbenega dovoljenja in v uporabi na dan 1. 1. 2003"]
[null,null,"stavbo, zgrajeno pred 31. decembrom 1967"]
[null,null,"posamezno stanovanje ali poslovni prostor v etažni lastnini, ki je bilo rekonstruirano na podlagi gradbenega dovoljenja"]
[null,null,"objekt gospodarske javne infrastrukture, zgrajen pred 25. junijem 1991"]
[null,null,"gradbeno inženirski objekt, zgrajeni pred 31. decembrom 1967"]
[null,null,"objekt s področja obrambe, objekt s področja zaščite in reševanja ali objekt s področja notranjih zadev, ki se mu namembnost po 25. juniju 1991 ni spremenila"]
[null,null,"objekt, ki se je pred 9. novembrom 1996 lahko zgradil na podlagi priglasitve del po 46. členu Zakona o graditvi objektov (Uradni list SRS, št. 34/84)"]
[]
["PODATKI O OBJEKTU"]
[{"$f":"'VNOS PODATKOV'!C82","v":"naziv objekta ali dela objekta"},null,{"$f":"'VNOS PODATKOV'!D82","v":0}]
[{"$f":"'VNOS PODATKOV'!C83","v":"kratek opis"},null,{"$f":"'VNOS PODATKOV'!D83","v":0}]
[]
["ZEMLJIŠČA, NA KATERIH SE NAHAJA OBJEKT"]
["ustrezno izpolniti"]
[{"$f":"'VNOS PODATKOV'!C93","v":"številka katastrske občine"},null,{"$f":"'VNOS PODATKOV'!D93","v":0}]
[{"$f":"'VNOS PODATKOV'!C94","v":"katastrska občina"},null,{"$f":"'VNOS PODATKOV'!D94","v":0}]
[{"$f":"'VNOS PODATKOV'!C95","v":"parc. št."},null,{"$f":"'VNOS PODATKOV'!D95","v":0}]
[]
["IZPOLNJEVANJE POGOJEV ZA IZDAJO ODLOČBE"]
["(za dokazila se lahko poleg potrdil in drugih listin, ki jih izdajajo pristojni državni organi, organi lokalnih skupnosti in nosilci javnih pooblastil, štejejo tudi izjave izvedencev, prič in ogledi objektov oziroma prostorov v njih, v skladu s predpisi, ki urejajo splošni upravni postopek; stranka lahko predlaga tudi vpogled v javno evidenco, ki ga izvede upravni organ sam)"]
[]
[null,null,"Izpolnjevanje pogojev za izdajo odločbe dokazujem z:"]
[]
[null,null,"za enostanovanjsko stavbo, zgrajeno na podlagi gradbenega dovoljenja \nin v uporabi na dan 1. 1. 2003"]
[null,null,"pogoj","dokazilo"]
[null,null,"gradbeno dovoljenje"]
[null,null,"stavba 1. januarja 2003 v uporabi"]
[null,null,"stavba, evidentirana v zemljiškem katastru ali katastru stavb"]
[]
[null,null,"za stavbe zgrajene pred 31. decembrom 1967"]
[null,null,"pogoj","dokazilo"]
[null,null,"stavba, zgrajena pred 31. decembrom 1967"]
[null,null,"stavba 1. januarja 2003 v uporabi"]
[null,null,"stavbi se po 31. decembru 1967 namembnost ni bistveno spremenila "]
[null,null,"stavba, evidentirana v zemljiškem katastru ali katastru stavb"]
[]
[null,null,"za posamezno stanovanje ali poslovni prostor"]
[null,null,"pogoj","dokazilo"]
[null,null,"stanovanje ali poslovni prostor je v etažni lastnini \n(3. odstavek 197. člena ZGO-1)"]
[null,null,"stanovanje ali poslovni prostor, rekonstruirano \nna podlagi gradbenega dovoljenja \n(3. odstavek 197. člena ZGO-1)"]
[null,null,"stavba, zgrajena pred 31. decembrom 1967 \n(1. odstavek 197. člena ZGO-1)"]
[null,null,"stavba 1. januarja 2003 v uporabi \n(1. odstavek 197. člena ZGO-1)"]
[null,null,"poslovnemu prostoru se po 31. decembru 1967 namembnost ni bistveno spremenila  \n(1. odstavek 197. člena ZGO-1)"]
[null,null,"stavba ali zemljišče, evidentirano \nv zemljiškem katastru ali katastru stavb  \n(1. odstavek 197. člena ZGO-1)"]
[]
[null,null,"za objekt gospodarske javne infrastrukture, zgrajen pred 25. junijem 1991"]
[null,null,"pogoj","dokazilo"]
[null,null,"objekt, zgrajen pred 25. junijem 1991"]
[null,null,"objekt, evidentiran v katastru gospodarske javne infrastrukture"]
[]
[null,null,"za gradbeno inženirski objekt, zgrajen pred 31. decembrom 1967"]
[null,null,"pogoj","dokazilo"]
[null,null,"objekt, zgrajen pred 31. decembrom 1967"]
[null,null,"objekt 15. januarja 2008 v uporabi"]
[null,null,"zemljišča, na katerih je zgrajen objekt, evidentirana v zemljiškem katastru"]
[]
[null,null,"za objekt s področja obrambe, objekt s področja zaščite in reševanja ali objekt s področja notranjih zadev, ki se jim namembnost po 25. juniju 1991 ni spremenila"]
[null,null,"pogoj","dokazilo"]
[null,null,"objekt, z zakonom ali predpisom določen kot obrambno-zaščitni objekt in okoliš objektov posebnega pomena za obrambo, zaščito in notranje zadeve"]
[null,null,"objekt 1. januarja 2003 v uporabi"]
[null,null,"objektu se namembnost po 25. juniju 1991 ni spremenila"]
[]
[null,null,"za objekte, ki so se pred 9. novembrom 1996 lahko zgradili na podlagi priglasitve del \npo 46. členu Zakona o graditvi objektov (Uradni list SRS, št. 34/84)"]
[null,null,"pogoj","dokazilo"]
[null,null,"objekt, zgrajen pred 9. novembrom 1996"]
[null,null,"objektu se namembnost po 9. novembru 1996 ni spremenila"]
[null,null,"objekt je v uporabi"]
[null,null,"zemljišča, na katerih je objekt zgrajen, so evidentirana v zemljiškem katastru"]
[]
[null,null,"Na podlagi navedenih podatkov in priloženih listin vas prosim za izdajo odločbe \no pridobljenem gradbenem in uporabnem dovoljenju."]
[]
["datum",null,"podpis vložnika"]
[{"$f":"TODAY()","v":"2023-10-04"}]
[]
[]
["PRILOGE"]
["ustrezno označiti",null,"Dokazila, kot navedeno zgoraj"]
[null,null,"Pooblastilo (če je imenovan pooblaščenec)"]
[null,null,"Priloge, ki so navedene zgoraj"]
[null,null,"Druge priloge (navesti, katere):"]

{"sheet":"16A DOPOL VLOGE","index":13,"n_rows":50,"n_cols":3,"rows_kept":50,"cut":false,"hidden":false,"merged":[[1,0,1,2],[48,0,48,2]]}
["PRILOGA 16A"]
["DOPOLNITEV VLOGE"]
[]
["INVESTITOR"]
["INVESTITOR 1"]
["ime in priimek ali naziv družbe",null,{"$f":"'VNOS PODATKOV'!D18","v":0}]
["naslov ali poslovni naslov družbe",null,{"$f":"'VNOS PODATKOV'!D19","v":0}]
["INVESTITOR 2"]
["ime in priimek ali naziv družbe",null,{"$f":"'VNOS PODATKOV'!D22","v":0}]
["naslov ali poslovni naslov družbe",null,{"$f":"'VNOS PODATKOV'!D23","v":0}]
["INVESTITOR 3"]
["ime in priimek ali naziv družbe",null,{"$f":"'VNOS PODATKOV'!D26","v":0}]
["naslov ali poslovni naslov družbe",null,{"$f":"'VNOS PODATKOV'!D27","v":0}]
[]
["KONTAKTNA OSEBA"]
["ime in priimek",null,{"$f":"'VNOS PODATKOV'!D30","v":0}]
["telefonska številka",null,{"$f":"'VNOS PODATKOV'!D31","v":0}]
["elektronski naslov",null,{"$f":"'VNOS PODATKOV'!D32","v":0}]
[]
["POOBLAŠČENEC"]
["podatki se vpišejo, kadar je imenovan pooblaščenec"]
["ime in priimek ali naziv družbe",null,{"$f":"IF('VNOS PODATKOV'!$D$35=TRUE,'VNOS PODATKOV'!D36, \"\")","v":""}]
["naslov ali poslovni naslov družbe",null,{"$f":"IF('VNOS PODATKOV'!$D$35=TRUE,'VNOS PODATKOV'!D37, \"\")","v":""}]
[]
["NAVEDBA ORGANA, PRI KATEREM SE VLAGA DOPOLNITEV"]
["naziv"]
["naslov"]
[]
["PODATKI O ZADEVI, KI SE VODI PRI UPRAVNEM ORGANU"]
["številka zadeve"]
["številka dopolnitve"]
["dopolnitev zahteve se nanaša na"]
[null,false,"zahtevo za izdajo projektnih in drugih pogojev"]
[null,false,"zahtevo za izdajo mnenja"]
[null,false,"zahtevo za izdajo gradbenega dovoljenja"]
[null,false,"zahtevo za izdajo gradbenega dovoljenja za nezahtevni objekt"]
[null,false,"zahtevo za izdajo gradbenega dovoljenja za spremembo namembnosti"]
[null,false,"zahtevo za izdajo uporabnega dovoljenja"]
[null,false,"zahtevo za legalizacijo ali uporabno dovoljenje za obstoječe objekte"]
[null,false,"drugo zahtevo"]
["vsebina dopolnitve"]
[]
[null,null,"Na podlagi navedenih podatkov in drugih priloženih listin dopolnjujem zahtevo."]
[]
["datum",null,"podpis vložnika"]
[{"$f":"TODAY()","v":"2023-10-04"}]
[]
[]
["PRILOGE"]
["navesti, katere"]

{"sheet":"16B DOPOL PODALJ","index":14,"n_rows":44,"n_cols":3,"rows_kept":44,"cut":false,"hidden":false,"merged":[[1,0,1,2]]}
["PRILOGA 16B"]
["ZAHTEVA ZA PODALJŠANJE ROKA \nZA DOPOLNITEV VLOGE"]
[]
["INVESTITOR"]
["INVESTITOR 1"]
["ime in priimek ali naziv družbe",null,{"$f":"'VNOS PODATKOV'!D18","v":0}]
["naslov ali poslovni naslov družbe",null,{"$f":"'VNOS PODATKOV'!D19","v":0}]
["INVESTITOR 2"]
["ime in priimek ali naziv družbe",null,{"$f":"'VNOS PODATKOV'!D22","v":0}]
["naslov ali poslovni naslov družbe",null,{"$f":"'VNOS PODATKOV'!D23","v":0}]
["INVESTITOR 3"]
["ime in priimek ali naziv družbe",null,{"$f":"'VNOS PODATKOV'!D26","v":0}]
["naslov ali poslovni naslov družbe",null,{"$f":"'VNOS PODATKOV'!D27","v":0}]
[]
["KONTAKTNA OSEBA"]
["ime in priimek",null,{"$f":"'VNOS PODATKOV'!D30","v":0}]
["telefonska številka",null,{"$f":"'VNOS PODATKOV'!D31","v":0}]
["elektronski naslov",null,{"$f":"'VNOS PODATKOV'!D32","v":0}]
[]
["POOBLAŠČENEC"]
["podatki se vpišejo, kadar je imenovan pooblaščenec"]
["ime in priimek ali naziv družbe",null,{"$f":"IF('VNOS PODATKOV'!$D$35=TRUE,'VNOS PODATKOV'!D36, \"\")","v":""}]
["naslov ali poslovni naslov družbe",null,{"$f":"IF('VNOS PODATKOV'!$D$35=TRUE,'VNOS PODATKOV'!D37, \"\")","v":""}]
[]
["NAVEDBA ORGANA, PRI KATEREM SE VLAGA ZAHTEVA"]
["naziv"]
["naslov"]
[]
["PODATKI O ZADEVI, KI SE VODI PRI UPRAVNEM ORGANU"]
["številka zadeve"]
["naziv gradnje",null,{"$f":"'VNOS PODATKOV'!D82","v":0}]
["navedba dokumenta, s katerim je bil določen rok"]
[]
["ČAS PODALJŠANJA ROKA"]
[null,false,"15 dni"]
[null,false,"1 mesec"]
[null,false,"2 meseca"]
[]
["navedba razlogov za podaljšanje roka"]
[]
[null,null,"Na podlagi navedenih podatkov prosim za podaljšanje roka za dopolnitev vloge."]
[]
["datum",null,"podpis vložnika"]
[{"$f":"TODAY()","v":"2023-10-04"}]

{"sheet":"BAZA PODATKOV","index":15,"n_rows":371,"n_cols":3,"rows_kept":371,"cut":false,"hidden":false,"merged":[]}
["VRSTE PROJEKTNE DOKUMENTACIJE"]
[]
["DPP (idejna zasnova za pridobitev projektnih pogojev)",1]
["DGD (projektna dokumentacija za pridobivanje mnenj in gradbenega dovoljenja)",2]
["PZI (projektna dokumentacija za izvedbo gradnje)",3]
["PZI v delu, ki se nanaša na pripravljalna dela",4]
["PID (projektna dokumentacija izvedenih del)",5]
["DL (dokumentacija za legalizacijo)",6]
["DNZO (dokumentacija za pridobitev gradbenega dovoljenja za nezahtevne objekte)",7]
["DSN (dokumentacija za pridobitev gradbenega dovoljenja za spremembo namembnosti)",8]
["DOZ (dokazilo o zanesljivosti)",9]
[]
["FAZA PROJEKTA"]
[]
["DPP",1]
["DGD",2]
["PZI",3]
["PID",4]
[]
["VRSTE NAČRTOV"]
[]
["0/1 Vodilni načrt - načrt arhitekture"]
["0/2 Vodilni načrt - načrt gradbeništva"]
["0/3 Vodilni načrt - načrt elektrotehnike"]
["0/4 Vodilni načrt - načrt strojništva"]
["0/5 Vodilni načrt - načrt tehnologije"]
["0/6 Vodilni načrt - načrt požarne varnosti"]
["0/7 Vodilni načrt - načrt geotehnologije in rudarstva"]
["0/8 Vodilni načrt - načrt geodezije"]
["0/9 Vodilni načrt - načrt prometnega inženirstva"]
["0/10 Vodilni načrt - načrt krajinske arhitekture"]
["0 Vodilna mapa"]
["1 Načrt s področja arhitekture",1]
["2 Načrt s področja gradbeništva",2]
["3 Načrt s področja elektrotehnike",3]
["4 Načrt s področja strojništva",4]
["5 Načrt s področja tehnologije",5]
["6 Načrt s področja požarne varnosti",6]
["7 Načrt s področja geotehnologije in rudarstva",7]
["8 Načrt s področja geodezije",8]
["9 Načrt s področja prometnega inženirstva",9]
["10 Načrt s področja krajinske arhitekture",10]
[]
["IZKAZI"]
[]
["izkaz energijskih karakteristik prezračevanja stavbe"]
["izkaz toplotnih karakteristik stavbe"]
["izkaz požarne varnosti"]
["izkaz zaščite pred hrupom"]
[]
["ZAGOTAVLJANJE MINIMALNE KOMUNALNE OSKRBE"]
[]
["priključevanje ni predvideno"]
["nov priključek"]
["obstoječ priključek"]
["lastni vir"]
[]
["ODVAJANJE FEKALNIH VODA"]
[]
["nov priključek"]
["obstoječ priključek"]
["pretočna greznica"]
["čistilna naprava"]
[]
["ODVAJANJE METEORNIH VODA"]
[]
["nov priključek"]
["obstoječ priključek"]
["odvajanje v vodotok"]
["razpršeno odvajanje"]
["ponikovalnica"]
[]
["DRUGA OSKRBA Z ENERGIJO"]
[]
["lastni vir"]
[]
["lokacija priključitve"]
[]
["/"]
["obstoječa merilna omarica"]
["nova merilna omarica"]
[]
["/"]
["obstoječ vodomerni jašek"]
["nov vodomerni jašek"]
[]
["PROSTORSKI AKTI"]
[]
["OPN"]
["DLN"]
["PUP"]
["ZN"]
[]
["VRSTE GRADNJE"]
[]
["novogradnja - novozgrajen objekt"]
["novogradnja - prizidava"]
["rekonstrukcija"]
["odstranitev"]
["sprememba namembnosti"]
[]
["ZAHTEVNOST OBJEKTOV"]
[]
["zahteven"]
["manj zahteven"]
["nezahteven"]
["enostaven"]
[]
["POŽARNA ZAHTEVNOST OBJEKTOV"]
[]
["požarno zahteven objekt"]
["požarno manj zahteven objekt"]
[]
["DA/NE"]
[]
["DA"]
["NE"]
[]
["VRSTA OBJEKTA"]
[]
["STAVBA"]
["GRADBENI INŽENIRSKI OBJEKT"]
[]
[]
["GLAVNI ALI PRIPADAJOČI"]
[]
["GLAVNI OBJEKT"]
["PRIPADAJOČI OBJEKT"]
[]
[]
["CC-SI STAVBE"]
[]
["11100 Enostanovanjske stavbe"]
["11210 Dvostanovanjske stavbe"]
["11220 Tri- in večstanovanjske stavbe "]
["11301 Stanovanjske stavbe z oskrbovanimi stanovanji"]
["11302 Stanovanjske stavbe za druge posebne družbene skupine"]
["12111 Hotelske in podobne stavbe za kratkotrajno nastanitev"]
["12112 Gostilne, restavracije in točilnice"]
["12120 Druge gostinske stavbe za kratkotrajno nastanitev"]
["12201 Stavbe javne uprave"]
["12202 Stavbe bank, pošt, zavarovalnic"]
["12203 Druge poslovne stavbe"]
["12204 Konferenčne in kongresne stavbe"]
["12301 Trgovske stavbe"]
["12302 Sejemske dvorane, razstavišča"]
["12303 Oskrbne postaje"]
["12304 Stavbe za storitvene dejavnosti"]
["12410 Postajna poslopja, terminali, stavbe za izvajanje komunikacij ter z njimi povezane stavbe "]
["12420 Garažne stavbe"]
["12510 Industrijske stavbe"]
["12520 Rezervoarji, silosi in skladiščne stavbe"]
["12610 Stavbe za kulturo in razvedrilo"]
["12620 Muzeji, arhivi in knjižnice"]
["12630 Stavbe za izobraževanje in znanstvenoraziskovalno delo"]
["12640 Stavbe za zdravstveno oskrbo"]
["12650 Stavbe za šport"]
["12711 Stavbe za rastlinsko pridelavo"]
["12712 Stavbe za rejo živali"]
["12713 Stavbe za skladiščenje pridelka"]
["12714 Druge nestanovanjske kmetijske stavbe "]
["12721 Stavbe za opravljanje verskih obredov"]
["12722 Pokopališke stavbe"]
["12730 Kulturna dediščina, ki se ne uporablja za druge namene"]
["12740 Druge stavbe, ki niso uvrščene drugje"]
[]
["CC-SI GRADBENI INŽENIRSKI OBJEKTI"]
[]
["21111 Avtoceste, hitre ceste in glavne ceste (daljinske ceste)"]
["21112 Regionalne ceste"]
["21121 Lokalne ceste in javne poti, nekategorizirane ceste in gozdne ceste"]
["21122 Samostojna parkirišča"]
["21210 Glavne in regionalne železniške proge"]
["21220 Mestne železniške proge"]
["21301 Letališke steze in ploščadi"]
["21302 Letalski radio-navigacijski objekti"]
["21410 Mostovi, viadukti, nadvozi, nadhodi "]
["21421 Predori "]
["21422 Podhodi"]
["21423 Pokriti vkopi in galerije"]
["21510 Pristanišča in plovbne poti"]
["21520 Jezovi, vodne pregrade in drugi vodni objekti"]
["21530 Sistem za namakanje in osuševanje, akvadukti"]
["22110 Naftovodi in daljinski (prenosni) plinovodi"]
["22121 Daljinski (transportni) vodovodi"]
["22122 Objekti za črpanje, filtriranje in zajem vode"]
["22130 Daljinsko (hrbtenično) komunikacijsko omrežje"]
["22140 Daljinski (prenosni) elektroenergetski vodi"]
["22210 Lokalni (distribucijski) plinovodi"]
["22221 Lokalni vodovodi za pitno vodo in cevovodi za tehnološko vodo"]
["22222 Lokalni cevovodi za toplo vodo, paro in stisnjen zrak"]
["22223 Vodni stolpi in vodnjaki "]
["22231 Cevovodi za odpadno vodo (kanalizacija)"]
["22232 Čistilne naprave"]
["22241 Lokalni (distribucijski) elektroenergetski vodi"]
["22242 Lokalna (dostopovna) komunikacijska omrežja"]
["23010 Objekti za pridobivanje in izkoriščanje mineralnih surovin"]
["23020 Elektrarne in drugi energetski objekti"]
["23030 Objekti kemične industrije"]
["23040 Objekti težke industrije, ki niso uvrščeni drugje"]
["24110 Športna igrišča"]
["24121 Marine "]
["24122 Drugi gradbeni inženirski objekti za šport, rekreacijo in prosti čas"]
["24201 Obrambni objekti"]
["24202 Drugi kmetijski gradbeni inženirski objekti"]
["24203 Objekti za ravnanje z odpadki"]
["24204 Pokopališča"]
["24205 Drugi gradbeni inženirski objekti, ki niso uvrščeni drugje"]
[]
["CC-SI DRUGI GRADBENI POSEGI"]
[]
["31110 Nasipi"]
["31120 Izkopi in odkopi"]
["31130 Utrjene površine "]
["31140 Utrjene brežine"]
["31150 Grajene gozdne vlake"]
["31160 Grajena območja urbanih vrtov"]
["32110 Ekološki otoki"]
["32120 Urbana oprema"]
["32130 Objekti za oglaševanje in informacijski panoji"]
["32140 Spominska obeležja"]
["33110 Grajeni prostori na drevesu"]
["33120 Grajeni prostori na vodi"]
["33130 Nepokrita prezentirana arheološka najdišča in ruševine"]
["33140 Merilna mesta za opazovanje naravnih pojavov, naravnih virov in stanja okolja"]
[]
["ZVKDS"]
[]
["ZVKDS, Območna enota Celje","Glavni trg 1, 3000 Celje","tajnistvo.ce@zvkds.si"]
["ZVKDS, Območna enota Kranj","Tomšičeva ulica 7, 4000 Kranj","tajnistvo.kr@zvkds.si"]
["ZVKDS, Območna enota Ljubljana","Tržaška cesta 4, 1000 Ljubljana","tajnistvo.lj@zvkds.si"]
["ZVKDS, Območna enota Maribor","Slomškov trg 6, 2000 Maribor","tajnistvo.mb@zvkds.si"]
["ZVKDS, Območna enota Nova Gorica","Delpinova ulica 16, 5000 Nova Gorica","tajnistvo.ng@zvkds.si"]
["ZVKDS, Območna enota Novo mesto","Skalickega ulica 1, 8000 Novo mesto","tajnistvo.nm@zvkds.si"]
["ZVKDS, Območna enota Piran","Trg bratstva 1, 6330 Piran/Pirano","tajnistvo.pi@zvkds.si"]
[]
["Zavod RS za varstvo narave"]
[]
["Zavod RS za varstvo narave, OE Celje","Vodnikova ulica 3, 3000 Celje","zrsvn.oece@zrsvn.si"]
["Zavod RS za varstvo narave, OE Kranj","PC Planina 3, 4000 Kranj","zrsvn.oekr@zrsvn.si"]
["Zavod RS za varstvo narave, OE Ljubljana","Cankarjeva 10, 1000 Ljubljana","zrsvn.oelj@zrsvn.si"]
["Zavod RS za varstvo narave, OE Maribor","Pobreška cesta 20a, 2000 Maribor","zrsvn.oemb@zrsvn.si"]
["Zavod RS za varstvo narave, OE Nova Gorica","Delpinova 16, 5000 Nova Gorica","zrsvn.oeng@zrsvn.si"]
["Zavod RS za varstvo narave, OE Novo mesto","Adamičeva ul. 2, 8000 Novo mesto","zrsvn.oenm@zrsvn.si"]
["Zavod RS za varstvo narave, OE Piran","Trg Etbina Kristana1, 6310 Izola","zrsvn.oepi@zrsvn.si"]
["Zavod RS za varstvo narave, Osrednja enota v Ljubljani","Tobačna ulica 5, 1000 Ljubljana","zrsvn.oe@zrsvn.si"]
[]
["Direkcija RS za vode"]
[]
["Direkcija Republike Slovenije za vode","Hajdrihova ulica 28c, 1000 Ljubljana","gp.drsv@gov.si"]
["Direkcija RS za vode, Sektor območja zgornje Save","Ulica Mirka Vadnova 5, 4000 Kranj","gp.drsv-kr@gov.si"]
["Direkcija RS za vode, Sektor območja srednje Save","Vojkova cesta 52, 1000 Ljubljana","gp.drsv-lj@gov.si"]
["Direkcija RS za vode, Sektor območja spodnje Save","Novi trg 9, 8000 Novo mesto","gp.drsv-nm@gov.si"]
["Direkcija RS za vode, Sektor območja jadranskih rek z morjem","Pristaniška ulica 12, 6000 Koper","gp.drsv-kp@gov.si"]
["Direkcija RS za vode, Sektor območja Soče","Cankarjeva ulica 62, 5000 Nova Gorica","gp.drsv-ng@gov.si"]
["Direkcija RS za vode, Sektor območja Savinje","Mariborska cesta 88, 3000 Celje","gp.drsv-ce@gov.si"]
["Direkcija RS za vode, Sektor območja Drave","Krekova ulica 17, 2000 Maribor","gp.drsv-mb@gov.si"]
["Direkcija RS za vode, Sektor območja Mure","Slovenska ulica 2, 9000 Murska Sobota","gp.drsv-ms@gov.si"]
[]
["Zavod za gozdove Slovenije"]
[]
["Zavod za gozdove Slovenije, Centralna enota Ljubljana","Večna pot 2, 1001 Ljubljana","zgs.tajnistvo@zgs.si"]
["ZGS, Območna enota Tolmin","Tumov drevored 17, 5220 Tolmin","OETolmin@zgs.si"]
["ZGS, Območna enota Ljubljana","Tržaška c. 2, 1000 Ljubljana","OELjubljana@zgs.si"]
["ZGS, Območna enota Novo mesto","Gubčeva 15, 8000 Novo mesto","OENovomesto@zgs.si"]
["ZGS, Območna enota Nazarje","Savinjska cesta 4, 3331 Nazarje","OENazarje@zgs.si"]
["ZGS, Območna enota Murska Sobota","Arh. Novaka 17, 9000 Murska Sobota","OEMurskaSobota@zgs.si"]
["Zavod za gozdove Slovenije, Območna enota Bled","Ljubljanska cesta 19, 4260 Bled","OEBled@zgs.si"]
["Zavod za gozdove Slovenije, Območna enota Postojna","Vojkova 9, 6230 Postojna","OEPostojna@zgs.si"]
["Zavod za gozdove Slovenije, Območna enota Brežice","C. bratov Milavcev 61, 8250 Brežice","OEBrezice@zgs.si"]
["Zavod za gozdove Slovenije, Območna enota Slovenj Gradec","Vorančev trg 1, 2380 Slovenj gradec","OESlovenjGradec@zgs.si"]
["Zavod za gozdove Slovenije, Območna enota Sežana","Partizanska 49, 6210 Sežana","OESezana@zgs.si"]
["Zavod za gozdove Slovenije, Območna enota Kranj","C. Staneta Žagarja 27b, 4000 Kranj","OEKranj@zgs.si"]
["Zavod za gozdove Slovenije, Območna enota Kočevje","Rožna ul. 39, 1330 Kočevje","OEKocevje@zgs.si"]
["Zavod za gozdove Slovenije, Območna enota Celje","Ljubljanska 13, 3000 Celje","OECelje@zgs.si"]
["Zavod za gozdove Slovenije, Območna enota Maribor","Tyrševa 15, 2000 Maribor","OEMaribor@zgs.si"]
[]
["Upravljavec javne ceste"]
[]
["Direkcija RS za infrastrukturo","Tržaška cesta 19, 1000 Ljubljana","gp.drsi@gov.si"]
["Družba za avtoceste RS ","Ulica XIV. divizije 4, 3000 Celje"]
[]
["Elektro"]
[]
["Elektro Celje","Vrunčeva 2a, 3000 Celje","info@elektro-celje.si"]
["Elektro Gorenjska","Ul. Mirka Vadnova 3a, 4000 Kranj","info@elektro-gorenjska.si"]
["Elektro Ljubljana","Slovenska cesta 58, 1516 Ljubljana","info@elektro-ljubljana.si"]
["Elektro Maribor","Vetrinjska ulica 2, 2000 Maribor","info@elektro-maribor.si"]
["Elektro Primorska","Erjavčeva ulica 22, 5000 Nova Gorica","info@elektro-primorska.si"]
["ELES","Hajdrihova 2, SI-1000 Ljubljana","info@eles.si"]
[]
["POLICIJSKA UPRAVA"]
[]
["Policijska uprava Celje ","Ljubljanska cesta 12 , 3000 Celje "]
["Policijska uprava Koper","Ukmarjev trg 6, 6000 Koper"]
["Policijska uprava Kranj","Bleiweisova cesta 3, 4000 Kranj "]
["Policijska uprava Ljubljana","Prešernova cesta 18, 1001 Ljubljana"]
["Policijska uprava Maribor","Maistrova ulica 2, 2001 Maribor"]
["Policijska uprava Murska Sobota","Ulica arhitekta Novaka 5. 9000 Murska Sobota"]
["Policijska uprava Nova Gorica ","Sedejeva ulica 11, 5000 Nova Gorica"]
["Policijska uprava Novo mesto","Ljubljanska cesta 30, 8000 Novo mesto "]
[]
["PODLAGE ZA PROJEKTIRANJE"]
[]
["TSG požarna varnost v stavbah"]
["zadnje stanje gradbene tehnike"]
[]
["TSG nizkonapetostne električne inštalacije"]
["zadnje stanje gradbene tehnike"]
[]
["TSG zaščita pred delovanjem strele"]
["zadnje stanje gradbene tehnike"]
[]
["TSG učinkovita raba energije"]
[]
["TSG zaščita pred hrupom v stavbah"]
["zadnje stanje gradbene tehnike"]
[]
["uporaba evrokodov"]
["uporaba drugih pravil"]
["brez uporabe pravil"]
[]
["MNENJA"]
[]
["OBČINA"]
[]
["VAROVANA OBMOČJA"]
["VARSTVO KULTURNE DEDIŠČINE - POSEG"]
["VARSTVO KULTURNE DEDIŠČINE - RAZISKAVA IN ODSTRANITEV"]
["VARSTVO NARAVE"]
["VARSTVO PODZEMNIH JAM"]
["VARSTVO VODA"]
["VARSTVO GOZDOV"]
["RIBIŠKI OKOLIŠ"]
["OKOLJE DIVJADI"]
["OBMOČJE MEJNEGA PREHODA"]
["CARINA"]
["LETALIŠČA"]
["OVIRE ZA ZRAČNI PROMET"]
["VARNOST PLOVBE"]
["OBJEKT V MEJAH RUDNIŠKEGA PROSTORA"]
["OBJEKT V VAROVALNEM PASU ŽIČNIŠKE NAPRAVE"]
[]
["VAROVALNI PASOVI INFRASTRUKTURE"]
["VODOVOD"]
["ELEKTRIKA"]
["PLIN"]
["TOPLOVOD"]
["FEKALNE VODE"]
["METEORNE VODE"]
["KOMUNIKACIJSKI VODI"]
["JAVNE CESTE"]
["ŽELEZNICE - GRADNJA"]
["ŽELEZNICE"]
[]
["PRIKLJUČEVANJE NA INFRASTRUKTURO"]
["VODOVOD"]
["ELEKTRIKA"]
["PLIN"]
["TOPLOVOD"]
["FEKALNE VODE"]
["METEORNE VODE"]
["DOSTOP"]
["KOMUNIKACIJE"]
[]
["DRUGA MNENJA"]
["JEDRSKA VARNOST "]
["SEVALNA VARNOST "]
["KMETIJSKO GOSPODARSTVO"]
["VETERINA"]
["OBRAMBA"]